Workbook

Sheet AER CF (hidden)
B1: AER CONDITIONAL FORMATTING
B3: CELLS FLAGED "Y" and greyed out will be greyed out in the worksheets.
B4: CONDITIONAL FORMATTING MAP
F5: =INDEX(dms_CF_3.6.1, MATCH(dms_TradingName,dms_CF_TradingName))="Y" | G5: =INDEX(dms_CF_3.6.5, MATCH(dms_TradingName,dms_CF_TradingName))="Y" | H5: =INDEX(dms_CF_3.6.6.1, MATCH(dms_TradingName,dms_CF_TradingName))="Y" | I5: =INDEX(dms_CF_3.6.6.2, MATCH(dms_TradingName,dms_CF_TradingName))="Y" | J5: =INDEX(dms_CF_3.6.6.3, MATCH(dms_TradingName,dms_CF_TradingName))="Y" | K5: =INDEX(dms_CF_3.6.7.1, MATCH(dms_TradingName,dms_CF_TradingName))="Y" | L5: =INDEX(dms_CF_3.6.7.2, MATCH(dms_TradingName,dms_CF_TradingName))="Y" | M5: =INDEX(dms_CF_3.6.7.3, MATCH(dms_TradingName,dms_CF_TradingName))="Y" | N5: =INDEX(dms_CF_3.6.7.4, MATCH(dms_TradingName,dms_CF_TradingName))="Y" | O5: =INDEX(dms_CF_3.6.8, MATCH(dms_TradingName,dms_CF_TradingName))="Y" | P5: =INDEX(dms_CF_4.1, MATCH(dms_TradingName,dms_CF_TradingName))="Y" | Q5: =INDEX(dms_CF_6.8, MATCH(dms_TradingName,dms_CF_TradingName))="Y" | R5: =INDEX(dms_CF_7.12, MATCH(dms_TradingName,dms_CF_TradingName))="Y" | S5: =INDEX(dms_CF_8.1_A, MATCH(dms_TradingName,dms_CF_TradingName))="Y" | T5: =INDEX(dms_CF_8.1_B, MATCH(dms_TradingName,dms_CF_TradingName))="Y" | U5: =INDEX(dms_CF_8.1_Neg, MATCH(dms_TradingName,dms_CF_TradingName))="Y" ->  | V5: =INDEX(dms_CF_4.4.1_Neg, MATCH(dms_TradingName,dms_CF_TradingName))="Y" | Y5: =INDEX(dms_CF_F10, MATCH(dms_TradingName,dms_CF_TradingName))="Y"
B6: dms_CF_TradingName | C6: JurisdictionList | D6: Sector | E6: Segment | F6: dms_CF_3.6.1 | G6: dms_CF_3.6.5 | H6: dms_CF_3.6.6.1 | I6: dms_CF_3.6.6.2 | J6: dms_CF_3.6.6.3 | K6: dms_CF_3.6.7.1 | L6: dms_CF_3.6.7.2 | M6: dms_CF_3.6.7.3 | N6: dms_CF_3.6.7.4 | O6: dms_CF_3.6.8 | P6: dms_CF_4.1 | Q6: dms_CF_6.8 (set from dms_MAIFI_flag) | R6: dms_CF_7.12 | S6: dms_CF_8.1_A (and 8.4) | T6: dms_CF_8.1_B (and 8.4) | U6: dms_CF_8.1_Neg (and 8.4) | V6: dms_CF_4.4.1 | W6: dms_CF_MAIFI_flag (set from dms_MAIFI_flag) | X6: 9.5 TUOS (set from Jurisdiction) | Y6: dms_CF_F10
B7: Amadeus | C7: NT | D7: Gas | E7: Transmission | F7: - | G7: - | H7: - | I7: - | J7: - | K7: - | L7: - | M7: - | N7: - | O7: - | P7: - | Q7: - | R7: - | S7: - | T7: - | U7: - | V7: - | W7: - | X7: - | Y7: -
B8: APA GasNet | C8: Vic | D8: Gas | E8: Transmission | F8: - | G8: - | H8: - | I8: - | J8: - | K8: - | L8: - | M8: - | N8: - | O8: - | P8: - | Q8: - | R8: - | S8: - | T8: - | U8: - | V8: - | W8: - | X8: - | Y8: -
B9: Ausgrid | C9: NSW | D9: Electricity | E9: Distribution | G9: Y | H9: N | I9: N | J9: N | K9: N | L9: N | M9: N | N9: Y | O9: N | P9: N | Q9: =IFERROR(IF(dms_MAIFI_flag="Yes","N","Y"),"Y") -> Y | R9: Y | S9: N | T9: Y | U9: Y | V9: N | W9: =IFERROR(LEFT(dms_MAIFI_flag),"N") -> N | X9: =IF('AER CF'!$C7="Vic","Y","N") -> N
B10: Ausgrid (Tx Assets) | C10: NSW | D10: Electricity | E10: Distribution | G10: Y | H10: N | I10: N | J10: N | K10: N | L10: N | M10: N | N10: Y | O10: N | P10: N | Q10: =IFERROR(IF(dms_MAIFI_flag="Yes","N","Y"),"Y") -> Y | R10: Y | S10: N | T10: Y | U10: Y | V10: N | W10: =IFERROR(LEFT(dms_MAIFI_flag),"N") -> N | X10: =IF('AER CF'!$C8="Vic","Y","N") -> Y
B11: AusNet (D) | C11: Vic | D11: Electricity | E11: Distribution | G11: N | H11: N | K11: N | L11: N | M11: N | N11: N | O11: N | P11: N | Q11: =IFERROR(IF(dms_MAIFI_flag="Yes","N","Y"),"Y") -> Y | R11: N | S11: N | T11: N | U11: Y | V11: N | W11: =IFERROR(LEFT(dms_MAIFI_flag),"N") -> N | X11: =IF('AER CF'!$C9="Vic","Y","N") -> N
B12: AusNet (T) | C12: Vic | D12: Electricity | E12: Transmission | G12: N | K12: N | L12: N | M12: N | N12: N | O12: N | P12: Y | Q12: =IFERROR(IF(dms_MAIFI_flag="Yes","N","Y"),"Y") -> Y | R12: N | S12: N | T12: N | U12: Y | V12: N | W12: =IFERROR(LEFT(dms_MAIFI_flag),"N") -> N | X12: =IF('AER CF'!$C10="Vic","Y","N") -> N
B13: Australian Distribution Co. | C13: NSW | D13: Electricity | E13: Distribution | F13: N | G13: N | H13: N | I13: N | K13: N | L13: N | M13: N | N13: N | O13: N | P13: N | Q13: =IFERROR(IF(dms_MAIFI_flag="Yes","N","Y"),"Y") -> Y | R13: N | S13: N | T13: N | U13: N | V13: N | W13: =IFERROR(LEFT(dms_MAIFI_flag),"N") -> N | X13: =IF('AER CF'!$C13="Vic","Y","N") -> N
B14: Australian Distribution Co. (Vic) | C14: Vic | D14: Electricity | E14: Distribution | F14: N | G14: N | H14: N | I14: N | K14: N | L14: N | M14: N | N14: N | O14: N | P14: N | Q14: =IFERROR(IF(dms_MAIFI_flag="Yes","N","Y"),"Y") -> Y | R14: N | S14: N | T14: N | U14: N | V14: N | W14: =IFERROR(LEFT(dms_MAIFI_flag),"N") -> N | X14: =IF('AER CF'!$C14="Vic","Y","N") -> Y
B15: CitiPower | C15: Vic | D15: Electricity | E15: Distribution | G15: N | H15: N | K15: N | L15: N | M15: N | N15: N | O15: N | P15: N | Q15: =IFERROR(IF(dms_MAIFI_flag="Yes","N","Y"),"Y") -> Y | R15: N | S15: N | T15: N | U15: Y | V15: N | W15: =IFERROR(LEFT(dms_MAIFI_flag),"N") -> N | X15: =IF('AER CF'!$C15="Vic","Y","N") -> Y
B16: Directlink | C16: Qld | D16: Electricity | E16: Transmission | G16: N | K16: N | L16: N | M16: N | N16: N | O16: N | P16: - | Q16: =IFERROR(IF(dms_MAIFI_flag="Yes","N","Y"),"Y") -> Y | R16: N | S16: N | T16: Y | U16: Y | V16: N | W16: =IFERROR(LEFT(dms_MAIFI_flag),"N") -> N | X16: =IF('AER CF'!$C16="Vic","Y","N") -> N
B17: ElectraNet | C17: SA | D17: Electricity | E17: Transmission | G17: N | K17: N | L17: N | M17: N | N17: N | O17: N | P17: - | Q17: =IFERROR(IF(dms_MAIFI_flag="Yes","N","Y"),"Y") -> Y | R17: N | S17: N | T17: Y | U17: Y | V17: N | W17: =IFERROR(LEFT(dms_MAIFI_flag),"N") -> N | X17: =IF('AER CF'!$C17="Vic","Y","N") -> N
B18: Endeavour Energy | C18: NSW | D18: Electricity | E18: Distribution | G18: Y | H18: N | I18: Y | J18: Y | K18: N | L18: N | M18: N | N18: Y | O18: N | P18: N | Q18: =IFERROR(IF(dms_MAIFI_flag="Yes","N","Y"),"Y") -> Y | R18: Y | S18: N | T18: Y | U18: Y | V18: Y | W18: =IFERROR(LEFT(dms_MAIFI_flag),"N") -> N | X18: =IF('AER CF'!$C18="Vic","Y","N") -> N
B19: Energex | C19: Qld | D19: Electricity | E19: Distribution | G19: Y | H19: N | K19: N | L19: N | M19: N | N19: N | O19: N | P19: N | Q19: =IFERROR(IF(dms_MAIFI_flag="Yes","N","Y"),"Y") -> Y | R19: Y | S19: N | T19: Y | U19: Y | V19: Y | W19: =IFERROR(LEFT(dms_MAIFI_flag),"N") -> N | X19: =IF('AER CF'!$C19="Vic","Y","N") -> N
B20: Ergon Energy | C20: Qld | D20: Electricity | E20: Distribution | G20: Y | H20: N | I20: Y | J20: Y | K20: N | L20: N | M20: N | N20: N | O20: N | P20: N | Q20: =IFERROR(IF(dms_MAIFI_flag="Yes","N","Y"),"Y") -> Y | R20: Y | S20: N | T20: Y | U20: Y | V20: N | W20: =IFERROR(LEFT(dms_MAIFI_flag),"N") -> N | X20: =IF('AER CF'!$C20="Vic","Y","N") -> N
B21: Essential Energy | C21: NSW | D21: Electricity | E21: Distribution | G21: Y | H21: N | I21: Y | J21: Y | K21: N | L21: N | M21: N | N21: Y | O21: N | P21: N | Q21: =IFERROR(IF(dms_MAIFI_flag="Yes","N","Y"),"Y") -> Y | R21: Y | S21: N | T21: Y | U21: Y | V21: N | W21: =IFERROR(LEFT(dms_MAIFI_flag),"N") -> N | X21: =IF('AER CF'!$C21="Vic","Y","N") -> N
B22: Evoenergy Distribution | C22: ACT | D22: Electricity | E22: Distribution | G22: Y | H22: N | I22: Y | J22: Y | K22: Y | L22: Y | M22: N | N22: Y | O22: N | P22: Y | Q22: =IFERROR(IF(dms_MAIFI_flag="Yes","N","Y"),"Y") -> Y | R22: Y | S22: N | T22: Y | U22: Y | V22: N | W22: =IFERROR(LEFT(dms_MAIFI_flag),"N") -> N | X22: =IF('AER CF'!$C22="Vic","Y","N") -> N
B23: Evoenergy Distribution (Tx Assets) | C23: ACT | D23: Electricity | E23: Distribution | G23: Y | H23: N | I23: Y | J23: Y | K23: Y | L23: Y | M23: N | N23: Y | O23: N | P23: Y | Q23: =IFERROR(IF(dms_MAIFI_flag="Yes","N","Y"),"Y") -> Y | R23: Y | S23: N | T23: Y | U23: Y | V23: N | W23: =IFERROR(LEFT(dms_MAIFI_flag),"N") -> N | X23: =IF('AER CF'!$C23="Vic","Y","N") -> N
B24: Jemena Electricity | C24: Vic | D24: Electricity | E24: Distribution | G24: N | H24: N | K24: N | L24: N | M24: N | N24: N | O24: N | P24: N | Q24: =IFERROR(IF(dms_MAIFI_flag="Yes","N","Y"),"Y") -> Y | R24: N | S24: N | T24: N | U24: Y | V24: N | W24: =IFERROR(LEFT(dms_MAIFI_flag),"N") -> N | X24: =IF('AER CF'!$C25="Vic","Y","N") -> Y
B25: JGN | C25: Vic | D25: Gas | E25: Distribution | F25: - | G25: - | H25: - | I25: - | J25: - | K25: - | L25: - | M25: - | N25: - | O25: - | P25: - | Q25: - | R25: - | S25: - | T25: - | U25: - | V25: - | W25: - | X25: - | Y25: -
B26: Murraylink | C26: SA | D26: Electricity | E26: Transmission | G26: N | K26: N | L26: N | M26: N | N26: N | O26: N | P26: - | Q26: =IFERROR(IF(dms_MAIFI_flag="Yes","N","Y"),"Y") -> Y | R26: N | S26: N | T26: Y | U26: Y | V26: N | W26: =IFERROR(LEFT(dms_MAIFI_flag),"N") -> N | X26: =IF('AER CF'!$C26="Vic","Y","N") -> N
B27: Power and Water | C27: NT | D27: Electricity | E27: Distribution | G27: N | H27: N | K27: N | L27: Y | M27: N | N27: N | O27: N | P27: Y | Q27: =IFERROR(IF(dms_MAIFI_flag="Yes","N","Y"),"Y") -> Y | R27: Y | S27: Y | T27: Y | U27: Y | V27: N | W27: =IFERROR(LEFT(dms_MAIFI_flag),"N") -> N | X27: =IF('AER CF'!$C27="Vic","Y","N") -> N
B28: Powercor Australia | C28: Vic | D28: Electricity | E28: Distribution | G28: N | H28: N | K28: N | L28: N | M28: N | N28: N | O28: N | P28: N | Q28: =IFERROR(IF(dms_MAIFI_flag="Yes","N","Y"),"Y") -> Y | R28: N | S28: N | T28: N | U28: Y | V28: N | W28: =IFERROR(LEFT(dms_MAIFI_flag),"N") -> N | X28: =IF('AER CF'!$C28="Vic","Y","N") -> Y
B29: Powerlink | C29: Qld | D29: Electricity | E29: Transmission | G29: N | K29: N | L29: N | M29: N | N29: N | O29: N | P29: - | Q29: =IFERROR(IF(dms_MAIFI_flag="Yes","N","Y"),"Y") -> Y | R29: N | S29: N | T29: Y | U29: Y | V29: N | W29: =IFERROR(LEFT(dms_MAIFI_flag),"N") -> N | X29: =IF('AER CF'!$C29="Vic","Y","N") -> N
B30: Roma to Brisbane Pipeline | C30: Qld | D30: Gas | E30: Transmission | F30: - | G30: - | H30: - | I30: - | J30: - | K30: - | L30: - | M30: - | N30: - | O30: - | P30: - | Q30: - | R30: - | S30: - | T30: - | U30: - | V30: - | W30: - | X30: - | Y30: -
B31: SA Power Networks | C31: SA | D31: Electricity | E31: Distribution | G31: Y | H31: N | K31: N | L31: N | M31: N | N31: N | O31: N | P31: N | Q31: =IFERROR(IF(dms_MAIFI_flag="Yes","N","Y"),"Y") -> Y | R31: Y | S31: N | T31: Y | U31: N | V31: N | W31: =IFERROR(LEFT(dms_MAIFI_flag),"N") -> N | X31: =IF('AER CF'!$C31="Vic","Y","N") -> N
B32: TasNetworks (D) | C32: Tas | D32: Electricity | E32: Distribution | G32: Y | H32: N | K32: N | L32: N | M32: N | N32: N | O32: N | P32: N | Q32: =IFERROR(IF(dms_MAIFI_flag="Yes","N","Y"),"Y") -> Y | R32: Y | S32: N | T32: Y | U32: Y | V32: N | W32: =IFERROR(LEFT(dms_MAIFI_flag),"N") -> N | X32: =IF('AER CF'!$C32="Vic","Y","N") -> N
B33: TasNetworks (T) | C33: Tas | D33: Electricity | E33: Transmission | G33: N | K33: N | L33: N | M33: N | N33: N | O33: N | P33: - | Q33: =IFERROR(IF(dms_MAIFI_flag="Yes","N","Y"),"Y") -> Y | R33: N | S33: N | T33: Y | U33: Y | V33: N | W33: =IFERROR(LEFT(dms_MAIFI_flag),"N") -> N | X33: =IF('AER CF'!$C33="Vic","Y","N") -> N
B34: TransGrid | C34: NSW | D34: Electricity | E34: Transmission | G34: N | K34: N | L34: N | M34: N | N34: N | O34: N | P34: - | Q34: =IFERROR(IF(dms_MAIFI_flag="Yes","N","Y"),"Y") -> Y | R34: N | S34: N | T34: Y | U34: Y | V34: N | W34: =IFERROR(LEFT(dms_MAIFI_flag),"N") -> N | X34: =IF('AER CF'!$C34="Vic","Y","N") -> N
B35: United Energy | C35: Vic | D35: Electricity | E35: Distribution | G35: N | H35: N | K35: N | L35: N | M35: N | N35: N | O35: N | P35: N | Q35: =IFERROR(IF(dms_MAIFI_flag="Yes","N","Y"),"Y") -> Y | R35: N | S35: N | T35: N | U35: Y | V35: N | W35: =IFERROR(LEFT(dms_MAIFI_flag),"N") -> N | X35: =IF('AER CF'!$C35="Vic","Y","N") -> Y
B38: Confidential
B39: Amended
B41: Worksheet 6.2 STPIS reliability
B42: Formula | F42: Applied to:
B44: =INDEX(dms_CBD_flag,MATCH(dms_TradingName,dms_TradingName_List))="NO" | F44: $D$11,$D$17,$D$23,$D$33,$D$39,$D$45,$D$55,$D$61,$D$67,$D$77,$D$83,$D$89
B45: =INDEX(dms_Urban_flag,MATCH(dms_TradingName,dms_TradingName_List))="NO" | F45: $D$12,$D$18,$D$24,$D$56,$D$62,$D$78,$D$68,$D$84
B46: =INDEX(dms_ShortRural_flag,MATCH(dms_TradingName,dms_TradingName_List))="NO" | F46: $D$13,$D$19,$D$25,$D$57,$D$63,$D$69,$D$79,$D$85
B47: =INDEX(dms_LongRural_flag,MATCH(dms_TradingName,dms_TradingName_List))="NO" | F47: $D$14,$D$20,$D$26,$D$58,$D$64,$D$65,$D$70,$D$71,$D$80,$D$86
B48: =INDEX(dms_FeederType_5_flag,MATCH(dms_TradingName,dms_TradingName_List))="NO" | F48: $D$87,$D$81,$D$71,$D$65,$D$59,$D$49,$D$43,$D$37,$D$21,$D$15
B49: =dms_MAIFI_Flag="No" | F49: $D$55:$D$72
B52: Business & other details
B53: =(INDEX(dms_Model_Span,MATCH(dms_Model,dms_Model_List))>1)
B54: =(INDEX(dms_Model_Span,MATCH(dms_Model,dms_Model_List))=1)
B57: STYLES IN USE
B58: HEADING ONE | C58: dms_1
B59: HEADING TWO | C59: dms_2
B60: HEADING THREE | C60: dms_3
B61: HEADING FOUR | C61: dms_4
B62: HEADING FIVE | C62: dms_5
B63: 5.111 | C63: dms_NUM
B64: 0.0545 | C64: dms_NUM%
B65: 5.5555 | C65: dms_NUM3d
B66: Text description | C66: dms_Row_Locked
B67: Text description | C67: dms_Row1
B68: Text description | C68: dms_Row2
B69: Total | C69: dms_T1
B70: Total | C70: dms_T2
B71: EXPENSES | C71: dms_BH
B72: 2019 | C72: dms_BY1
B73: 2019 | C73: dms_BY2
B74: VOLUMES | C74: dms_GH
B75: 2019 | C75: dms_GY1
B76: 2019 | C76: dms_GY2

Sheet AER NRs (hidden)
B1: AER NAMED RANGES
B3: DROP DOWN SELECTORS USED IN WORKBOOKS
B5: COVER SHEET | C5: dms_DataQuality_List | D5: dms_Confid_status_List
C6: -- select -- | D6: -- select --
C7: Actual | D7: Public
C8: Estimate | D8: Confidential
C9: Consolidated
C12: For all files either AER or business needs to be able to specify the type of submission | D12: For PTRM & RFM templates we must provide a choice in case they change their form of control - otherwise it is drawn from the business specific lookup table above.
C13: dms_SourceList | D13: dms_FormControl_Choices
C14: -- select -- | D14: Revenue cap
C15: After appeal | D15: Revenue yield
C16: Draft decision | D16: Tariff cap
C17: Final decision | D17: Weighted average price cap
C18: PTRM update 1
C19: PTRM update 2
C20: PTRM update 3
C21: PTRM update 4
C22: PTRM update 5
C23: PTRM update 6
C24: PTRM update 7
C25: Reallocated
C26: Recast
C27: Regulatory proposal
C28: Reporting
C29: Revised regulatory proposal
K32: This is used to create an image to insert on 6.3 STPIS sheet - not for dropdown lists. | N32: GAS
B33: CA & RESET RINS DNSP | C33: dms_DNSP_020301_SubstationType | D33: dms_DNSP_020301_ProjectType | E33: dms_DNSP_020301_ProjectTrigger | F33: dms_DNSP_020302_ProjectType | G33: dms_DNSP_020302_ProjectTrigger | H33: dms_STPIS_Exclusion_List | I33: dms_Reason_Interruption | J33: dms_Reason_Interruption_Detailed | K33: Reason for interruption | N33: dms_N0205_AssetType
C34: Subtransmission substation | D34: New substation establishment | E34: Demand growth | F34: New line on new route - single circuit | G34: Demand growth | H34: Weather | I34: Animal | J34: Animal impact | K34: Animal | L34: Animal impact | N34: Cast Iron
C35: Zone substation | D35: Substation upgrade - capacity | E35: Voltage issues | F35: New line on new route - dual circuit | G35: Voltage issues | H35: Equipment failure | I35: Asset failure | J35: Animal nesting/burrowing, etc and other | L35: Animal nesting/burrowing, etc and other | N35: PVC
C36: Switching station | D36: Substation upgrade - voltage | E36: Reactive power issue | F36: New line on new route - other | G36: Reactive power issue | H36: Operational error | I36: Other | J36: Other | L36: Other | N36: Polyamide
C37: Other | D37: Other | E37: Fault level issues | F37: Line rebuild over existing route - single circuit | G37: Fault level issues | H37: Vegetation | I37: Overloads | J37: LV | K37: Asset failure | L37: LV | N37: High density polyethylene (80)
E38: Safety | F38: Line rebuild over existing route - dual circuit | G38: Net market benefit | H38: Animals | I38: Planned | J38: Distribution substation | L38: Distribution substation | N38: High density polyethylene (100)
E39: Environment | F39: Reconductor - Single circuit | G39: Safety | H39: Third party impacts | I39: Network business | J39: HV | L39: HV | N39: High density polyethylene (250)
E40: Other | F40: Reconductor - Dual circuit | G40: Environment | H40: Transmission failure | I40: Third party | J40: Zone substation | L40: Zone substation | N40: High density polyethylene (575)
F41: Reconductor - Other | G41: Other | H41: Load shedding | I41: Unknown | J41: Subtransmission | L41: Subtransmission | N41: Medium density polyethylene
F42: Line upgrade - raising/retensoring | H42: Inter-distributor connection failure | I42: Vegetation | J42: insert description of 'other' | K42: Other | L42: insert description of 'other' | N42: Unprotected steel
F43: Line upgrade - voltage upgrade | H43: Other | I43: Weather | J43: Network error | K43: Overloads | N43: Protected steel
F44: Line upgrade - capacity | I44: 2 - STPIS Exclusion (3.3)(a) | J44: Switching and protection error | K44: Planned | N44: Other
F45: String spare circuit | I45: 3 - STPIS Exclusion (3.3)(a) | J45: Fire | K45: Network business | L45: Network error
F46: Other | I46: 4 - STPIS Exclusion (3.3)(a) | J46: Other | L46: Switching and protection error
I47: 5 - STPIS Exclusion (3.3)(a) | J47: Dig-in | K47: Third party | L47: Fire
I48: 6 - STPIS Exclusion (3.3)(a) | J48: Unauthorised access | L48: Other
I49: 7 - STPIS Exclusion (3.3)(a) | J49: Vehicle impact | L49: Dig-in
J50: Unknown | L50: Unauthorised access
J51: Blow-in/Fall-in - NSP responsibility | L51: Vehicle impact
J52: Grow-in - NSP responsibility | K52: Unknown | L52: Unknown
J53: Blow-in/Fall-in - Other responsible party | K53: Vegetation | L53: Blow-in/Fall-in - NSP responsibility
J54: Grow-in - Other responsible party | L54: Grow-in - NSP responsibility
L55: Blow-in/Fall-in - Other responsible party
L56: Grow-in - Other responsible party
K57: Weather
K58: 2 - STPIS Exclusion (3.3)(a)
K59: 3 - STPIS Exclusion (3.3)(a)
K60: 4 - STPIS Exclusion (3.3)(a)
K61: 5 - STPIS Exclusion (3.3)(a)
K62: 6 - STPIS Exclusion (3.3)(a)
K63: 7 - STPIS Exclusion (3.3)(a)
B66: CA & RESET RINS TNSP | C66: dms_TNSP_0203_SubstationType | D66: dms_TNSP_020301_ProjectType | E66: dms_TNSP_020301_ProjectTrigger | F66: dms_TNSP_020302_ProjectType | G66: dms_TNSP_0203_ProjectTrigger
C67: Terminal station | D67: New substation establishment | E67: Demand growth | F67: New line on new route - single circuit | G67: Demand growth
C68: Switching station | D68: Capacity upgrade | E68: Voltage issues | F68: New line on new route - dual circuit | G68: Voltage issues
C69: Transmission substation | D69: Voltage upgrade | E69: Reactive power issue | F69: New line on new route - other | G69: Reactive power issue
C70: Other | D70: Other | E70: Fault level issues | F70: Line rebuild over existing route - single circuit | G70: Fault level issues
E71: Net market benefit | F71: Line rebuild over existing route - dual circuit | G71: Net market benefit
E72: Safety | F72: Reconductor - Single circuit | G72: Safety
E73: Environment | F73: Reconductor - Dual circuit | G73: Environment
E74: Other | F74: Reconductor - Other | G74: Other
F75: Line upgrade - raising/retensoring
F76: Line upgrade - voltage upgrade
F77: Line upgrade - capacity
F78: String spare circuit
F79: Other
B83: NAMED RANGES USED IN ETL PROCESS
M84: GAS ARR & RESET
B85: CA & RESET RINS DNSP ONLY | C85: dms_020303_01_UOM | D85: dms_020501_01_UOM | E85: dms_020501_02_UOM | F85: dms_020501_03_UOM | G85: dms_020501_04_UOM | H85: dms_020701_01_UOM | I85: dms_020701_02_UOM | J85: dms_020701_01_Rows | K85: dms_040102_01_UOM | L85: dms_040102_04_UOM | M85: dms_S140101_UOM | N85: dms_S140201_UOM | O85: dms_E050201_UOM | P85: dms_E050202_UOM
C86: Circuit line length in km | D86: 0's | E86: 0's | F86: 0's | G86: 0's | H86: km | I86: km | J86: Route line length within zone | K86: 0's | L86: days | M86: number | N86: number per km | O86: per metre per connection | P86: metres per connection
C87: Circuit line length in km | D87: 0's | E87: 0's | F87: 0's | G87: 0's | H87: 0's | I87: 0's | J87: Number of maintenance spans | K87: 0's | L87: 0's | M87: number | N87: number | O87: per service per connection | P87: number per connection
C88: Circuit line length in km | D88: MVA added | E88: MVA added | F88: MVA added | G88: MVA added | H88: km | I88: km | J88: Total length of maintenance spans | K88: 0's | L88: $0s | M88: number | N88: number | O88: number per connection | P88: number per connection
C89: Circuit line length in km | D89: 0's | E89: 0's | F89: 0's | G89: 0's | H89: km | I89: km | J89: Length of vegetation corridors | K89: $0s | L89: 0's | M89: km
C90: Number | D90: total spend $0s | E90: total spend $0s | F90: total spend $0s | G90: total spend $0s | H90: 0's | I90: 0's | J90: Average number of trees per maintenance span
C91: Number | D91: net circuit km added | E91: net circuit km added | F91: net circuit km added | G91: net circuit km added | H91: years | I91: years | J91: Average frequency of cutting cycle
C92: Number | D92: total spend $0s | E92: total spend $0s | F92: total spend $0s | G92: total spend $0s
D93: net circuit km added | E93: net circuit km added | F93: net circuit km added | G93: net circuit km added
D94: total spend $0s | E94: total spend $0s | F94: total spend $0s | G94: total spend $0s
D95: 0's | F95: $0s
D96: 0's
D97: 0's
D98: $0s
B101: CA & RESET RINS TNSP ONLY | C101: dms_020701_01_UOM
C102: km
C103: 0's
C104: km
C105: 0's
C106: km
C107: metres
C108: years
B111: CA & RESET RINS DNSP & TNSP | C111: dms_020603_01_UOM
C112: 0's
C113: 0's
C114: 0's
C115: 0's
C116: (per cent)
B119: EB & RESET RINS DNSP ONLY | C119: dms_030601_01_UOM | D119: dms_030601_02_UOM | E119: dms_030701_01_UOM | F119: dms_030702_01_UOM | G119: dms_030703_01_UOM
C120: minutes/customer | D120: minutes/customer | E120: Customer / km | F120: % | G120: km
C121: minutes/customer | D121: minutes/customer | E121: MWh/customer | F121: Number of spans
C122: interruptions/customer | D122: interruptions/customer | E122: kVA / customer | F122: Number of spans
C123: interruptions/customer | D123: interruptions/customer | F123: Number of spans
F124: Number of spans
F125: Years
F126: Years
F127: Trees
F128: Trees
F129: Defects
F130: Defects
F131: Spans
F132: km
F133: Spans
C135: WHEN INSERTING COVER SHEET INTO A TNSP FILE - APPLY THESE NAMED RANGES
B136: EB & RESET RINS TNSP ONLY | C136: dms_030601_01_UOM | E136: dms_030701_01_UOM | F136: dms_030702_01_UOM
C137: % | E137: Number of spans | F137: km
C138: number | E138: Years | F138: %
C139: number | E139: Trees | F139: km
C140: % | E140: Defects | F140: number
C141: number | E141: Number of spans
C142: number | E142: km
C143: % | E143: km
C144: number | E144: Number of spans
C145: number
C146: %
C147: number
C148: %
C149: number
C150: %
C151: number
B153: EB & RESET RINS DNSP & TNSP | C153: dms_EB_RAB_PIT
C154: Beginning of year
C155: End of year
C156: End of year
C157: End of year
C158: End of year
C159: End of year
B161: ARR DNSP ONLY | C161: dms_030605_UOM | D161: dms_03060703_UOM | E161: dms_E020202_UOM | F161: Spare
C162: number | D162: number | E162: Length of mains replaced
C163: number | D163: number | E163: Number of services replaced
C164: number | D164: number
C165: number | D165: number
C166: number | D166: (per cent)
C167: number
C168: number
C169: number
C170: number
C171: number
C172: number
C173: number
C174: (per cent)
C175: (per cent)
B177: RFM | C177: dms_Beg | D177: dms_Mid | E177: dms_End
C178: Beginning of year | D178: Mid year | E178: End of Year
B180: PTRM | C180: dms_PTRM_RAB_PIT | D180: dms_PTRM_TAB_PIT | E180: DMS_Xfactor
C181: Beginning of year | D181: Beginning of year | E181: x factors
C182: End of year | D182: End of year
C183: End of year | D183: End of year
C184: End of year | D184: End of year
C185: End of year
B188: STPIS & MIC NAMED RANGES
B190: These "row descriptions" are the column headings in the various templates but become row descriptions in the ETL process
B192: Table 6.3 sustained interruptions - row descriptions | C192: dms_060301_CustNo_Affected_Row | D192: dms_060301_Avg_Duration_Sustained_Int_Row | E192: dms_060301_Effect_unplanned_SAIDI_Row | F192: dms_060301_Effect_unplanned_SAIFI_Row
C193: Number of customers affected by the interruption | D193: Average duration of sustained customer interruption | E193: Effect on unplanned SAIDI | F193: Effect on unplanned SAIFI
B196: Table 6.1 telephone answering - row descriptions and start date | C196: dms_060101_Rows | D196: dms_060102_Rows | E196: dms_060101_StartDateTxt
C197: Total number of calls (after removing excluded events) | D197: Number of calls answered within 30 seconds (after excluding excluded events) | E197: =dms_060701_StartDateTxt -> 1-Jul-2016
B200: Table 6.8.1 - row descriptions | C200: dms_060801_01_Rows | D200: dms_060801_02_Rows | E200: dms_060801_03_Rows | F200: dms_060801_04_Rows
C201: Number of interruptions | D201: Duration of interruptions | E201: Total unplanned minutes off supply | F201: Effect on unplanned MAIFI
B204: Table 7.9.4 - market impact component - row descriptions | C204: dms_070904_01_Rows | D204: without exclusions | E204: with exclusions
B207: These headings (Lists) are determined from the INDEX/MATCH function on the NSP selected on the Business & other details sheet
B209: Table 6.7.1 - daily performance data - unplanned - MAIFI -- row descriptions and header named range values | C209: dms_060701_Feeder_Header_Lvl4 | D209: =INDEX(dms_FeederName_1,MATCH(dms_TradingName,dms_TradingName_List)) -> CBD | E209: =INDEX(dms_FeederName_1,MATCH(dms_TradingName,dms_TradingName_List)) -> CBD | F209: =INDEX(dms_FeederName_2,MATCH(dms_TradingName,dms_TradingName_List)) -> Urban | G209: =INDEX(dms_FeederName_2,MATCH(dms_TradingName,dms_TradingName_List)) -> Urban | H209: =INDEX(dms_FeederName_3,MATCH(dms_TradingName,dms_TradingName_List)) -> Short rural | I209: =INDEX(dms_FeederName_3,MATCH(dms_TradingName,dms_TradingName_List)) -> Short rural | J209: =INDEX(dms_FeederName_4,MATCH(dms_TradingName,dms_TradingName_List)) -> Long rural | K209: =INDEX(dms_FeederName_4,MATCH(dms_TradingName,dms_TradingName_List)) -> Long rural | L209: =IF((INDEX(dms_FeederName_5,MATCH(dms_TradingName,dms_TradingName_List))=0),"Network",(INDEX(dms_FeederName_5,MATCH(dms_TradingName,dms_TradingName_List)))) -> Network | M209: =IF((INDEX(dms_FeederName_5,MATCH(dms_TradingName,dms_TradingName_List))=0),"Network",(INDEX(dms_FeederName_5,MATCH(dms_TradingName,dms_TradingName_List)))) -> Network | N209: Network | O209: Network
C211: dms_060701_Rows | D211: All events | E211: After removing excluded events | F211: All events | G211: After removing excluded events | H211: All events | I211: After removing excluded events | J211: All events | K211: After removing excluded events | L211: All events | M211: After removing excluded events | N211: All events | O211: After removing excluded events
D212: the number of column headings changes from 10 to 12 depending on the number of feeder categories for the NSP
C214: dms_0603_FeederList | D214: =INDEX(dms_FeederName_1,MATCH(dms_TradingName,dms_TradingName_List)) -> CBD | E214: =INDEX(dms_FeederName_2,MATCH(dms_TradingName,dms_TradingName_List)) -> Urban | F214: =INDEX(dms_FeederName_3,MATCH(dms_TradingName,dms_TradingName_List)) -> Short rural | G214: =INDEX(dms_FeederName_4,MATCH(dms_TradingName,dms_TradingName_List)) -> Long rural
B217: Use these to add to specific worksheets in existing files | C217: Use these to add to specific worksheets in existing files
B220: ARRs 6.7 STPIS daily performance | C220: dms_060101_Values | D220: dms_060102_Values | E220: dms_060701_Values
C221: dms_LeapYear
B224: ARR's 6.8 STPIS exclusions | C224: dms_060801_Event_Date | D224: dms_060801_OutageID | E224: dms_060801_FeederID | F224: dms_060801_FeederClass | G224: dms_060801_CauseID | H224: dms_060801_01_Values | I224: dms_060801_02_Values | J224: dms_060801_03_Values | K224: dms_060801_Excl_Cat | L224: dms_060801_04_Values
C225: dms_060801_StartCell
B228: CA 6.3 sustained interruptions | C228: dms_060301_Event_Date | D228: dms_060301_Event_Time | E228: dms_060301_AssetID | F228: dms_060301_FeederClass | G228: dms_060301_Reason | H228: dms_060301_DetailedReason | I228: dms_060301_CustNo_Affected_Values | J228: dms_060301_Avg_Duration_Sustained_Int_Values | K228: dms_060301_Effect_unplanned_SAIDI_Values | L228: dms_060301_Effect_unplanned_SAIFI_Values | M228: dms_060301_MED
B232: PTRM input sheet | C232: DMS_50_01_01a | D232: DMS_50_01_01aa | E232: DMS_50_01_01b | F232: DMS_50_01_01bb | G232: DMS_50_01_01c | H232: DMS_50_01_01d | I232: DMS_50_01_01dd

Sheet AER lookups (hidden)
B1: AER LOOKUP TABLES
B3: Data in these columns used for data validation and database purposes.
B4: Date last modified: | C4: 2017-01-16 | D4: added (Albury and Victora) for AGN
C5: 2016-10-17 | D5: updated TransGrid's correct legal name, corrected TasNetworks (T) to June financial year
C6: 2017-02-01 | D6: inserted Power and Water, added NRs (dms_FeederCat_1 and dms_FeederCat_2)
C7: 2017-03-03 | D7: inserted AEMO as a business
C8: 2018-03-28 | D8: major changes to accommodate STPIS
C9: Template Version | D9: 5
Z11: FOR ELECTRICITY BUSINESSES ONLY
Z12: Feeder Types | AD12: TasNetworks (D) | AE12: Feeder Names
Z14: CBD | AA14: Urban | AB14: Short rural | AC14: long rural | AD14: EXTRA
B15: dms_TradingName_List | C15: dms_TradingNameFull_List | D15: dms_ABN_List | E15: dms_JurisdictionList | F15: dms_Sector_List | G15: dms_Segment_List | H15: dms_FormControl_List | I15: dms_RPT_List | J15: dms_RPTMonth_List | K15: dms_CRCPlength_List | L15: dms_FRCPlength_List | M15: dms_PRCPlength_List | N15: dms_663_List | O15: dms_DeterminationRef_List | P15: dms_Addr1_List | Q15: dms_Addr2_List | R15: dms_Suburb_List | S15: dms_State_List | T15: dms_PostCode_List | U15: dms_PAddr1_List | V15: dms_PAddr2_List | W15: dms_PSuburb_List | X15: dms_PState_List | Y15: dms_PPostCode_List | Z15: dms_CBD_flag | AA15: dms_Urban_flag | AB15: dms_ShortRural_flag | AC15: dms_LongRural_flag | AD15: dms_FeederType_5_flag | AE15: dms_FeederName_1 | AF15: dms_FeederName_2 | AG15: dms_FeederName_3 | AH15: dms_FeederName_4 | AI15: dms_FeederName_5 | AJ15: dms_Public_Lighting_List | AK15: Name
B16: AGN (Albury and Victoria) | C16: Australian Gas Networks Limited (reporting data for Albury and Victoria) | D16: 19078551685 | E16: Vic | F16: Gas | G16: Distribution | H16: Tariff cap | I16: Financial | J16: June | K16: 5 | L16: 5 | M16: 5 | N16: x | P16: Level 6 | Q16: 400 King William Street | R16: ADELAIDE | S16: SA | T16: 5000 | U16: PO Box 6468 | V16: Halifax Street | W16: ADELAIDE | X16: SA | Y16: 5000 | Z16: NO | AA16: NO | AB16: NO | AC16: NO | AD16: NO | AE16: CBD | AF16: Urban | AG16: Short rural | AH16: Long rural | AJ16: NO | AK16: =B16 -> AGN (Albury and Victoria)
B17: AGN (Albury) | C17: Australian Gas Networks Limited (reporting data for Albury) | D17: 19078551685 | E17: Vic | F17: Gas | G17: Distribution | H17: Tariff cap | I17: Financial | J17: June | K17: 5 | L17: 5 | M17: 5 | N17: x | P17: Level 6 | Q17: 400 King William Street | R17: ADELAIDE | S17: SA | T17: 5000 | U17: PO Box 6468 | V17: Halifax Street | W17: ADELAIDE | X17: SA | Y17: 5000 | Z17: NO | AA17: NO | AB17: NO | AC17: NO | AD17: NO | AE17: CBD | AF17: Urban | AG17: Short rural | AH17: Long rural | AJ17: NO | AK17: AGN (Albury)
B18: AGN (SA) | C18: Australian Gas Networks Limited (reporting data for SA) | D18: 19078551685 | E18: SA | F18: Gas | G18: Distribution | H18: Tariff cap | I18: Financial | J18: June | K18: 5 | L18: 5 | M18: 5 | N18: 5 | O18: distribution determination | P18: Level 6 | Q18: 400 King William Street | R18: ADELAIDE | S18: SA | T18: 5000 | U18: PO Box 6468 | V18: Halifax Street | W18: ADELAIDE | X18: SA | Y18: 5000 | Z18: NO | AA18: NO | AB18: NO | AC18: NO | AD18: NO | AE18: CBD | AF18: Urban | AG18: Short rural | AH18: Long rural | AJ18: NO | AK18: AGN (SA)
B19: AGN (Victoria) | C19: Australian Gas Networks Limited (reporting data for Victoria) | D19: 19078551685 | E19: Vic | F19: Gas | G19: Distribution | H19: Tariff cap | I19: Financial | J19: June | K19: 5 | L19: 5 | M19: 5 | N19: x | P19: Level 6 | Q19: 400 King William Street | R19: ADELAIDE | S19: SA | T19: 5000 | U19: PO Box 6468 | V19: Halifax Street | W19: ADELAIDE | X19: SA | Y19: 5000 | Z19: NO | AA19: NO | AB19: NO | AC19: NO | AD19: NO | AE19: CBD | AF19: Urban | AG19: Short rural | AH19: Long rural | AJ19: NO | AK19: AGN (Victoria)
B20: Amadeus | C20: APT Pipelines (NT) Pty Ltd | D20: 39009737393 | E20: NT | F20: Gas | G20: Transmission | H20: Tariff cap | I20: Financial | J20: June | K20: 5 | L20: 5 | M20: 5 | N20: x | O20: n/a | P20: Level 19, HSBC Building | Q20: 580 George Street | R20: SYDNEY | S20: NSW | T20: 2000 | U20: Level 19, HSBC Building | V20: 580 George Street | W20: SYDNEY | X20: NSW | Y20: 2000 | Z20: NO | AA20: NO | AB20: NO | AC20: NO | AD20: NO | AE20: CBD | AF20: Urban | AG20: Short rural | AH20: Long rural | AJ20: NO | AK20: Amadeus
B21: APA GasNet | C21: APA GasNet Australia (Operations) Pty Ltd | D21: 065083009 | E21: Vic | F21: Gas | G21: Transmission | H21: Weighted average price cap | I21: Financial | J21: June | K21: 5 | L21: 5 | M21: 5 | N21: x | P21: Level 19, HSBC Building | Q21: 580 George Street | R21: SYDNEY | S21: NSW | T21: 2000 | U21: PO Box R41 | W21: ROYAL EXCHANGE | X21: NSW | Y21: 1225 | Z21: Alexandra Curran | AA21: 02 9275 0020 | AB21: alexandra.curran@apa.com.au | AC21: NO | AD21: NO | AE21: NO | AF21: NO | AG21: NO | AH21: - | AI21: CBD | AJ21: Urban | AK21: APA GasNet
B22: APA VTS | C22: APA VTS Australia (Operations) Pty Ltd | D22: 65083009 | E22: Vic | F22: Gas | G22: Transmission | H22: Tariff cap | I22: Financial | J22: June | K22: 5 | L22: 5 | M22: 5 | N22: x | P22: Level 19, HSBC Building | Q22: 580 George Street | R22: SYDNEY | S22: NSW | T22: 2000 | U22: PO Box R41 | W22: ROYAL EXCHANGE | X22: NSW | Y22: 1225 | Z22: NO | AA22: NO | AB22: NO | AC22: NO | AD22: NO | AE22: CBD | AF22: Urban | AG22: Short rural | AH22: Long rural | AJ22: NO | AK22: APA VTS
B23: AusNet (Gas) | C23: AusNet Gas Services | D23: 086015036 | E23: Vic | F23: Gas | G23: Distribution | H23: Tariff cap | I23: Financial | J23: June | K23: 5 | L23: 5 | M23: 5 | N23: - | O23: - | P23: Level 31 | Q23: 2 Southbank Boulevard | R23: SOUTHBANK | S23: Vic | T23: 3008 | X23: Vic | Z23: NO | AA23: NO | AB23: NO | AC23: NO | AD23: NO | AE23: CBD | AF23: Urban | AG23: Short rural | AH23: Long rural | AJ23: NO | AK23: AusNet (Gas)
B24: Australian Distribution Co. (Gas) | C24: Australian Gas Distribution Co. | D24: 11222333444 | E24: Vic | F24: Gas | G24: Distribution | H24: Tariff cap | I24: Financial | J24: June | K24: 5 | L24: 5 | M24: 5 | N24: - | O24: - | P24: 123 Straight Street | R24: MELBOURNE | S24: Vic | T24: 3000 | U24: PO Box 123 | W24: MELBOURNE | X24: Vic | Y24: 3000 | Z24: NO | AA24: NO | AB24: NO | AC24: NO | AD24: NO | AE24: CBD | AF24: Urban | AG24: Short rural | AH24: Long rural | AJ24: NO | AK24: Australian Distribution Co. (Gas)
B25: Australian Transmission Co. (Gas) | C25: Australian Transmission Co. (Gas) | D25: 11222333444 | E25: NSW | F25: Gas | G25: Transmission | H25: Tariff cap | I25: Financial | J25: June | K25: 5 | L25: 5 | M25: 5 | N25: 5 | O25: transmission determination | P25: 123 Straight Street | R25: SYDNEY | S25: NSW | T25: 2000 | U25: PO Box 123 | W25: SYDNEY | X25: NSW | Y25: 2000 | Z25: NO | AA25: NO | AB25: NO | AC25: NO | AD25: NO | AE25: CBD | AF25: Urban | AG25: Short rural | AH25: Long rural | AJ25: NO | AK25: Australian Transmission Co. (Gas)
B26: Evoenergy Gas | C26: Icon Distribution Investments Limited (ABN 83 073 025 224) and Jemena Networks (ACT) Pty Ltd (ABN 24 008 552 663) | D26: 76670568688 | E26: ACT | F26: Gas | G26: Distribution | H26: Tariff cap | I26: Financial | J26: June | K26: 5 | L26: 5 | M26: 5 | N26: x | P26: 40 Bunda Street | R26: CANBERRA | S26: ACT | T26: 2600 | U26: GPO BOX 366 | W26: CANBERRA | X26: ACT | Y26: 2601 | Z26: NO | AA26: NO | AB26: NO | AC26: NO | AD26: NO | AE26: CBD | AF26: Urban | AG26: Short rural | AH26: Long rural | AJ26: NO | AK26: Evoenergy Gas
B27: JGN | C27: Jemena Gas Networks (NSW) Ltd | D27: 003 004 322 | E27: NSW | F27: Gas | G27: Distribution | H27: Tariff cap | I27: Financial | J27: June | K27: 5 | L27: 5 | M27: 5 | Z27: NO | AA27: NO | AB27: NO | AC27: NO | AD27: NO | AE27: CBD | AF27: Urban | AG27: Short rural | AH27: Long rural | AJ27: NO | AK27: JGN
B28: Multinet Gas | C28: Multinet Gas (DB No.1) Pty Ltd (ACN 086 026 986), Multinet Gas (DB No.2) Pty Ltd (ACN 086 230 122) | D28: 086026986 | E28: Vic | F28: Gas | G28: Distribution | H28: Tariff cap | I28: Financial | J28: June | K28: 5 | L28: 5 | M28: 5 | N28: x | P28: 43-45 Centreway | R28: MT WAVERLEY | S28: Vic | T28: 3149 | X28: Vic | Z28: NO | AA28: NO | AB28: NO | AC28: NO | AD28: NO | AE28: CBD | AF28: Urban | AG28: Short rural | AH28: Long rural | AJ28: NO | AK28: Multinet Gas
B29: Roma to Brisbane Pipeline | C29: APT Petroleum Pipelines Limited t/a Roma to Brisbane Pipeline | D29: 009 737 393 | E29: Qld | F29: Gas | G29: Transmission | H29: Tariff cap | I29: Financial | J29: June | K29: 5 | L29: 5 | M29: 5 | N29: x | O29: n/a | P29: 580 George Street | R29: SYDNEY | S29: NSW | T29: 2000 | U29: PO Box R41 | W29: ROYAL EXCHANGE | X29: NSW | Y29: 1225 | Z29: NO | AA29: NO | AB29: NO | AC29: NO | AD29: NO | AE29: CBD | AF29: Urban | AG29: Short rural | AH29: Long rural | AJ29: NO | AK29: Roma to Brisbane Pipeline
B34: The Reg Year Ending (dms_RYE) must be set to the last year of the regulatory period. For forecast data is is usually (FRCP_y5) for actual it is a single year (CRY). For historical actual data the RYE will need to be set manually in the business details sheet by setting the dms_Multiyear_flag to 1 and putting the correct value in 'dms_Specified_FinalYear. See cells C67:C68
B35: dms_Model_List | C35: dms_Model_Name_Format1 | D35: dms_Worksheet_List | E35: dms_Model_Span_List
B36: ARR | C36: Annual Reporting | D36: =IF(dms_MultiYear_ResponseFlag="yes","NEW HISTORICAL ANNUAL REPORTING","ANNUAL REPORTING") -> ANNUAL REPORTING | E36: 1
B37: CA | C37: Category Analysis | D37: =IF(dms_MultiYear_ResponseFlag="yes","NEW HISTORICAL CATEGORY ANALYSIS","CATEGORY ANALYSIS") -> CATEGORY ANALYSIS | E37: 1
B38: CESS | C38: Capitlal Expenditure | D38: CAPITLAL EXPENDITURE SHARING SCHEMING | E38: 5
B39: CPI | C39: CPI | D39: CPI | E39: 5
B40: EB | C40: Economic Benchmarking | D40: =IF(dms_MultiYear_ResponseFlag="yes","NEW HISTORICAL ECONOMIC BENCHMARKING","ECONOMIC BENCHMARKING") -> ECONOMIC BENCHMARKING | E40: 1
B41: EBSS | C41: Efficiency Benefit Sharing Scheme | D41: EFFICIENCY BENEFIT SHARING SCHEME | E41: 5
B42: Pricing | C42: Pricing Proposal | D42: PRICING PROPOSAL | E42: 5
B43: Profitability | C43: Profitability | D43: PROFITABILITY | E43: 5
B44: PTRM | C44: Post Tax Revenue Model | D44: POST TAX REVENUE MODEL | E44: 5
B45: Reset | C45: Regulatory Reporting (Reset) | D45: REGULATORY REPORTING STATEMENT | E45: 5
B46: RFM | C46: Roll Forward Model | D46: ROLL FORWARD MODEL | E46: 5
B47: WACC | C47: Weighted Average Cost of Capital | D47: WEIGHTED AVERAGE COST OF CAPITAL | E47: 1
B51: Financial | C51: Calendar | E51: PREVIOUS | G51: CURRENT | I51: FORTHCOMING
B52: 1987-88 | C52: 1988 | D52: PRCP_y1 | E52: =INDEX(INDIRECT(dms_RPT),dms_PRCP_start_row) -> 2013-14 | F52: CRCP_y1 | G52: =INDEX(INDIRECT(dms_RPT),dms_CRCP_start_row) -> 2018-19 | H52: =FRCP_y1 -> 2023-24 | I52: =INDEX(INDIRECT(dms_RPT),dms_FRCP_start_row) -> 2023-24
B53: 1988-89 | C53: 1989 | D53: PRCP_y2 | E53: =INDEX(INDIRECT(dms_RPT),dms_PRCP_start_row+1) -> 2014-15 | F53: CRCP_y2 | G53: =INDEX(INDIRECT(dms_RPT),dms_CRCP_start_row+1) -> 2019-20 | H53: FRCP_y2 | I53: =INDEX(INDIRECT(dms_RPT),dms_FRCP_start_row+1) -> 2024-25
B54: 1989-90 | C54: 1990 | D54: PRCP_y3 | E54: =INDEX(INDIRECT(dms_RPT),dms_PRCP_start_row+2) -> 2015-16 | F54: CRCP_y3 | G54: =INDEX(INDIRECT(dms_RPT),dms_CRCP_start_row+2) -> 2020-21 | H54: FRCP_y3 | I54: =INDEX(INDIRECT(dms_RPT),dms_FRCP_start_row+2) -> 2025-26
B55: 1990-91 | C55: 1991 | D55: PRCP_y4 | E55: =INDEX(INDIRECT(dms_RPT),dms_PRCP_start_row+3) -> 2016-17 | F55: CRCP_y4 | G55: =INDEX(INDIRECT(dms_RPT),dms_CRCP_start_row+3) -> 2021-22 | H55: FRCP_y4 | I55: =INDEX(INDIRECT(dms_RPT),dms_FRCP_start_row+3) -> 2026-27
B56: 1991-92 | C56: 1992 | D56: PRCP_y5 | E56: =INDEX(INDIRECT(dms_RPT),dms_PRCP_start_row+4) -> 2017-18 | F56: CRCP_y5 | G56: =INDEX(INDIRECT(dms_RPT),dms_CRCP_start_row+4) -> 2022-23 | H56: FRCP_y5 | I56: =INDEX(INDIRECT(dms_RPT),dms_FRCP_start_row+4) -> 2027-28
B57: 1992-93 | C57: 1993 | D57: PRCP_y6 | E57: =INDEX(INDIRECT(dms_RPT),dms_PRCP_start_row+5) -> 2018-19 | F57: CRCP_y6 | G57: =INDEX(INDIRECT(dms_RPT),dms_CRCP_start_row+5) -> 2023-24 | H57: FRCP_y6 | I57: =INDEX(INDIRECT(dms_RPT),dms_FRCP_start_row+5) -> 2028-29
B58: 1993-94 | C58: 1994 | D58: PRCP_y7 | E58: =INDEX(INDIRECT(dms_RPT),dms_PRCP_start_row+6) -> 2019-20 | F58: CRCP_y7 | G58: =INDEX(INDIRECT(dms_RPT),dms_CRCP_start_row+6) -> 2024-25 | H58: FRCP_y7 | I58: =INDEX(INDIRECT(dms_RPT),dms_FRCP_start_row+6) -> 2029-30
B59: 1994-95 | C59: 1995 | D59: PRCP_y8 | E59: =INDEX(INDIRECT(dms_RPT),dms_PRCP_start_row+7) -> 2020-21 | F59: CRCP_y8 | G59: =INDEX(INDIRECT(dms_RPT),dms_CRCP_start_row+7) -> 2025-26 | H59: FRCP_y8 | I59: =INDEX(INDIRECT(dms_RPT),dms_FRCP_start_row+7) -> 2030-31
B60: 1995-96 | C60: 1996 | D60: PRCP_y9 | E60: =INDEX(INDIRECT(dms_RPT),dms_PRCP_start_row+8) -> 2021-22 | F60: CRCP_y9 | G60: =INDEX(INDIRECT(dms_RPT),dms_CRCP_start_row+8) -> 2026-27 | H60: FRCP_y9 | I60: =INDEX(INDIRECT(dms_RPT),dms_FRCP_start_row+8) -> 2031-32
B61: 1996-97 | C61: 1997 | D61: PRCP_y10 | E61: =INDEX(INDIRECT(dms_RPT),dms_PRCP_start_row+9) -> 2022-23 | F61: CRCP_y10 | G61: =INDEX(INDIRECT(dms_RPT),dms_CRCP_start_row+9) -> 2027-28 | H61: FRCP_y10 | I61: =INDEX(INDIRECT(dms_RPT),dms_FRCP_start_row+9) -> 2032-33
B62: 1997-98 | C62: 1998 | D62: PRCP_y11 | E62: =INDEX(INDIRECT(dms_RPT),dms_PRCP_start_row+10) -> 2023-24 | F62: CRCP_y11 | G62: =INDEX(INDIRECT(dms_RPT),dms_CRCP_start_row+10) -> 2028-29 | H62: FRCP_y11 | I62: =INDEX(INDIRECT(dms_RPT),dms_FRCP_start_row+10) -> 2033-34
B63: 1998-99 | C63: 1999 | D63: PRCP_y12 | E63: =INDEX(INDIRECT(dms_RPT),dms_PRCP_start_row+11) -> 2024-25 | F63: CRCP_y12 | G63: =INDEX(INDIRECT(dms_RPT),dms_CRCP_start_row+11) -> 2029-30 | H63: FRCP_y12 | I63: =INDEX(INDIRECT(dms_RPT),dms_FRCP_start_row+11) -> 2034-35
B64: 1999-00 | C64: 2000 | D64: PRCP_y13 | E64: =INDEX(INDIRECT(dms_RPT),dms_PRCP_start_row+12) -> 2025-26 | F64: CRCP_y13 | G64: =INDEX(INDIRECT(dms_RPT),dms_CRCP_start_row+12) -> 2030-31 | H64: FRCP_y13 | I64: =INDEX(INDIRECT(dms_RPT),dms_FRCP_start_row+12) -> 2035-36
B65: 2000-01 | C65: 2001 | D65: PRCP_y14 | E65: =INDEX(INDIRECT(dms_RPT),dms_PRCP_start_row+13) -> 2026-27 | F65: CRCP_y14 | G65: =INDEX(INDIRECT(dms_RPT),dms_CRCP_start_row+13) -> 2031-32 | H65: FRCP_y14 | I65: =INDEX(INDIRECT(dms_RPT),dms_FRCP_start_row+13) -> 2036-37
B66: 2001-02 | C66: 2002 | D66: PRCP_y15 | E66: =INDEX(INDIRECT(dms_RPT),dms_PRCP_start_row+14) -> 2027-28 | F66: CRCP_y15 | G66: =INDEX(INDIRECT(dms_RPT),dms_CRCP_start_row+14) -> 2032-33 | H66: FRCP_y15 | I66: =INDEX(INDIRECT(dms_RPT),dms_FRCP_start_row+14) -> 
B67: 2002-03 | C67: 2003 | D67: PRCP_y16 | E67: =INDEX(INDIRECT(dms_RPT),dms_PRCP_start_row+15) -> 2028-29 | F67: CRCP_y16 | G67: =INDEX(INDIRECT(dms_RPT),dms_CRCP_start_row+15) -> 2033-34 | H67: FRCP_y16 | I67: =INDEX(INDIRECT(dms_RPT),dms_FRCP_start_row+15) -> 
B68: 2003-04 | C68: 2004
B69: 2004-05 | C69: 2005
B70: 2005-06 | C70: 2006 | E70: CRY - FRY
B71: 2006-07 | C71: 2007 | D71: dms_y1 | E71: =IFERROR(INDEX(INDIRECT(dms_RPT),dms_CRY_start_row),0) -> 2021-22
B72: 2007-08 | C72: 2008 | D72: dms_y2 | E72: =IFERROR(INDEX(INDIRECT(dms_RPT),dms_CRY_start_row+1),0) -> 2022-23
B73: 2008-09 | C73: 2009 | D73: dms_y3 | E73: =IFERROR(INDEX(INDIRECT(dms_RPT),dms_CRY_start_row+2),0) -> 2023-24
B74: 2009-10 | C74: 2010 | D74: dms_y4 | E74: =IFERROR(INDEX(INDIRECT(dms_RPT),dms_CRY_start_row+3),0) -> 2024-25
B75: 2010-11 | C75: 2011 | D75: dms_y5 | E75: =IFERROR(INDEX(INDIRECT(dms_RPT),dms_CRY_start_row+4),0) -> 2025-26
B76: 2011-12 | C76: 2012 | D76: dms_y6 | E76: =IFERROR(INDEX(INDIRECT(dms_RPT),dms_CRY_start_row+5),0) -> 2026-27
B77: 2012-13 | C77: 2013 | D77: dms_y7 | E77: =IFERROR(INDEX(INDIRECT(dms_RPT),dms_CRY_start_row+6),0) -> 2027-28
B78: 2013-14 | C78: 2014 | D78: dms_y8 | E78: =IFERROR(INDEX(INDIRECT(dms_RPT),dms_CRY_start_row+7),0) -> 2028-29
B79: 2014-15 | C79: 2015 | D79: dms_y9 | E79: =IFERROR(INDEX(INDIRECT(dms_RPT),dms_CRY_start_row+8),0) -> 2029-30
B80: 2015-16 | C80: 2016 | D80: dms_y10 | E80: =IFERROR(INDEX(INDIRECT(dms_RPT),dms_CRY_start_row+9),0) -> 2030-31
B81: 2016-17 | C81: 2017 | D81: dms_y11 | E81: =IFERROR(INDEX(INDIRECT(dms_RPT),dms_CRY_start_row+10),0) -> 2031-32
B82: 2017-18 | C82: 2018 | D82: dms_y12 | E82: =IFERROR(INDEX(INDIRECT(dms_RPT),dms_CRY_start_row+11),0) -> 2032-33
B83: 2018-19 | C83: 2019 | D83: dms_y13 | E83: =IFERROR(INDEX(INDIRECT(dms_RPT),dms_CRY_start_row+12),0) -> 2033-34
B84: 2019-20 | C84: 2020 | D84: dms_y14 | E84: =IFERROR(INDEX(INDIRECT(dms_RPT),dms_CRY_start_row+13),0) -> 2034-35
B85: 2020-21 | C85: 2021 | D85: dms_y15 | E85: =IFERROR(INDEX(INDIRECT(dms_RPT),dms_CRY_start_row+14),0) -> 2035-36
B86: 2021-22 | C86: 2022 | D86: dms_y16 | E86: =IFERROR(INDEX(INDIRECT(dms_RPT),dms_CRY_start_row+15),0) -> 2036-37
B87: 2022-23 | C87: 2023
B88: 2023-24 | C88: 2024
B89: 2024-25 | C89: 2025
B90: 2025-26 | C90: 2026
B91: 2026-27 | C91: 2027
B92: 2027-28 | C92: 2028
B93: 2028-29 | C93: 2029
B94: 2029-30 | C94: 2030
B95: 2030-31 | C95: 2031
B96: 2031-32 | C96: 2032
B97: 2032-33 | C97: 2033
B98: 2033-34 | C98: 2034
B99: 2034-35 | C99: 2035
B100: 2035-36 | C100: 2036
B101: 2036-37 | C101: 2037

Sheet AER ETL (hidden)
B1: AER ETL INFORMATION
B3: USES NAMED RANGES FLAG | C3: yes | D3: dms_Defined_Names_Used
B5: IF THIS IS AN ABC RIN - make sure the the named range CRY is applied and the named range dms_dollar_nom_UOM is applied
B6: IF THIS IS A RESET RIN - make sure the named ranges CRY and dms_dollar_nom_UOM are NOT present in the workbook
B7: FOR ABC RINS THAT SPAN MULTIPLE YEARS - make sure MultiYear Flag is set and final year entered as required
B9: Full trading name | C9: =INDEX(dms_TradingNameFull_List,MATCH(dms_TradingName,dms_TradingName_List)) -> Australian Gas Networks Limited (reporting data for Albury and Victoria) | E9: dms_TradingNameFull
B10: Trading name | C10: =dms_TradingName -> AGN (Albury and Victoria)
A11: Selected here | B11: Model / RIN | C11: Reset | D11: dms_Model
A12: Read from Business & other details | B12: Source | C12: Regulatory proposal | D12: dms_Source
B13: Data quality | C13: Consolidated | D13: For DB purposes this is always Consoldiated
B14: Data status | C14: Public | D14: For DB purposes this is always Public
B15: Amendment reason | C15: =dms_Amendment_Text -> 0 | F15: dms_AmendmentReason
B16: Submission date | C16: =dms_Typed_Submission_Date -> 2022-07-01 | D16: dms_SubmissionDate
A18: Redundant | B18: EBSS - First application of scheme in forthcoming period? | C18: No
A19: Pre-populated from lookup table | B19: Data ingestion data quality | C19: Consolidated | D19: dms_DataQuality | E19: Always Consolidated
B20: Sector | C20: =INDEX(dms_Sector_List,MATCH(dms_TradingName,dms_TradingName_List)) -> Gas | D20: dms_Sector | E20: =INDEX(dms_Sector_List,MATCH(dms_TradingName,dms_TradingName_List))
B21: Segment | C21: =INDEX(dms_Segment_List,MATCH(dms_TradingName,dms_TradingName_List)) -> Distribution | D21: dms_Segment | E21: =INDEX(dms_Segment_List,MATCH(dms_TradingName,dms_TradingName_List))
B22: Regulatory Year Ending | C22: =IF(dms_MultiYear_Flag=1,LEFT(dms_Specified_FinalYear,2)&RIGHT(dms_Specified_FinalYear,2),dms_RYE_result) -> 2028 | D22: dms_RYE | E22: =IF(dms_MultiYear_Flag=1,LEFT(dms_Specified_FinalYear,2)&RIGHT(dms_Specified_FinalYear,2),dms_RYE_result)
B23: Reporting Period Type | C23: =INDEX(dms_RPT_List,MATCH(dms_TradingName,dms_TradingName_List)) -> Financial | D23: dms_RPT | E23: =INDEX(dms_RPT_List,MATCH(dms_TradingName,dms_TradingName_List))
B24: EB/CA Unit of Measure for Monetary Values | C24: $0s | D24: dms_dollar_nom_UOM | E24: If the cover sheet is attached to an ABC RIN apply the NAMED RANGE to the cell
B25: Security Classification | C25: Public | D25: dms_Classification | E25: Always Public
B26: Jurisdiction | C26: =INDEX(dms_JurisdictionList,MATCH(dms_TradingName,dms_TradingName_List)) -> Vic | D26: dms_Jurisdiction | E26: =INDEX(dms_JurisdictionList,MATCH(dms_TradingName,dms_TradingName_List))
A27: Relevant for PTRM, RFMs and Reset RINS | B27: $ REAL REFERENCES
B28: Does the named range CRY exist in this file? | C28: =IFERROR(CRY,"NO") -> NO
B29: CRY-1 (last full calendar year before CRY) | C29: =IFERROR(IF(dms_RPT="calendar",CRY-1,LEFT(CRY,4)),"CRY not present") -> CRY not present | D29: dms_Cal_Year_B4_CRY | E29: '=IF(dms_RPT="financial",VALUE(LEFT(dms_SingleYear_FinalYear_Result,4)),VALUE(LEFT(dms_SingleYear_FinalYear_Result,4)-1))
B30: Dollar $ real month | C30: =INDEX(dms_RPTMonth_List,MATCH(dms_TradingName,dms_TradingName_List)) -> June | D30: dms_RPTMonth | E30: =INDEX(dms_RPTMonth_List,MATCH(dms_TradingName,dms_TradingName_List))
B31: Dollar $ real (the last month before the FRCP_y1) | C31: =IF(dms_Model="RFM",dms_DollarReal_Prev, IF(dms_SingleYearModel="yes",CONCATENATE(dms_RPTMonth)&" "&VALUE((LEFT(dms_CRY_start_year,2)&RIGHT(dms_CRY_start_year,2))),CONCATENATE(dms_RPTMonth)&" "&dms_DollarReal_year)) -> June 2023 | D31: dms_DollarReal | E31: =IF(dms_Model="RFM",dms_DollarReal_Prev, IF(dms_SingleYearModel="yes",CONCATENATE(dms_RPTMonth)&" "&VALUE((LEFT(dms_CRY_start_year,2)&RIGHT(dms_CRY_start_year,2))),CONCATENATE(dms_RPTMonth)&" "&dms_DollarReal_year))
B32: Dollar $ real previous year (PRCP_y5) | C32: December 2017 | D32: dms_DollarReal_Prev | E32: =IF(SUM(dms_SingleYear_Model)>0,CONCATENATE(dms_RPTMonth)&" "&VALUE(((LEFT(CRY,2))&RIGHT(CRY,2))-1),CONCATENATE(dms_RPTMonth)&" "&VALUE(((LEFT(dms_CRCP_FirstYear_Result,2)&RIGHT(dms_CRCP_FirstYear_Result,2))))-1)
B33: PTRM/ RFMs
B34: Form of control | C34: =INDEX(dms_FormControl_List,MATCH(dms_TradingName,dms_TradingName_List)) -> Tariff cap | D34: dms_FormControl | E34: =INDEX(dms_FormControl_List,MATCH(dms_TradingName,dms_TradingName_List))
A35: All potential values for Regulatory Years or RYEs as calculated | B35: This block works out the various RYE's for ALL RIN types and MODELS
B36: dms_start_year | C36: =FRCP_y1 -> 2023-24 | D36: =FRCP_y1 | E36: FRCP_y1 from cover sheet
B37: dms_CRY_start_year | C37: =IFERROR(CRY,CRCP_y4) -> 2021-22 | D37: =IFERROR(CRY,CRCP_y4)
B38: dms_CRY_start_row | C38: =IFERROR(MATCH(dms_CRY_start_year,INDIRECT(dms_RPT),0),0) -> 35 | D38: =IFERROR(MATCH(dms_CRY_start_year,INDIRECT(dms_RPT),0),0)
B39: dms_FRCP_start_row | C39: =MATCH(dms_start_year,INDIRECT(dms_RPT),0) -> 37 | D39: =MATCH(dms_start_year,INDIRECT(dms_RPT),0) | E39: Uses FRCP_y1 as a start reference
B40: dms_CRCP_start_row | C40: =dms_FRCP_start_row-dms_CRCPlength_Num -> 32 | D40: =dms_FRCP_start_row-dms_CRCPlength_Num | E40: Uses the value in dms_CRCPlength_Num
B41: dms_PRCP_start_row | C41: =dms_FRCP_start_row-dms_CRCPlength_Num-dms_PRCPlength_Num -> 27 | D41: =dms_FRCP_start_row-dms_CRCPlength_Num-dms_PRCPlength_Num | E41: Uses the value in dms_CRCPlength_Num and dms_PRCPlength_Num
B42: dms_RYE_start_row | C42: =dms_FRCP_start_row+(dms_FRCPlength_Num-1) -> 41 | D42: =dms_FRCP_start_row+(dms_FRCPlength_Num-1) | E42: Uses the value in dms_FRCPlength_Num-1
B43: FRCP_start_year | C43: =INDEX(INDIRECT(dms_RPT),dms_FRCP_start_row) -> 2023-24 | D43: =INDEX(INDIRECT(dms_RPT),dms_FRCP_start_row) | E43: Converts the FRCP start row to display the year
B44: CRCP_start_year | C44: =INDEX(INDIRECT(dms_RPT),dms_CRCP_start_row) -> 2018-19 | D44: =INDEX(INDIRECT(dms_RPT),dms_CRCP_start_row) | E44: Converts the CRCP start row to display the year
B45: PRCP_start_year | C45: =INDEX(INDIRECT(dms_RPT),dms_PRCP_start_row) -> 2013-14 | D45: =INDEX(INDIRECT(dms_RPT),dms_PRCP_start_row) | E45: Converts the PRCP start row to display the year
B46: FRCP_final_year | C46: =INDEX(INDIRECT(dms_RPT),dms_FRCP_start_row+dms_FRCPlength_Num-1) -> 2027-28 | D46: =INDEX(INDIRECT(dms_RPT),dms_FRCP_start_row+dms_FRCPlength_Num-1) | E46: Finds the FRCP final year
B47: CRCP_final_year | C47: =INDEX(INDIRECT(dms_RPT),dms_CRCP_start_row+dms_CRCPlength_Num-1) -> 2022-23 | D47: =INDEX(INDIRECT(dms_RPT),dms_CRCP_start_row+dms_CRCPlength_Num-1) | E47: Finds the CRCP final year
B48: PRCP_final_year | C48: =INDEX(INDIRECT(dms_RPT),dms_PRCP_start_row+dms_FRCPlength_Num-1) -> 2017-18 | D48: =INDEX(INDIRECT(dms_RPT),dms_PRCP_start_row+dms_FRCPlength_Num-1) | E48: Finds the PRCP final year
B49: dms_Reset_final_year | C49: =INDEX(INDIRECT(dms_RPT),dms_RYE_start_row) -> 2027-28 | D49: =INDEX(INDIRECT(dms_RPT),dms_RYE_start_row) | E49: For Resets and PTRM/RFMs (same as FRCP_final_year)
B50: dms_SpecifiedYear_final_year | C50: =FRY -> 2027-28 | D50: =FRY | E50: FRY from cover sheet
B51: dms_DollarReal_year | C51: =LEFT(CRCP_final_year,2)&RIGHT(CRCP_final_year,2) -> 2023 | D51: =LEFT(CRCP_final_year,2)&RIGHT(CRCP_final_year,2) | E51: Uses the value in CRCP_final_year
B52: dms_Previous_DollarReal_year | C52: =LEFT(PRCP_final_year,2)&RIGHT(PRCP_final_year,2) -> 2018 | D52: =LEFT(PRCP_final_year,2)&RIGHT(PRCP_final_year,2) | E52: Uses the value in PRCP_final_year
B53: dms_CRY_RYE | C53: =IFERROR(LEFT(CRY,2)&RIGHT(CRY,2),0) -> 0 | D53: =IFERROR(LEFT(CRY,2)&RIGHT(CRY,2),0) | E53: For ABC single year RINS
B54: dms_Reset_RYE | C54: =IF(dms_Model_Span>1,IF(dms_Model="RFM",(LEFT(dms_DollarReal_year,2)&RIGHT(dms_DollarReal_year,2)),(LEFT(dms_Reset_final_year,2)&RIGHT(dms_Reset_final_year,2))),0) -> 2028 | D54: =IF(dms_Model_Span>1,IF(dms_Model="RFM",(LEFT(dms_DollarReal_year,2)&RIGHT(dms_DollarReal_year,2)),(LEFT(dms_Reset_final_year,2)&RIGHT(dms_Reset_final_year,2))),0) | E54: If model span > 1 then uses dms_Reset_RYE otherwise it's a multi year ABC and uses dms_Specified_RYE
B55: dms_Specified_RYE | C55: =IF(dms_MultiYear_ResponseFlag="Yes",(LEFT(dms_Specified_FinalYear,2)&RIGHT(dms_Specified_FinalYear,2)),0) -> 0 | D55: =IF(dms_MultiYear_ResponseFlag="Yes",(LEFT(dms_Specified_FinalYear,2)&RIGHT(dms_Specified_FinalYear,2)),0) | E55: If multi year ABC - uses dms_Specified_FinalYear
B56: dms_Model_Span | C56: =INDEX(dms_Model_Span_List,MATCH(dms_Model,dms_Model_List)) -> 5 | D56: =INDEX(dms_Model_Span_List,MATCH(dms_Model,dms_Model_List)) | E56: A result of 5 is used to signify that it is more than 1 year span
B57: dms_RYE_result | C57: =IF(dms_MultiYear_ResponseFlag="yes",dms_Specified_RYE,(IF(dms_Model_Span>1,dms_Reset_RYE,dms_CRY_RYE))) -> 2028 | D57: =IF(dms_MultiYear_ResponseFlag="yes",dms_Specified_RYE,(IF(dms_Model_Span>1,dms_Reset_RYE,dms_CRY_RYE))) | E57: Nested IF - feeds into dms_RYE
B58: dms_Reset_Span | C58: =IF(dms_Reset_RYE>0,CONCATENATE(FRCP_y1," to ",FRCP_final_year),0) -> 2023-24 to 2027-28 | D58: =IF(dms_Reset_RYE>0,CONCATENATE(FRCP_y1," to ",FRCP_final_year),0) | E58: Reset span of years as text
B59: dms_SpecifiedYear_Span | C59: =IF(dms_Specified_RYE>0,CONCATENATE(CRY," to ",dms_Specified_FinalYear),0) -> 0 | D59: =IF(dms_Specified_RYE>0,CONCATENATE(CRY," to ",dms_Specified_FinalYear),0) | E59: Multi year ABC span of years as text
B60: dms_Header_Span | C60: =IF(dms_MultiYear_Flag=1,dms_SpecifiedYear_Span,IF(dms_Model_Span>1,dms_y1&" to "&FRCP_final_year,CRY)) -> 2021-22 to 2027-28 | D60: =IF(dms_MultiYear_Flag=1,dms_SpecifiedYear_Span,IF(dms_Model_Span>1,dms_Reset_Span,CRY)) | E60: NESTED IF - for Sheet Headers
B61: ABC RINS THAT SPAN MULTIPLE YEARS
B62: This is a multi year ABC RIN? | C62: No
C63: =IF(dms_MultiYear_ResponseFlag="No",0,1) -> 0 | D63: dms_MultiYear_Flag | E63: This is set from the answer provided above
C64: =IF(dms_MultiYear_Flag=1,FRY,"not a Multiple year submission") -> not a Multiple year submission | D64: dms_Specified_FinalYear | E64: The result here is returned to dms_CRCP_FinalYear_Result if response to Q in C73 is "yes" and dms_MultiYear_Flag is set to 1
B65: Start year for 5.2 in Multi year ABC RINS | C65: =IFERROR(IF(dms_MultiYear_Flag=1,FRY,CRY),"not an ABC") -> not an ABC | D65: dms_0502_Inst_Year | E65: =IF(dms_MultiYear_Flag=1,FRY,CRY) | G65: For single year RINS this is CRY - multi year RINS need to start a the end of the span of years (ie. FRY)
B66: WHAT IS THE RYE?
B67: Reg Period Lengths
B68: PRCP length in years | C68: =INDEX(dms_PRCPlength_List,MATCH(dms_TradingName,dms_TradingName_List)) -> 5 | D68: dms_PRCPlength_Num | E68: =INDEX(dms_PRCPlength_List,MATCH(dms_TradingName,dms_TradingName_List))
B69: CRCP length in years | C69: =INDEX(dms_CRCPlength_List,MATCH(dms_TradingName,dms_TradingName_List)) -> 5 | D69: dms_CRCPlength_Num | E69: =INDEX(dms_CRCPlength_List,MATCH(dms_TradingName,dms_TradingName_List))
B70: FRCP length in years | C70: =INDEX(dms_FRCPlength_List,MATCH(dms_TradingName,dms_TradingName_List)) -> 5 | D70: dms_FRCPlength_Num | E70: =INDEX(dms_FRCPlength_List,MATCH(dms_TradingName,dms_TradingName_List))
B71: Single year RIN?
B72: Single Year ABC RIN ? | C72: =IF(dms_Model="EB",1,0) -> 0 | D72: dms_EB
C73: =IF(dms_Model="CA",1,0) -> 0 | D73: dms_CA | E73: =dms_SingleYear_Model
C74: =IF(dms_Model="ARR",1,0) -> 0 | D74: dms_ARR
B75: Is this a single Year ABC RIN? | C75: =IF(SUM(dms_SingleYear_Model)=1,"yes","no") -> no | D75: dms_SingleYearModel | E75: =IF(SUM(dms_SingleYear_Model)=1,"yes","no")
B76: Single Year Final Year Result | C76: =IF(AND(dms_SingleYearModel="yes",dms_MultiYear_Flag=0),CRY,0) -> 0 | D76: dms_SingleYear_FinalYear_Result | E76: =IFERROR(IF(SUM(dms_SingleYear_Model)<>0,(INDIRECT(dms_SingleYear_FinalYear_Ref)),"not a single year RIN"),"CRY not present")
B77: Multi year RIN?
B79: Multi Year Reset/Model? | C79: =IF(dms_Model_Span>1,"yes","no") -> yes
B80: Final year result for Reset/Model | C80: =IF(dms_Model_Span>1,dms_Reset_final_year,0) -> 2027-28 | D80: dms_MultiYear_FinalYear_Result | E80: dms_CRCP_FinalYear_Result
B82: Multi Year ABC RIN? | C82: =IF(dms_MultiYear_Flag=1,"yes","no") -> no | D82: dms_MultiYear_ABC_RIN
B83: Final year result for ABC multi year | C83: =IF(dms_MultiYear_Flag=1,C50,0) -> 0
B85: EB RINS
B86: Calendar Year for table 3.6 data | C86: =IFERROR(IF(dms_Segment="Transmission",dms_Cal_Year_B4_CRY,CRY),"CRY not present") -> CRY not present | D86: dms_0306_Year | E86: =IF(dms_Segment="Transmission",dms_Cal_Year_B4_CRY,CRY)
B87: CA RINS
B88: Find how many rows in tables 6.3 sustained interruptions? | E88: dms_060301_MaxRows only returns a valid value when cover sheet is attached to a CA file
C89: =IF(dms_Model<>"CA","not a CA","Is a CA") -> not a CA | E89: =IF(dms_Model<>"CA","not a CA","Is a CA")
B90: dms_060301_Avg_Duration_Sustained_Int_Values present? | C90: =IFERROR(IF(INDEX(dms_060301_Avg_Duration_Sustained_Int_Values,1,1)<>"","yes","no"),"no") -> no | D90: dms_060301_checkvalue | E90: =IFERROR(IF(INDEX(dms_060301_Avg_Duration_Sustained_Int_Values,1,1)<>"","yes","no"),"no")
C91: =IF(AND(dms_Model="CA",(dms_060301_checkvalue="no")),"error - NR not present","no errors") -> no errors | E91: =IF(AND(dms_Model="CA",(dms_060301_checkvalue="no")),"error - NR not present","no errors")
B92: Table 6.3.1 - last row reference | C92: =IFERROR(IF(dms_Model="CA",LOOKUP(2,1/(dms_060301_Avg_Duration_Sustained_Int_Values<>""),(ROW(dms_060301_Avg_Duration_Sustained_Int_Values))),"not a CA"),"6.3 not present") -> not a CA | D92: dms_060301_LastRow | E92: =IFERROR(IF(dms_Model="CA",LOOKUP(2,1/(dms_060301_Avg_Duration_Sustained_Int_Values<>""),(ROW(dms_060301_Avg_Duration_Sustained_Int_Values))),"not a CA"),"6.3 not present")
B93: Table 6.3.1 - max number rows | C93: =IFERROR(IF(dms_Model="CA",(dms_060301_LastRow-15),"not a CA"),"error") -> not a CA | D93: dms_060301_MaxRows | E93: =IFERROR(IF(dms_Model="CA",(dms_060301_LastRow-15),"not a CA"),"error")
B94: Table 6.6.3 - Public lighting repair - no. business days | C94: =INDEX(dms_663_List,MATCH(dms_TradingName,dms_TradingName_List)) -> x | D94: dms_663 | E94: =INDEX(dms_663_List,MATCH(dms_TradingName,dms_TradingName_List))
B95: ARR or RESET RINS
B96: How many rows in tables 6.1 or 6.7? (leap year?) | C96: insert dms_LeapYear NR if required | E96: 'dms_LeapYear is used to determine dms_060701_Max_Rows BUT it is only found on worksheet 6.1 or 6.7 and the date value in the cell is used to determine whether it is a leap year
B97: Is dms_LeapYear named range present? | C97: =IFERROR(IF(dms_LeapYear,"yes"),"no") -> no
B98: Table 6.7.1 - includes a leap year? | C98: =IFERROR(IF(MONTH(DATE(YEAR(dms_LeapYear),2,29))=2,"is a leap year","not a leap year"), "dms_LeapYear not present") -> dms_LeapYear not present | D98: dms_LeapYear_Result | E98: =IFERROR(IF(MONTH(DATE(YEAR(dms_LeapYear),2,29))=2,"is a leap year","not a leap year"),"dms_LeapYear not present")
B99: MaxRows if Reset and leap year | C99: =IF(dms_LeapYear_Result="is a leap year",1827,1826) -> 1826 | D99: dms_060701_Reset_MaxRows | E99: =IF(dms_LeapYear_Result="is a leap year",1827,1826) | H99: number of days present in Reset RIN table
B100: MaxRows if ARR and leap year | C100: =IF(dms_LeapYear_Result="is a leap year",366,365) -> 365 | D100: dms_060701_ARR_MaxRows | E100: =IF(dms_LeapYear_Result="is a leap year",366,365) | H100: number of days present in ARR RIN table
B101: Table 6.7.1 - Max Rows (leap year/ non leap year) | C101: =IF(dms_Model="ARR",dms_060701_ARR_MaxRows,IF(dms_Model="Reset",dms_060701_Reset_MaxRows,"not a relevant RIN type")) -> 1826 | D101: dms_060701_MaxRows | E101: =IF(dms_Model="ARR",dms_060701_ARR_MaxRows,IF(dms_Model="Reset",dms_060701_Reset_MaxRows,"not a relevant RIN type"))
B102: How many columns in 6.7? (4 or 5 feeder categories) | C102: =IF(dms_FifthFeeder_flag_NSP="NO","This NSP has only 4 feeder categories","This NSP has 5 feeder categories") -> This NSP has only 4 feeder categories
B103: Table 6.7.1 - Last column (# of feeder categories > 4) | C103: =IF(dms_FifthFeeder_flag_NSP="NO",10,12) -> 10 | D103: dms_060701_MaxCols | E103: =IF(dms_FifthFeeder_flag_NSP="NO",8,10)
B104: Table 6.7.1 - Number of offset rows | C104: =IF(dms_Model="ARR",15,9) -> 9 | D104: dms_060701_OffsetRows | E104: =IF(dms_Model="ARR",15,9)
B105: Start date for telephone answering in 6.1 or 6.7? | E105: Using 060101 as naming standard not 060701 for start dates
B106: Table 6.1.1 and 6.7.1 - Start Date as Text | C106: =IF(dms_SingleYearModel="yes",(CONCATENATE(IF(LEN(CRY)=4,"1-Jan-","1-Jul-"),LEFT(CRY,4))),(CONCATENATE(IF(LEN(PRCP_y4)=4,"1-Jan-","1-Jul-"),LEFT(PRCP_y4,4)))) -> 1-Jul-2016 | D106: dms_060101_StartDateTxt | E106: =IF(SUM(dms_SingleYear_Model)>1,(CONCATENATE(IF(LEN(CRY)=4,"1-Jan-","1-Jul-"),LEFT(CRY,4))),(CONCATENATE(IF(LEN(CRCP_y4)=4,"1-Jan-","1-Jul-"),LEFT(CRCP_y4,4))))
B107: Table 6.1.1 and 6.7.1 - Start Date as Date Value | C107: =DATEVALUE(dms_060701_StartDateTxt) -> 42552 | D107: dms_060101_StartDateVal | E107: =DATEVALUE(dms_060701_StartDateTxt)
B108: ARRs
B109: How many rows in table 6.8? | C109: insert dms_060801_StartCell NR if required | E109: dms_060801_StartCell is only found on worksheet 6.8 and is used to determine the starting date for the date range
B110: Is dms_060801_StartCell named range present? | C110: =IFERROR(IF((ROW(dms_060801_StartCell)-1)=1,"yes","yes"),"no") -> no | D110: Must be present for ARRs | E110: =IFERROR(IF((ROW(dms_060801_StartCell)-1)=1,"yes","yes"),"no")
B111: Table 6.8 - Number of offset rows | C111: 12 | D111: dms_0608_OffsetRows | E111: =IFERROR(IF(dms_Model="ARR",(ROW(dms_060801_StartCell)-1),"not an ARR"),"6.8 error")
B112: Table 6.8 - Last row | C112: =IFERROR(IF(dms_060801_StartCell<>"",IF(dms_Model="ARR",(LOOKUP(2,1/(dms_060801_01_Values<>""),(ROW(dms_060801_01_Values)))),"not an ARR"),0),"0") -> 0 | D112: dms_0608_LastRow | E112: =IFERROR(IF(dms_060801_StartCell<>"",IF(dms_Model="ARR",(LOOKUP(2,1/(dms_060801_01_Values<>""),(ROW(dms_060801_01_Values)))),"not an ARR"),0),"0")
B113: Table 6.8 - MaxRows | C113: =IFERROR(IF(dms_Model="ARR",(MAX(0,dms_0608_LastRow-dms_0608_OffsetRows)),"not an ARR"),"0") -> not an ARR | D113: dms_060801_MaxRows | E113: =IFERROR(IF(dms_Model="ARR",(MAX(0,dms_0608_LastRow-dms_0608_OffsetRows)),"not an ARR"),"0")
B114: TNSP RESET RINS
B115: Table 7.9.4 only appears in TNSPs Reset RIN
B116: Table 7.9.4 - first year | C116: =LEFT(PRCP_y3,4) -> 2015 | D116: dms_070904_Start_Year | E116: =LEFT(PRCP_y3,4)
B118: MISC
B119: Distribution Determination Reference | C119: =INDEX(dms_DeterminationRef_List,MATCH(dms_TradingName,dms_TradingName_List)) -> 0 | D119: dms_DeterminationRef
B120: Public lighting NSP? | C120: =INDEX(dms_Public_Lighting_List,MATCH(dms_TradingName,dms_TradingName_List)) -> NO | D120: dms_Public_Lighting | E120: =INDEX(dms_Public_Lighting_List,MATCH(dms_TradingName,dms_TradingName_List))
B121: CBD Feeder for this business | C121: =INDEX(dms_CBD_flag,MATCH(dms_TradingName,dms_TradingName_List)) -> NO | D121: dms_CBD_flag_NSP
B122: Urban Feeder for this business | C122: =INDEX(dms_Urban_flag,MATCH(dms_TradingName,dms_TradingName_List)) -> NO | D122: dms_Urban_flag_NSP
B123: Short rural Feeder for this business | C123: =INDEX(dms_ShortRural_flag,MATCH(dms_TradingName,dms_TradingName_List)) -> NO | D123: dms_ShortRural_flag_NSP
B124: Long rural Feeder for this business | C124: =INDEX(dms_LongRural_flag,MATCH(dms_TradingName,dms_TradingName_List)) -> NO | D124: dms_LongRural_flag_NSP
B125: Fifth Feeder Category (eg. TasNetworks (D)) | C125: =INDEX(dms_FeederType_5_flag,MATCH(dms_TradingName,dms_TradingName_List)) -> NO | D125: dms_FifthFeeder_flag_NSP | E125: =INDEX(dms_FeederType_5_flag,MATCH(dms_TradingName,dms_TradingName_List))
B127: DISCARD FILES
B128: discard this record? | C128: NO | D128: dms_DISCARD | E128: If record is to be discarded from DB set this flag to YES
B130: SUBSET FILES
B131: Is this Submission File a Subset File | C131: NO | D131: dms_Partial
B134: REGULATORY YEARS FOR MULTI RYE SUBMISSIONS
B135: Multiple RYE flag | C135: NO | D135: dms_Multi_RYE_flag
C136: Manually specify RYE | D136: Named ranges to apply
C137: 2013 | D137: dms_RYE_01
C138: 2014 | D138: dms_RYE_02
C139: 2015 | D139: dms_RYE_03
C140: 2016 | D140: dms_RYE_04
C141: 2017 | D141: dms_RYE_05
C142: 2018 | D142: dms_RYE_06
C143: 2019 | D143: dms_RYE_07
C144: 2020 | D144: dms_RYE_08
C145: 2021 | D145: dms_RYE_09

Sheet Instructions
B2: =CONCATENATE(dms_Sector," ",dms_Segment," ", "Pipeline Service Provider") -> Gas Distribution Pipeline Service Provider
B3: =IF(dms_Model="Reset","Regulatory Proposal RIN Template","Annual Reporting RIN") -> Regulatory Proposal RIN Template
B5: INSTRUCTIONS
B6: GENERAL | C6: Complete the Business & other details worksheet before entering data or values in any other worksheets. The Business & other details worksheet is linked to other worksheets within the workbook and automatically generates certain column headings and conditional formatting.
B8: CONFIDENTIAL INFORMATION | C8: Please use the macro at the top of each worksheet to identify confidential information in the confidential workbook.
C9: -Do this by selecting the cell or cells that contain confidential information and then run the Mark selection as CONFIDENTIAL macro. This will format the cells a specific colour that is identified by the AER's database which in turn marks that information as confidential. -To reverse this, select the cell or cells and run the Return selection to NON-CONFIDENTIAL macro.
B11: RESPONSES | C11: Please return two (2) files to the AER: 1. A confidential version which must contain a complete set of all responses with confidential information marked using the Mark selection CONFIDENTIAL macro and which has been completed using the locked template file provided by the AER. 2. A public version with confidential information either removed completely or aggregated in some form together with writtten consent to disclose the public version of the response. Use the drop down box on the Business and other details worksheet to identify the file as either confidential ('consolidated') or public.
B13: AMENDMENTS | C13: If an NSP wishes to correct data previously submitted to the AER it should resubmit that data using the original completed submission as the starting point. Please make any necessary changes to the data. Data that is not being amended should be left unchanged. NSPs must identify the reason for the amendments in the Amendment Reason box on the Business and other details worksheet. NSPs may provide further details regarding any amendments in the Amendments worksheet. .
C14: NSP may use Amended Data macro to highlight cells that contain amended data. NB: if data is also CONFIDENTIAL, re-apply the Confidentiality macro after applying the Amended macro
C15: Please resubmit two (2) files - a confidential version and a public version of the amended submission to the AER
B17: UNITS OF MEASURE | C17: All amounts are to be unrounded and reported on a one for one basis: that is 1000 is to be entered as '1000'. Applicable units of measure may be identified in the table column headings or row descriptors.
B19: INPUT / NON-INPUT CELLS
D20: Yellow = Input cell (mandatory)
D21: Darker yellow = input cell (mandatory)
D22: Orange = input cell (if data available)
D23: Grey = Not applicable/No inputs required
D24: PLEASE DO NOT ENTER TEXT into cells that are to contain numeric data.
B27: NAVIGATION | C27: Many tables in the worksheets have been "grouped" to allow for easy navigation. To ungroup or group data use the outline symbols in the left margin (for Row groupings) or above the columns (for column groupings).

Sheet CONTENTS
B1: =INDEX(dms_Worksheet_List,MATCH(dms_Model,dms_Model_List)) -> REGULATORY REPORTING STATEMENT
B2: =dms_TradingName -> AGN (Albury and Victoria)
B3: =dms_Header_Span -> 2021-22 to 2027-28
C7: CONTENTS
C9: TEMPLATE DATE | D9: FINAL RIN MARCH 2022
C11: SUBMISSION | D11: Business & other details
C13: EXPENDITURE | D13: E1. Expenditure Summary
D14: E2. Mains Repex
D15: E3. Mains Augex
D16: E4. Meter replacement
D17: E5. New Connections
D18: E6. Non-network
D19: E10. Overheads
D20: E12. ICT
D21: E13. Other capex
D22: E17. Step changes
D23: E20. Opex
D24: E21. ARS
D25: E25. Escalators
C27: NETWORK | D27: N1. Demand
D28: N2. Network characteristcs
C30: SERVICE | D30: S1.1. Customer numbers - by customer type
D31: S1.2. Customer numbers - by tariff
D32: S10. Supply Quality
D33: S11. Network reliability
C35: FINANCIAL | D35: F3. Revenue
C37: ADMIN | D37: Additional disclosures

Sheet Business & other details
V1: =INDEX(dms_Worksheet_List,MATCH(dms_Model,dms_Model_List)) -> REGULATORY REPORTING STATEMENT
V2: =dms_TradingName -> AGN (Albury and Victoria)
V3: =dms_Header_Span -> 2021-22 to 2027-28
V4: BUSINESS & OTHER DETAILS
V6: INSTRUCTIONS
V7: Complete the following business details regulatory template before entering data or values in any other regulatory template. This regulatory template is linked to other cells within the spreadsheet and automatically generates column headings and conditional formatting to distinguish business specific input and non-input cells.
Q9: SUBMISSION PARTICULARS INPUT SHEET
V12: ENTITY DETAILS
V14: Business Name
V16: Short name | AL16: AGN (Albury and Victoria)
V17: ACN/ABN | AL17: =INDEX(dms_ABN_List,MATCH(dms_TradingName,dms_TradingName_List)) -> 19078551685
V21: Business Address | BQ21: Postal Address
V23: Address 1 | AL23: =INDEX(dms_Addr1_List,MATCH(dms_TradingName,dms_TradingName_List)) -> Level 6 | BI23: Address 1
V24: Address 2 | AL24: =IF(ISBLANK(INDEX(dms_Addr2_List,MATCH(dms_TradingName,dms_TradingName_List))),"",(INDEX(dms_Addr2_List,MATCH(dms_TradingName,dms_TradingName_List)))) -> 400 King William Street | BI24: Address 2
V25: Suburb | AL25: =INDEX(dms_Suburb_List,MATCH(dms_TradingName,dms_TradingName_List)) -> ADELAIDE | BI25: Suburb
V26: State | AL26: =INDEX(dms_State_List,MATCH(dms_TradingName,dms_TradingName_List)) -> SA | AV26: Post code | AX26: =INDEX(dms_PostCode_List,MATCH(dms_TradingName,dms_TradingName_List)) -> 5000 | BI26: State | BQ26: =INDEX(dms_PState_List,MATCH(dms_TradingName,dms_TradingName_List)) -> SA | CA26: Post code
BA28: `
V30: Contact Names
V32: Name | BI32: Name
V33: Phone | BI33: Phone
V34: Email | BI34: Email
Q39: REGULATORY CONTROL PERIODS
Z42: Forthcoming period | AL42: 2023-24 | AU42: =FRCP_y2 -> 2024-25 | BD42: =FRCP_y3 -> 2025-26 | BM42: =FRCP_y4 -> 2026-27 | BV42: =FRCP_y5 -> 2027-28
AL43: =FRCP_y6 -> 2028-29 | AU43: =FRCP_y7 -> 2029-30 | BD43: =FRCP_y8 -> 2030-31 | BM43: =FRCP_y9 -> 2031-32 | BV43: =FRCP_y10 -> 2032-33
AL44: =FRCP_y11 -> 2033-34 | AU44: =FRCP_y12 -> 2034-35 | BD44: =FRCP_y13 -> 2035-36 | BM44: =FRCP_y14 -> 2036-37 | BV44: =FRCP_y15 -> 
Z46: Transitional period | AL46: 1 January 2023 to 30 June 2023
X48: RESETS | Z48: Current period | AL48: 2018 | AU48: 2019 | BD48: 2020 | BM48: 2021 | BV48: 2022
AL49: =CRCP_y6 -> 2023-24 | AU49: =CRCP_y7 -> 2024-25 | BD49: =CRCP_y8 -> 2025-26 | BM49: =CRCP_y9 -> 2026-27 | BV49: =CRCP_y10 -> 2027-28
AL50: =CRCP_y11 -> 2028-29 | AU50: =CRCP_y12 -> 2029-30 | BD50: =CRCP_y13 -> 2030-31 | BM50: =CRCP_y14 -> 2031-32 | BV50: =CRCP_y15 -> 2032-33
Z52: Previous period | AL52: 2013 | AU52: 2014 | BD52: 2015 | BM52: 2016 | BV52: 2017
AL53: =PRCP_y6 -> 2018-19 | AU53: =PRCP_y7 -> 2019-20 | BD53: =PRCP_y8 -> 2020-21 | BM53: =PRCP_y9 -> 2021-22 | BV53: =PRCP_y10 -> 2022-23
AL54: =PRCP_y11 -> 2023-24 | AU54: =PRCP_y12 -> 2024-25 | BD54: =PRCP_y13 -> 2025-26 | BM54: =PRCP_y14 -> 2026-27 | BV54: =PRCP_y15 -> 2027-28
Z56: Commencing year | AL56: 2023-24
X57: ANNUAL RINS
Z58: Final year | AL58: 2027-28
Q62: SUBMISSION DETAILS
Z64: RIN type | AL64: =INDIRECT(dms_Model) -> Regulatory Reporting (Reset)
Z66: Source | AL66: Regulatory proposal
X68: THIS FILE | Z68: Data Quality | AL68: Consolidated
Z70: Confidentiality Status | AL70: Public
Z72: Amended RIN Amendment Reason
Z76: Submission Date | AL76: 2022-07-01 | BD76: Please enter date this file submitted to AER

Sheet E1. Expenditure Summary
B1: =INDEX(dms_Worksheet_List,MATCH(dms_Model,dms_Model_List)) -> REGULATORY REPORTING STATEMENT
B2: =dms_TradingName -> AGN (Albury and Victoria)
B3: =dms_Header_Span -> 2021-22 to 2027-28
B4: E1. EXPENDITURE SUMMARY
B7: E1.1 - CAPEX
B8: E1.1.1 - REFERENCE SERVICES
C9: EXPENDITURE
C10: =CONCATENATE("$0's, real ",dms_DollarReal) -> $0's, real June 2023
C11: =VLOOKUP(CRCP_y4,'AER lookups'!$B$52:$C$101,2,0) -> 2022 | D11: =CONCATENATE("1 Jan-30 Jun "&(C11+1)) -> 1 Jan-30 Jun 2023 | E11: =FRCP_y1 -> 2023-24 | F11: =FRCP_y2 -> 2024-25 | G11: =FRCP_y3 -> 2025-26 | H11: =FRCP_y4 -> 2026-27 | I11: =FRCP_y5 -> 2027-28
B12: Connections | C12: =+'E5. New Connections'!D68 -> 0 | D12: =+'E5. New Connections'!E68 -> 0 | E12: 52049779.94 | F12: 47598775.72 | G12: 46412863.95 | H12: 46855622.52 | I12: 47083191.74
B13: Mains replacement | C13: =+'E2. Mains Repex'!D418+'E2. Mains Repex'!D175 -> 0 | D13: =+'E2. Mains Repex'!E418+'E2. Mains Repex'!E175 -> 0 | E13: 5673273.429 | F13: 5689938.746 | G13: 5713084.376 | H13: 5737529.716 | I13: 5753952.719
B14: Mains augmentation | C14: =+'E3. Mains Augex'!C175 -> 0 | D14: =+'E3. Mains Augex'!D175 -> 0 | E14: 13595126.12 | F14: 394213.679 | G14: 6423603.403 | H14: 6818842.982 | I14: 2303310.335
B15: Telemetry | C15: =+'E6. Non-network'!C66 -> 491978.9967 | D15: =+'E6. Non-network'!D66 -> 447537.2502 | E15: 1117706.4 | F15: 907666.1624 | G15: 891980.3044 | H15: 899103.4666 | I15: 851671.6115
B16: Meter replacement | C16: =+'E4. Meter replacement'!C20+'E4. Meter replacement'!C56 -> 0 | D16: =+'E4. Meter replacement'!D20+'E4. Meter replacement'!D56 -> 0 | E16: 7367250.953 | F16: 4672039.853 | G16: 14177860.94 | H16: 8470588.496 | I16: 8538020.595
B17: ICT | C17: =+'E12. ICT'!C44+'E12. ICT'!C63+'E12. ICT'!C82+'E12. ICT'!C101 -> 12264326.47 | D17: =+'E12. ICT'!D44+'E12. ICT'!D63+'E12. ICT'!D82+'E12. ICT'!D101 -> 4594305.908 | E17: 15328187.1 | F17: 11809493.22 | G17: 11889313.36 | H17: 19281073.88 | I17: 20953505.49
B18: Capitalised network overheads | C18: =+'E10. Overheads'!C17 -> 16492592.21 | D18: =+'E10. Overheads'!D17 -> 8801706.953 | E18: 4908372.599 | F18: 4600800.322 | G18: 4761538.91 | H18: 4533500.662 | I18: 4485258.416
B19: Capitalised corporate overheads | C19: =+'E10. Overheads'!C32 -> 0 | D19: =+'E10. Overheads'!D32 -> 0
B20: Other capex | C20: =+'E13. Other capex'!C128 -> 0 | D20: =+'E13. Other capex'!D128 -> 0 | E20: 27787941.86 | F20: 30853343.53 | G20: 25419407.64 | H20: 10278829.18 | I20: 5411263.366
B21: Capital contributions included in the above | C21: =+'E3. Mains Augex'!C407+'E5. New Connections'!D192+'E13. Other capex'!C291 -> 2978265 | D21: =+'E3. Mains Augex'!D407+'E5. New Connections'!E192+'E13. Other capex'!D291 -> 1506406.437 | E21: 3343494.882 | F21: 3369673.148 | G21: 3372210.023 | H21: 3414517.881 | I21: 3444955.239
B22: Total (less capital contributions) | C22: =SUM(C12:C20)-C21 -> 26270632.67 | D22: 12337143.67 | E22: 124484143.5 | F22: 103156598.1 | G22: 112317442.9 | H22: 99460573.02 | I22: 91935219.04
B24: E1.1.2 - NON-REFERENCE SERVICES
B50: Capital contributions included in the above
B51: Total | C51: =SUM(C25:C49)-C50 -> 0 | D51: 0 | E51: 0 | F51: 0 | G51: 0 | H51: 0 | I51: 0
B54: E1.2 - OPEX
B55: E1.2.1 - REFERENCE SERVICES
C56: EXPENDITURE
C57: =CONCATENATE("$0's, real ",dms_DollarReal) -> $0's, real June 2023
C58: =VLOOKUP(CRCP_y4,'AER lookups'!$B$52:$C$101,2,0) -> 2022 | D58: =CONCATENATE("1 Jan-30 Jun "&(C58+1)) -> 1 Jan-30 Jun 2023 | E58: =FRCP_y1 -> 2023-24 | F58: =FRCP_y2 -> 2024-25 | G58: =FRCP_y3 -> 2025-26 | H58: =FRCP_y4 -> 2026-27 | I58: =FRCP_y5 -> 2027-28
B59: ='E20. Opex'!B44 -> repairs and maintenance | C59: ='E20. Opex'!F44 -> 0 | D59: ='E20. Opex'!G44 -> 0 | E59: ='E20. Opex'!H44 -> 0 | F59: ='E20. Opex'!I44 -> 0 | G59: ='E20. Opex'!J44 -> 0 | H59: ='E20. Opex'!K44 -> 0 | I59: ='E20. Opex'!L44 -> 0
B60: ='E20. Opex'!B45 -> marketing and retail incentives | C60: ='E20. Opex'!F45 -> 0 | D60: ='E20. Opex'!G45 -> 0 | E60: ='E20. Opex'!H45 -> 0 | F60: ='E20. Opex'!I45 -> 0 | G60: ='E20. Opex'!J45 -> 0 | H60: ='E20. Opex'!K45 -> 0 | I60: ='E20. Opex'!L45 -> 0
B61: ='E20. Opex'!B46 -> debt raising | C61: ='E20. Opex'!F46 -> 0 | D61: ='E20. Opex'!G46 -> 0 | E61: ='E20. Opex'!H46 -> 0 | F61: ='E20. Opex'!I46 -> 0 | G61: ='E20. Opex'!J46 -> 0 | H61: ='E20. Opex'!K46 -> 0 | I61: ='E20. Opex'!L46 -> 0
B62: ='E20. Opex'!B47 -> equity raising | C62: ='E20. Opex'!F47 -> 0 | D62: ='E20. Opex'!G47 -> 0 | E62: ='E20. Opex'!H47 -> 0 | F62: ='E20. Opex'!I47 -> 0 | G62: ='E20. Opex'!J47 -> 0 | H62: ='E20. Opex'!K47 -> 0 | I62: ='E20. Opex'!L47 -> 0
B63: ='E20. Opex'!B48 -> unaccounted for gas | C63: ='E20. Opex'!F48 -> 0 | D63: ='E20. Opex'!G48 -> 0 | E63: ='E20. Opex'!H48 -> 0 | F63: ='E20. Opex'!I48 -> 0 | G63: ='E20. Opex'!J48 -> 0 | H63: ='E20. Opex'!K48 -> 0 | I63: ='E20. Opex'!L48 -> 0
B64: ='E20. Opex'!B49 -> jurisdictional charges | C64: ='E20. Opex'!F49 -> 0 | D64: ='E20. Opex'!G49 -> 0 | E64: ='E20. Opex'!H49 -> 0 | F64: ='E20. Opex'!I49 -> 0 | G64: ='E20. Opex'!J49 -> 0 | H64: ='E20. Opex'!K49 -> 0 | I64: ='E20. Opex'!L49 -> 0
B65: ='E20. Opex'!B50 -> GSL payments | C65: ='E20. Opex'!F50 -> 0 | D65: ='E20. Opex'!G50 -> 0 | E65: ='E20. Opex'!H50 -> 0 | F65: ='E20. Opex'!I50 -> 0 | G65: ='E20. Opex'!J50 -> 0 | H65: ='E20. Opex'!K50 -> 0 | I65: ='E20. Opex'!L50 -> 0
B66: ='E20. Opex'!B51 -> other opex | C66: ='E20. Opex'!F51 -> 0 | D66: ='E20. Opex'!G51 -> 0 | E66: ='E20. Opex'!H51 -> 0 | F66: ='E20. Opex'!I51 -> 0 | G66: ='E20. Opex'!J51 -> 0 | H66: ='E20. Opex'!K51 -> 0 | I66: ='E20. Opex'!L51 -> 0
B67: Total | C67: =SUM(C59:C66) -> 0 | D67: 0 | E67: 0 | F67: 0 | G67: 0 | H67: 0 | I67: 0
B69: E1.2.2 - NON-REFERENCE SERVICES
B70: =IF(ISBLANK('E20. Opex'!B58),"",'E20. Opex'!B58) -> 
B71: =IF(ISBLANK('E20. Opex'!B59),"",'E20. Opex'!B59) -> 
B72: =IF(ISBLANK('E20. Opex'!B60),"",'E20. Opex'!B60) -> 
B73: =IF(ISBLANK('E20. Opex'!B61),"",'E20. Opex'!B61) -> 
B74: =IF(ISBLANK('E20. Opex'!B62),"",'E20. Opex'!B62) -> 
B75: =IF(ISBLANK('E20. Opex'!B63),"",'E20. Opex'!B63) -> 
B76: =IF(ISBLANK('E20. Opex'!B64),"",'E20. Opex'!B64) -> 
B77: =IF(ISBLANK('E20. Opex'!B65),"",'E20. Opex'!B65) -> 
B78: =IF(ISBLANK('E20. Opex'!B66),"",'E20. Opex'!B66) -> 
B79: =IF(ISBLANK('E20. Opex'!B67),"",'E20. Opex'!B67) -> 
B80: =IF(ISBLANK('E20. Opex'!B68),"",'E20. Opex'!B68) -> 
B81: =IF(ISBLANK('E20. Opex'!B69),"",'E20. Opex'!B69) -> 
B82: =IF(ISBLANK('E20. Opex'!B70),"",'E20. Opex'!B70) -> 
B83: =IF(ISBLANK('E20. Opex'!B71),"",'E20. Opex'!B71) -> 
B84: =IF(ISBLANK('E20. Opex'!B72),"",'E20. Opex'!B72) -> 
B85: =IF(ISBLANK('E20. Opex'!B73),"",'E20. Opex'!B73) -> 
B86: =IF(ISBLANK('E20. Opex'!B74),"",'E20. Opex'!B74) -> 
B87: =IF(ISBLANK('E20. Opex'!B75),"",'E20. Opex'!B75) -> 
B88: =IF(ISBLANK('E20. Opex'!B76),"",'E20. Opex'!B76) -> 
B89: =IF(ISBLANK('E20. Opex'!B77),"",'E20. Opex'!B77) -> 
B90: =IF(ISBLANK('E20. Opex'!B78),"",'E20. Opex'!B78) -> 
B91: =IF(ISBLANK('E20. Opex'!B79),"",'E20. Opex'!B79) -> 
B92: =IF(ISBLANK('E20. Opex'!B80),"",'E20. Opex'!B80) -> 
B93: =IF(ISBLANK('E20. Opex'!B81),"",'E20. Opex'!B81) -> 
B94: =IF(ISBLANK('E20. Opex'!B82),"",'E20. Opex'!B82) -> 
B95: Total | C95: =SUM(C70:C94) -> 0 | D95: =SUM(D70:D94) -> 0 | E95: 0 | F95: 0 | G95: 0 | H95: 0 | I95: 0
B98: E1.3 - CAPCONS
B99: E1.3.1 - REFERENCE SERVICES
C100: EXPENDITURE
C101: =CONCATENATE("$0's, real ",dms_DollarReal) -> $0's, real June 2023
C102: =VLOOKUP(CRCP_y4,'AER lookups'!$B$52:$C$101,2,0) -> 2022 | D102: =CONCATENATE("1 Jan-30 Jun "&(C102+1)) -> 1 Jan-30 Jun 2023 | E102: =FRCP_y1 -> 2023-24 | F102: =FRCP_y2 -> 2024-25 | G102: =FRCP_y3 -> 2025-26 | H102: =FRCP_y4 -> 2026-27 | I102: =FRCP_y5 -> 2027-28
B103: Connections | C103: 2735770.315 | D103: 1320158.532 | E103: 1656683.997 | F103: 1660942.275 | G103: 1666856.386 | H103: 1673102.595 | I103: 1677298.957
B104: Mains replacement | E104: 0 | F104: 0 | G104: 0 | H104: 0 | I104: 0
B105: Mains augmentation | C105: 1371500 | D105: 0 | E105: 0 | F105: 0 | G105: 0 | H105: 0 | I105: 0
B106: Telemetry | E106: 0 | F106: 0 | G106: 0 | H106: 0 | I106: 0
B107: Meter replacement | E107: 166937.7091 | F107: 167523.8677 | G107: 168230.8249 | H107: 168625.0641 | I107: 168955.8694
B108: ICT | E108: 0 | F108: 0 | G108: 0 | H108: 0 | I108: 0
B109: Capitalised network overheads | C109: 3148795.73 | D109: 804124.7963 | E109: 145877.3218 | F109: 163679.4835 | G109: 154690.3345 | H109: 185177.3563 | I109: 207607.2291
B110: Capitalised corporate overheads | E110: 0 | F110: 0 | G110: 0 | H110: 0 | I110: 0
B111: Other capex | C111: 31410499.49 | D111: 4379116.475 | E111: 1373995.854 | F111: 1377527.522 | G111: 1382432.478 | H111: 1387612.866 | I111: 1391093.183
B112: Total | C112: =SUM(C103:C111) -> 38666565.54 | D112: 6503399.804 | E112: 3343494.882 | F112: 3369673.148 | G112: 3372210.023 | H112: 3414517.881 | I112: 3444955.239
B114: E1.3.2 - NON-REFERENCE SERVICES
C115: EXPENDITURE
C116: =CONCATENATE("$0's, real ",dms_DollarReal) -> $0's, real June 2023
C117: =VLOOKUP(CRCP_y4,'AER lookups'!$B$52:$C$101,2,0) -> 2022 | D117: =CONCATENATE("1 Jan-30 Jun "&(C117+1)) -> 1 Jan-30 Jun 2023 | E117: =FRCP_y1 -> 2023-24 | F117: =FRCP_y2 -> 2024-25 | G117: =FRCP_y3 -> 2025-26 | H117: =FRCP_y4 -> 2026-27 | I117: =FRCP_y5 -> 2027-28
B142: Total | C142: =SUM(C118:C141) -> 0 | D142: 0 | E142: 0 | F142: 0 | G142: 0 | H142: 0 | I142: 0
B145: E1.4 - CAPITALISED OVERHEADS
B146: E1.4.1 - REFERENCE SERVICES
C147: EXPENDITURE
C148: =CONCATENATE("$0's, real ",dms_DollarReal) -> $0's, real June 2023
C149: =VLOOKUP(CRCP_y4,'AER lookups'!$B$52:$C$101,2,0) -> 2022 | D149: =CONCATENATE("1 Jan-30 Jun "&(C149+1)) -> 1 Jan-30 Jun 2023 | E149: =FRCP_y1 -> 2023-24 | F149: =FRCP_y2 -> 2024-25 | G149: =FRCP_y3 -> 2025-26 | H149: =FRCP_y4 -> 2026-27 | I149: =FRCP_y5 -> 2027-28
B150: Connections | C150: =+'E5. New Connections'!D130 -> 0 | D150: =+'E5. New Connections'!E130 -> 0 | E150: 2374543.658 | F150: 2430118.036 | G150: 2231414.923 | H150: 2686802.534 | I150: 3019388.384
B151: Mains replacement | C151: =+'E2. Mains Repex'!D289+'E2. Mains Repex'!D426 -> 0 | D151: =+'E2. Mains Repex'!E289+'E2. Mains Repex'!E426 -> 0 | E151: 258818.2977 | F151: 290495.3449 | G151: 274670.8702 | H151: 329002.3385 | I151: 368994.0583
B152: Mains augmentation | C152: =+'E3. Mains Augex'!C291 -> 0 | D152: =+'E3. Mains Augex'!D291 -> 0 | E152: 620218.1942 | F152: 20126.26915 | G152: 308830.8558 | H152: 391007.1753 | I152: 147708.5179
B153: Telemetry | C153: =+'E6. Non-network'!C104 -> 43599.30425 | D153: =+'E6. Non-network'!D104 -> 63146.0823 | E153: 50990.46812 | F153: 46340.18161 | G153: 42884.19185 | H153: 51556.53351 | I153: 54616.67477
B154: Meter replacement | C154: =+'E4. Meter replacement'!C30+'E4. Meter replacement'!C66 -> 0 | D154: =+'E4. Meter replacement'!D30+'E4. Meter replacement'!D66 -> 0 | E154: 336098.6165 | F154: 238527.3179 | G154: 681636.2485 | H154: 485721.8283 | I154: 547532.9783
B155: ICT | E155: 0 | F155: 0 | G155: 0 | H155: 0 | I155: 0
B156: Other capex | C156: =+'E13. Other capex'!C210 -> 0 | D156: =+'E13. Other capex'!D210 -> 0 | E156: 1267703.364 | F156: 1575193.173 | G156: 1222101.821 | H156: 589410.2521 | I156: 347017.8028
B157: Capital contributions included in the above | C157: =+C109 -> 3148795.73 | D157: =+D109 -> 804124.7963 | E157: 145877.3218 | F157: 163679.4835 | G157: 154690.3345 | H157: 185177.3563 | I157: 207607.2291
B158: Total (less capital contributions) | C158: =SUM(C150:C156)-C157 -> -3105196.426 | D158: -740978.714 | E158: 4762495.277 | F158: 4437120.839 | G158: 4606848.575 | H158: 4348323.306 | I158: 4277651.187
B162: E1.4.2 - NON-REFERENCE SERVICES
C163: EXPENDITURE
C164: =CONCATENATE("$0's, real ",dms_DollarReal) -> $0's, real June 2023
C165: =VLOOKUP(CRCP_y4,'AER lookups'!$B$52:$C$101,2,0) -> 2022 | D165: =CONCATENATE("1 Jan-30 Jun "&(C165+1)) -> 1 Jan-30 Jun 2023 | E165: =FRCP_y1 -> 2023-24 | F165: =FRCP_y2 -> 2024-25 | G165: =FRCP_y3 -> 2025-26 | H165: =FRCP_y4 -> 2026-27 | I165: =FRCP_y5 -> 2027-28
B188: Capital contributions included in the above
B189: Total (less capital contributions) | C189: =SUM(C166:C187)-C188 -> 0 | D189: 0 | E189: 0 | F189: 0 | G189: 0 | H189: 0 | I189: 0

Sheet E2. Mains Repex
B1: =INDEX(dms_Worksheet_List,MATCH(dms_Model,dms_Model_List)) -> REGULATORY REPORTING STATEMENT
B2: =dms_TradingName -> AGN (Albury and Victoria)
B3: =dms_Header_Span -> 2021-22 to 2027-28
B4: E2. MAINS REPLACEMENT
B8: Please list all projects here:
B9: 2350 MAINS RENEWAL - PRESSURE INCREASE BLOCK - North Melbournne (Asset Class - Mains and Services)
B10: 2350 MAINS RENEWAL - PRESSURE INCREASE BLOCK - East Richmond (Asset Class - Mains and Services)
B11: 2350 MAINS RENEWAL - PRESSURE INCREASE BLOCK - Ivanhoe (Asset Class - Mains and Services)
B12: 2350 MAINS RENEWAL - PRESSURE INCREASE BLOCK - East Melbourne (Asset Class - Mains and Services)
B13: 2350 MAINS RENEWAL - PRESSURE INCREASE BLOCK - East Preston (Asset Class - Mains and Services)
B14: 2350 MAINS RENEWAL - PRESSURE INCREASE BLOCK - Carlton (Asset Class - Mains and Services)
B15: 2350 MAINS RENEWAL - PRESSURE INCREASE BLOCK - Collingwood (Asset Class - Mains and Services)
B16: 2350 MAINS RENEWAL - PRESSURE INCREASE BLOCK - Brunswick (Asset Class - Mains and Services)
B17: 2350 MAINS RENEWAL - PRESSURE INCREASE BLOCK - North Melbourne (Asset Class - Mains and Services)
B18: 2350 MAINS RENEWAL - PRESSURE INCREASE BLOCK - Clifton Hill (Asset Class - Mains and Services)
B19: 2350 MAINS RENEWAL - PRESSURE INCREASE BLOCK - Various (Asset Class - Mains and Services)
B20: 2356 MAINS RENEWAL - PRESSURE INCREASE CBD BLOCK (Asset Class - Mains and Services)
B21: 2358 MAINS RENEWAL - PRESSURE INCREASE CBD TRUNK (Asset Class - Mains and Services)
B22: 2359 MAINS RENEWAL - PRESSURE INCREASE CBD TRUNK DECOMMISSIONED (Asset Class - Mains and Services)
B23: 2354 MAINS RENEWAL - PRESSURE INCREASE TRUNK (Asset Class - Mains and Services)
B24: 2365 MAINS RENEWAL - PRESSURE INCREASE TRUNK DECOMMISSIONED (Asset Class - Mains and Services)
B25: 2355 MAINS RENEWAL - PRESSURE INCREASE BLOCK DECOMMISSIONDED (Asset Class - Mains and Services)
B26: 2375 MAINS RENEWAL - NO PRESSURE CHANGE STEEL (Asset Class - Mains and Services)
B27: HP Small Diameter Steel Main Replacement
B28: 20
B29: 21
B30: 22
B31: 23
B32: 24
B33: 25
B34: 26
B35: 27
B36: 28
B37: 29
B38: 30
B39: 31
B40: 32
B41: 33
B42: 34
B43: 35
B44: 36
B45: 37
B46: 38
B47: 39
B48: 40
B49: 41
B50: 42
B51: 43
B52: 44
B53: 45
B54: 46
B55: 47
B56: 48
B57: 49
B58: 50
B61: E2.1 - CAPEX
B62: E2.1.1 - PROACTIVE - BY PROJECT
D63: EXPENDITURE
D64: =CONCATENATE("$0's, real ",dms_DollarReal) -> $0's, real June 2023
D65: =VLOOKUP(CRCP_y4,'AER lookups'!$B$52:$C$101,2,0) -> 2022 | E65: =CONCATENATE("1 Jan-30 Jun "&(D65+1)) -> 1 Jan-30 Jun 2023 | F65: =FRCP_y1 -> 2023-24 | G65: =FRCP_y2 -> 2024-25 | H65: =FRCP_y3 -> 2025-26 | I65: =FRCP_y4 -> 2026-27 | J65: =FRCP_y5 -> 2027-28
B66: A. DIRECT INTERNAL LABOUR EXPENDITURE
B67: =IF(ISBLANK(dms_E2_Projects_01),"",dms_E2_Projects_01) -> 2350 MAINS RENEWAL - PRESSURE INCREASE BLOCK - North Melbournne (Asset Class - Mains and Services)
B68: =IF(ISBLANK(dms_E2_Projects_02),"",dms_E2_Projects_02) -> 2350 MAINS RENEWAL - PRESSURE INCREASE BLOCK - East Richmond (Asset Class - Mains and Services)
B69: =IF(ISBLANK(dms_E2_Projects_03),"",dms_E2_Projects_03) -> 2350 MAINS RENEWAL - PRESSURE INCREASE BLOCK - Ivanhoe (Asset Class - Mains and Services)
B70: =IF(ISBLANK(dms_E2_Projects_04),"",dms_E2_Projects_04) -> 2350 MAINS RENEWAL - PRESSURE INCREASE BLOCK - East Melbourne (Asset Class - Mains and Services)
B71: =IF(ISBLANK(dms_E2_Projects_05),"",dms_E2_Projects_05) -> 2350 MAINS RENEWAL - PRESSURE INCREASE BLOCK - East Preston (Asset Class - Mains and Services)
B72: =IF(ISBLANK(dms_E2_Projects_06),"",dms_E2_Projects_06) -> 2350 MAINS RENEWAL - PRESSURE INCREASE BLOCK - Carlton (Asset Class - Mains and Services)
B73: =IF(ISBLANK(dms_E2_Projects_07),"",dms_E2_Projects_07) -> 2350 MAINS RENEWAL - PRESSURE INCREASE BLOCK - Collingwood (Asset Class - Mains and Services)
B74: =IF(ISBLANK(dms_E2_Projects_08),"",dms_E2_Projects_08) -> 2350 MAINS RENEWAL - PRESSURE INCREASE BLOCK - Brunswick (Asset Class - Mains and Services)
B75: =IF(ISBLANK(dms_E2_Projects_09),"",dms_E2_Projects_09) -> 2350 MAINS RENEWAL - PRESSURE INCREASE BLOCK - North Melbourne (Asset Class - Mains and Services)
B76: =IF(ISBLANK(dms_E2_Projects_10),"",dms_E2_Projects_10) -> 2350 MAINS RENEWAL - PRESSURE INCREASE BLOCK - Clifton Hill (Asset Class - Mains and Services)
B77: =IF(ISBLANK(dms_E2_Projects_11),"",dms_E2_Projects_11) -> 2350 MAINS RENEWAL - PRESSURE INCREASE BLOCK - Various (Asset Class - Mains and Services)
B78: =IF(ISBLANK(dms_E2_Projects_12),"",dms_E2_Projects_12) -> 2356 MAINS RENEWAL - PRESSURE INCREASE CBD BLOCK (Asset Class - Mains and Services)
B79: =IF(ISBLANK(dms_E2_Projects_13),"",dms_E2_Projects_13) -> 2358 MAINS RENEWAL - PRESSURE INCREASE CBD TRUNK (Asset Class - Mains and Services)
B80: =IF(ISBLANK(dms_E2_Projects_14),"",dms_E2_Projects_14) -> 2359 MAINS RENEWAL - PRESSURE INCREASE CBD TRUNK DECOMMISSIONED (Asset Class - Mains and Services)
B81: =IF(ISBLANK(dms_E2_Projects_15),"",dms_E2_Projects_15) -> 2354 MAINS RENEWAL - PRESSURE INCREASE TRUNK (Asset Class - Mains and Services)
B82: =IF(ISBLANK(dms_E2_Projects_16),"",dms_E2_Projects_16) -> 2365 MAINS RENEWAL - PRESSURE INCREASE TRUNK DECOMMISSIONED (Asset Class - Mains and Services)
B83: =IF(ISBLANK(dms_E2_Projects_17),"",dms_E2_Projects_17) -> 2355 MAINS RENEWAL - PRESSURE INCREASE BLOCK DECOMMISSIONDED (Asset Class - Mains and Services)
B84: =IF(ISBLANK(dms_E2_Projects_18),"",dms_E2_Projects_18) -> 2375 MAINS RENEWAL - NO PRESSURE CHANGE STEEL (Asset Class - Mains and Services)
B85: =IF(ISBLANK(dms_E2_Projects_19),"",dms_E2_Projects_19) -> HP Small Diameter Steel Main Replacement
B86: =IF(ISBLANK(dms_E2_Projects_20),"",dms_E2_Projects_20) -> 20
B87: =IF(ISBLANK(dms_E2_Projects_21),"",dms_E2_Projects_21) -> 21
B88: =IF(ISBLANK(dms_E2_Projects_22),"",dms_E2_Projects_22) -> 22
B89: =IF(ISBLANK(dms_E2_Projects_23),"",dms_E2_Projects_23) -> 23
B90: =IF(ISBLANK(dms_E2_Projects_24),"",dms_E2_Projects_24) -> 24
B91: =IF(ISBLANK(dms_E2_Projects_25),"",dms_E2_Projects_25) -> 25
B92: =IF(ISBLANK(dms_E2_Projects_26),"",dms_E2_Projects_26) -> 26
B93: =IF(ISBLANK(dms_E2_Projects_27),"",dms_E2_Projects_27) -> 27
B94: =IF(ISBLANK(dms_E2_Projects_28),"",dms_E2_Projects_28) -> 28
B95: =IF(ISBLANK(dms_E2_Projects_29),"",dms_E2_Projects_29) -> 29
B96: =IF(ISBLANK(dms_E2_Projects_30),"",dms_E2_Projects_30) -> 30
B97: =IF(ISBLANK(dms_E2_Projects_31),"",dms_E2_Projects_31) -> 31
B98: =IF(ISBLANK(dms_E2_Projects_32),"",dms_E2_Projects_32) -> 32
B99: =IF(ISBLANK(dms_E2_Projects_33),"",dms_E2_Projects_33) -> 33
B100: =IF(ISBLANK(dms_E2_Projects_34),"",dms_E2_Projects_34) -> 34
B101: =IF(ISBLANK(dms_E2_Projects_35),"",dms_E2_Projects_35) -> 35
B102: =IF(ISBLANK(dms_E2_Projects_36),"",dms_E2_Projects_36) -> 36
B103: =IF(ISBLANK(dms_E2_Projects_37),"",dms_E2_Projects_37) -> 37
B104: =IF(ISBLANK(dms_E2_Projects_38),"",dms_E2_Projects_38) -> 38
B105: =IF(ISBLANK(dms_E2_Projects_39),"",dms_E2_Projects_39) -> 39
B106: =IF(ISBLANK(dms_E2_Projects_40),"",dms_E2_Projects_40) -> 40
B107: =IF(ISBLANK(dms_E2_Projects_41),"",dms_E2_Projects_41) -> 41
B108: =IF(ISBLANK(dms_E2_Projects_42),"",dms_E2_Projects_42) -> 42
B109: =IF(ISBLANK(dms_E2_Projects_43),"",dms_E2_Projects_43) -> 43
B110: =IF(ISBLANK(dms_E2_Projects_44),"",dms_E2_Projects_44) -> 44
B111: =IF(ISBLANK(dms_E2_Projects_45),"",dms_E2_Projects_45) -> 45
B112: =IF(ISBLANK(dms_E2_Projects_46),"",dms_E2_Projects_46) -> 46
B113: =IF(ISBLANK(dms_E2_Projects_47),"",dms_E2_Projects_47) -> 47
B114: =IF(ISBLANK(dms_E2_Projects_48),"",dms_E2_Projects_48) -> 48
B115: =IF(ISBLANK(dms_E2_Projects_49),"",dms_E2_Projects_49) -> 49
B116: =IF(ISBLANK(dms_E2_Projects_50),"",dms_E2_Projects_50) -> 50
B117: Other projects with expenditure of less than $500,000
C118: Total | D118: =SUM(D67:D117) -> 0 | E118: =SUM(E67:E117) -> 0 | F118: =SUM(F67:F117) -> 0 | G118: =SUM(G67:G117) -> 0 | H118: =SUM(H67:H117) -> 0 | I118: =SUM(I67:I117) -> 0 | J118: =SUM(J67:J117) -> 0
B120: B. DIRECT CONTRACTOR EXPENDITURE
D121: EXPENDITURE
D122: =CONCATENATE("$0's, real ",dms_DollarReal) -> $0's, real June 2023
D123: =VLOOKUP(CRCP_y4,'AER lookups'!$B$52:$C$101,2,0) -> 2022 | E123: =CONCATENATE("1 Jan-30 Jun "&(D123+1)) -> 1 Jan-30 Jun 2023 | F123: =FRCP_y1 -> 2023-24 | G123: =FRCP_y2 -> 2024-25 | H123: =FRCP_y3 -> 2025-26 | I123: =FRCP_y4 -> 2026-27 | J123: =FRCP_y5 -> 2027-28
B124: =IF(ISBLANK(dms_E2_Projects_01),"",dms_E2_Projects_01) -> 2350 MAINS RENEWAL - PRESSURE INCREASE BLOCK - North Melbournne (Asset Class - Mains and Services)
B125: =IF(ISBLANK(dms_E2_Projects_02),"",dms_E2_Projects_02) -> 2350 MAINS RENEWAL - PRESSURE INCREASE BLOCK - East Richmond (Asset Class - Mains and Services)
B126: =IF(ISBLANK(dms_E2_Projects_03),"",dms_E2_Projects_03) -> 2350 MAINS RENEWAL - PRESSURE INCREASE BLOCK - Ivanhoe (Asset Class - Mains and Services)
B127: =IF(ISBLANK(dms_E2_Projects_04),"",dms_E2_Projects_04) -> 2350 MAINS RENEWAL - PRESSURE INCREASE BLOCK - East Melbourne (Asset Class - Mains and Services)
B128: =IF(ISBLANK(dms_E2_Projects_05),"",dms_E2_Projects_05) -> 2350 MAINS RENEWAL - PRESSURE INCREASE BLOCK - East Preston (Asset Class - Mains and Services)
B129: =IF(ISBLANK(dms_E2_Projects_06),"",dms_E2_Projects_06) -> 2350 MAINS RENEWAL - PRESSURE INCREASE BLOCK - Carlton (Asset Class - Mains and Services)
B130: =IF(ISBLANK(dms_E2_Projects_07),"",dms_E2_Projects_07) -> 2350 MAINS RENEWAL - PRESSURE INCREASE BLOCK - Collingwood (Asset Class - Mains and Services)
B131: =IF(ISBLANK(dms_E2_Projects_08),"",dms_E2_Projects_08) -> 2350 MAINS RENEWAL - PRESSURE INCREASE BLOCK - Brunswick (Asset Class - Mains and Services)
B132: =IF(ISBLANK(dms_E2_Projects_09),"",dms_E2_Projects_09) -> 2350 MAINS RENEWAL - PRESSURE INCREASE BLOCK - North Melbourne (Asset Class - Mains and Services)
B133: =IF(ISBLANK(dms_E2_Projects_10),"",dms_E2_Projects_10) -> 2350 MAINS RENEWAL - PRESSURE INCREASE BLOCK - Clifton Hill (Asset Class - Mains and Services)
B134: =IF(ISBLANK(dms_E2_Projects_11),"",dms_E2_Projects_11) -> 2350 MAINS RENEWAL - PRESSURE INCREASE BLOCK - Various (Asset Class - Mains and Services)
B135: =IF(ISBLANK(dms_E2_Projects_12),"",dms_E2_Projects_12) -> 2356 MAINS RENEWAL - PRESSURE INCREASE CBD BLOCK (Asset Class - Mains and Services)
B136: =IF(ISBLANK(dms_E2_Projects_13),"",dms_E2_Projects_13) -> 2358 MAINS RENEWAL - PRESSURE INCREASE CBD TRUNK (Asset Class - Mains and Services)
B137: =IF(ISBLANK(dms_E2_Projects_14),"",dms_E2_Projects_14) -> 2359 MAINS RENEWAL - PRESSURE INCREASE CBD TRUNK DECOMMISSIONED (Asset Class - Mains and Services)
B138: =IF(ISBLANK(dms_E2_Projects_15),"",dms_E2_Projects_15) -> 2354 MAINS RENEWAL - PRESSURE INCREASE TRUNK (Asset Class - Mains and Services)
B139: =IF(ISBLANK(dms_E2_Projects_16),"",dms_E2_Projects_16) -> 2365 MAINS RENEWAL - PRESSURE INCREASE TRUNK DECOMMISSIONED (Asset Class - Mains and Services)
B140: =IF(ISBLANK(dms_E2_Projects_17),"",dms_E2_Projects_17) -> 2355 MAINS RENEWAL - PRESSURE INCREASE BLOCK DECOMMISSIONDED (Asset Class - Mains and Services)
B141: =IF(ISBLANK(dms_E2_Projects_18),"",dms_E2_Projects_18) -> 2375 MAINS RENEWAL - NO PRESSURE CHANGE STEEL (Asset Class - Mains and Services)
B142: =IF(ISBLANK(dms_E2_Projects_19),"",dms_E2_Projects_19) -> HP Small Diameter Steel Main Replacement
B143: =IF(ISBLANK(dms_E2_Projects_20),"",dms_E2_Projects_20) -> 20
B144: =IF(ISBLANK(dms_E2_Projects_21),"",dms_E2_Projects_21) -> 21
B145: =IF(ISBLANK(dms_E2_Projects_22),"",dms_E2_Projects_22) -> 22
B146: =IF(ISBLANK(dms_E2_Projects_23),"",dms_E2_Projects_23) -> 23
B147: =IF(ISBLANK(dms_E2_Projects_24),"",dms_E2_Projects_24) -> 24
B148: =IF(ISBLANK(dms_E2_Projects_25),"",dms_E2_Projects_25) -> 25
B149: =IF(ISBLANK(dms_E2_Projects_26),"",dms_E2_Projects_26) -> 26
B150: =IF(ISBLANK(dms_E2_Projects_27),"",dms_E2_Projects_27) -> 27
B151: =IF(ISBLANK(dms_E2_Projects_28),"",dms_E2_Projects_28) -> 28
B152: =IF(ISBLANK(dms_E2_Projects_29),"",dms_E2_Projects_29) -> 29
B153: =IF(ISBLANK(dms_E2_Projects_30),"",dms_E2_Projects_30) -> 30
B154: =IF(ISBLANK(dms_E2_Projects_31),"",dms_E2_Projects_31) -> 31
B155: =IF(ISBLANK(dms_E2_Projects_32),"",dms_E2_Projects_32) -> 32
B156: =IF(ISBLANK(dms_E2_Projects_33),"",dms_E2_Projects_33) -> 33
B157: =IF(ISBLANK(dms_E2_Projects_34),"",dms_E2_Projects_34) -> 34
B158: =IF(ISBLANK(dms_E2_Projects_35),"",dms_E2_Projects_35) -> 35
B159: =IF(ISBLANK(dms_E2_Projects_36),"",dms_E2_Projects_36) -> 36
B160: =IF(ISBLANK(dms_E2_Projects_37),"",dms_E2_Projects_37) -> 37
B161: =IF(ISBLANK(dms_E2_Projects_38),"",dms_E2_Projects_38) -> 38
B162: =IF(ISBLANK(dms_E2_Projects_39),"",dms_E2_Projects_39) -> 39
B163: =IF(ISBLANK(dms_E2_Projects_40),"",dms_E2_Projects_40) -> 40
B164: =IF(ISBLANK(dms_E2_Projects_41),"",dms_E2_Projects_41) -> 41
B165: =IF(ISBLANK(dms_E2_Projects_42),"",dms_E2_Projects_42) -> 42
B166: =IF(ISBLANK(dms_E2_Projects_43),"",dms_E2_Projects_43) -> 43
B167: =IF(ISBLANK(dms_E2_Projects_44),"",dms_E2_Projects_44) -> 44
B168: =IF(ISBLANK(dms_E2_Projects_45),"",dms_E2_Projects_45) -> 45
B169: =IF(ISBLANK(dms_E2_Projects_46),"",dms_E2_Projects_46) -> 46
B170: =IF(ISBLANK(dms_E2_Projects_47),"",dms_E2_Projects_47) -> 47
B171: =IF(ISBLANK(dms_E2_Projects_48),"",dms_E2_Projects_48) -> 48
B172: =IF(ISBLANK(dms_E2_Projects_49),"",dms_E2_Projects_49) -> 49
B173: =IF(ISBLANK(dms_E2_Projects_50),"",dms_E2_Projects_50) -> 50
B174: Other projects with expenditure of less than $500,000
C175: Total | D175: =SUM(D124:D174) -> 0 | E175: =SUM(E124:E174) -> 0 | F175: 0 | G175: 0 | H175: 0 | I175: 0 | J175: 0
B177: C. DIRECT MATERIAL EXPENDITURE
D178: EXPENDITURE
D179: =CONCATENATE("$0's, real ",dms_DollarReal) -> $0's, real June 2023
D180: =VLOOKUP(CRCP_y4,'AER lookups'!$B$52:$C$101,2,0) -> 2022 | E180: =CONCATENATE("1 Jan-30 Jun "&(D180+1)) -> 1 Jan-30 Jun 2023 | F180: =FRCP_y1 -> 2023-24 | G180: =FRCP_y2 -> 2024-25 | H180: =FRCP_y3 -> 2025-26 | I180: =FRCP_y4 -> 2026-27 | J180: =FRCP_y5 -> 2027-28
B181: =IF(ISBLANK(dms_E2_Projects_01),"",dms_E2_Projects_01) -> 2350 MAINS RENEWAL - PRESSURE INCREASE BLOCK - North Melbournne (Asset Class - Mains and Services)
B182: =IF(ISBLANK(dms_E2_Projects_02),"",dms_E2_Projects_02) -> 2350 MAINS RENEWAL - PRESSURE INCREASE BLOCK - East Richmond (Asset Class - Mains and Services)
B183: =IF(ISBLANK(dms_E2_Projects_03),"",dms_E2_Projects_03) -> 2350 MAINS RENEWAL - PRESSURE INCREASE BLOCK - Ivanhoe (Asset Class - Mains and Services)
B184: =IF(ISBLANK(dms_E2_Projects_04),"",dms_E2_Projects_04) -> 2350 MAINS RENEWAL - PRESSURE INCREASE BLOCK - East Melbourne (Asset Class - Mains and Services)
B185: =IF(ISBLANK(dms_E2_Projects_05),"",dms_E2_Projects_05) -> 2350 MAINS RENEWAL - PRESSURE INCREASE BLOCK - East Preston (Asset Class - Mains and Services)
B186: =IF(ISBLANK(dms_E2_Projects_06),"",dms_E2_Projects_06) -> 2350 MAINS RENEWAL - PRESSURE INCREASE BLOCK - Carlton (Asset Class - Mains and Services)
B187: =IF(ISBLANK(dms_E2_Projects_07),"",dms_E2_Projects_07) -> 2350 MAINS RENEWAL - PRESSURE INCREASE BLOCK - Collingwood (Asset Class - Mains and Services)
B188: =IF(ISBLANK(dms_E2_Projects_08),"",dms_E2_Projects_08) -> 2350 MAINS RENEWAL - PRESSURE INCREASE BLOCK - Brunswick (Asset Class - Mains and Services)
B189: =IF(ISBLANK(dms_E2_Projects_09),"",dms_E2_Projects_09) -> 2350 MAINS RENEWAL - PRESSURE INCREASE BLOCK - North Melbourne (Asset Class - Mains and Services)
B190: =IF(ISBLANK(dms_E2_Projects_10),"",dms_E2_Projects_10) -> 2350 MAINS RENEWAL - PRESSURE INCREASE BLOCK - Clifton Hill (Asset Class - Mains and Services)
B191: =IF(ISBLANK(dms_E2_Projects_11),"",dms_E2_Projects_11) -> 2350 MAINS RENEWAL - PRESSURE INCREASE BLOCK - Various (Asset Class - Mains and Services)
B192: =IF(ISBLANK(dms_E2_Projects_12),"",dms_E2_Projects_12) -> 2356 MAINS RENEWAL - PRESSURE INCREASE CBD BLOCK (Asset Class - Mains and Services)
B193: =IF(ISBLANK(dms_E2_Projects_13),"",dms_E2_Projects_13) -> 2358 MAINS RENEWAL - PRESSURE INCREASE CBD TRUNK (Asset Class - Mains and Services)
B194: =IF(ISBLANK(dms_E2_Projects_14),"",dms_E2_Projects_14) -> 2359 MAINS RENEWAL - PRESSURE INCREASE CBD TRUNK DECOMMISSIONED (Asset Class - Mains and Services)
B195: =IF(ISBLANK(dms_E2_Projects_15),"",dms_E2_Projects_15) -> 2354 MAINS RENEWAL - PRESSURE INCREASE TRUNK (Asset Class - Mains and Services)
B196: =IF(ISBLANK(dms_E2_Projects_16),"",dms_E2_Projects_16) -> 2365 MAINS RENEWAL - PRESSURE INCREASE TRUNK DECOMMISSIONED (Asset Class - Mains and Services)
B197: =IF(ISBLANK(dms_E2_Projects_17),"",dms_E2_Projects_17) -> 2355 MAINS RENEWAL - PRESSURE INCREASE BLOCK DECOMMISSIONDED (Asset Class - Mains and Services)
B198: =IF(ISBLANK(dms_E2_Projects_18),"",dms_E2_Projects_18) -> 2375 MAINS RENEWAL - NO PRESSURE CHANGE STEEL (Asset Class - Mains and Services)
B199: =IF(ISBLANK(dms_E2_Projects_19),"",dms_E2_Projects_19) -> HP Small Diameter Steel Main Replacement
B200: =IF(ISBLANK(dms_E2_Projects_20),"",dms_E2_Projects_20) -> 20
B201: =IF(ISBLANK(dms_E2_Projects_21),"",dms_E2_Projects_21) -> 21
B202: =IF(ISBLANK(dms_E2_Projects_22),"",dms_E2_Projects_22) -> 22
B203: =IF(ISBLANK(dms_E2_Projects_23),"",dms_E2_Projects_23) -> 23
B204: =IF(ISBLANK(dms_E2_Projects_24),"",dms_E2_Projects_24) -> 24
B205: =IF(ISBLANK(dms_E2_Projects_25),"",dms_E2_Projects_25) -> 25
B206: =IF(ISBLANK(dms_E2_Projects_26),"",dms_E2_Projects_26) -> 26
B207: =IF(ISBLANK(dms_E2_Projects_27),"",dms_E2_Projects_27) -> 27
... 573 more rows

Sheet E3. Mains Augex
B1: =INDEX(dms_Worksheet_List,MATCH(dms_Model,dms_Model_List)) -> REGULATORY REPORTING STATEMENT
B2: =dms_TradingName -> AGN (Albury and Victoria)
B3: =dms_Header_Span -> 2021-22 to 2027-28
B4: E3. MAINS AUGMENTATION
B7: Please list all projects here:
B8: 3093 - MAJOR PROJECTS - DANDENONG TO CRIB POINT DUPLICATION (Asset Class - Mains and Services)
B9: 3106 - MAJOR PROJECTS - H07 CRANBOURNE HP AUGMENTATION (Asset Class - Mains and Services)
B10: 3117 - MAJOR PROJECTS - ERAMOSA RD SOMERVILLE (Asset Class - Mains and Services)
B11: 2160 - NEW MAIN - IMPROVED SUPPLY - ECHUCA AUGMENTATION (Asset Class - Mains and Services)
B12: 2160 - NEW MAIN - IMPROVED SUPPLY - MILL PARK LAKES AUGMENTATION (Asset Class - Mains and Services)
B13: DONNYBROOK (Asset Class - Mains and Services)
B14: BERWICK UPGRADE (Asset Class - Mains and Services)
B15: LAURIMAR PARK (Asset Class - Mains and Services)
B16: ANDREW RD WOLLERT (Asset Class - Mains and Services)
B17: 3111 - MAJOR PROJECTS - LOGIC INDUSTRY PARK WODONGA (Asset Class - Mains and Services)
B18: Cranbourne HP network augmentation
B19: Thomastown HP network augmentation
B20: Eltham HP network augmentation
B21: Wallan HP network augmentation
B22: Wodonga HP network augmentation
B23: Traralgon HP network augmentation
B24: Berwick HP network augmentation
B25: Echuca HP network augmentation
B26: Howlong HP network augmentation
B27: 20
B28: 21
B29: 22
B30: 23
B31: 24
B32: 25
B33: 26
B34: 27
B35: 28
B36: 29
B37: 30
B38: 31
B39: 32
B40: 33
B41: 34
B42: 35
B43: 36
B44: 37
B45: 38
B46: 39
B47: 40
B48: 41
B49: 42
B50: 43
B51: 44
B52: 45
B53: 46
B54: 47
B55: 48
B56: 49
B57: 50
B60: E3.1 - CAPEX BY PROJECT
B61: A. DIRECT INTERNAL LABOUR EXPENDITURE
C62: EXPENDITURE
C63: =CONCATENATE("$0's, real ",dms_DollarReal) -> $0's, real June 2023
C64: =VLOOKUP(CRCP_y4,'AER lookups'!$B$52:$C$101,2,0) -> 2022 | D64: =CONCATENATE("1 Jan-30 Jun "&(C64+1)) -> 1 Jan-30 Jun 2023 | E64: =FRCP_y1 -> 2023-24 | F64: =FRCP_y2 -> 2024-25 | G64: =FRCP_y3 -> 2025-26 | H64: =FRCP_y4 -> 2026-27 | I64: =FRCP_y5 -> 2027-28
B65: =IF(ISBLANK(dms_E3_Projects_01),"",dms_E3_Projects_01) -> 3093 - MAJOR PROJECTS - DANDENONG TO CRIB POINT DUPLICATION (Asset Class - Mains and Services)
B66: =IF(ISBLANK(dms_E3_Projects_02),"",dms_E3_Projects_02) -> 3106 - MAJOR PROJECTS - H07 CRANBOURNE HP AUGMENTATION (Asset Class - Mains and Services)
B67: =IF(ISBLANK(dms_E3_Projects_03),"",dms_E3_Projects_03) -> 3117 - MAJOR PROJECTS - ERAMOSA RD SOMERVILLE (Asset Class - Mains and Services)
B68: =IF(ISBLANK(dms_E3_Projects_04),"",dms_E3_Projects_04) -> 2160 - NEW MAIN - IMPROVED SUPPLY - ECHUCA AUGMENTATION (Asset Class - Mains and Services)
B69: =IF(ISBLANK(dms_E3_Projects_05),"",dms_E3_Projects_05) -> 2160 - NEW MAIN - IMPROVED SUPPLY - MILL PARK LAKES AUGMENTATION (Asset Class - Mains and Services)
B70: =IF(ISBLANK(dms_E3_Projects_06),"",dms_E3_Projects_06) -> DONNYBROOK (Asset Class - Mains and Services)
B71: =IF(ISBLANK(dms_E3_Projects_07),"",dms_E3_Projects_07) -> BERWICK UPGRADE (Asset Class - Mains and Services)
B72: =IF(ISBLANK(dms_E3_Projects_08),"",dms_E3_Projects_08) -> LAURIMAR PARK (Asset Class - Mains and Services)
B73: =IF(ISBLANK(dms_E3_Projects_09),"",dms_E3_Projects_09) -> ANDREW RD WOLLERT (Asset Class - Mains and Services)
B74: =IF(ISBLANK(dms_E3_Projects_10),"",dms_E3_Projects_10) -> 3111 - MAJOR PROJECTS - LOGIC INDUSTRY PARK WODONGA (Asset Class - Mains and Services)
B75: =IF(ISBLANK(dms_E3_Projects_11),"",dms_E3_Projects_11) -> Cranbourne HP network augmentation
B76: =IF(ISBLANK(dms_E3_Projects_12),"",dms_E3_Projects_12) -> Thomastown HP network augmentation
B77: =IF(ISBLANK(dms_E3_Projects_13),"",dms_E3_Projects_13) -> Eltham HP network augmentation
B78: =IF(ISBLANK(dms_E3_Projects_14),"",dms_E3_Projects_14) -> Wallan HP network augmentation
B79: =IF(ISBLANK(dms_E3_Projects_15),"",dms_E3_Projects_15) -> Wodonga HP network augmentation
B80: =IF(ISBLANK(dms_E3_Projects_16),"",dms_E3_Projects_16) -> Traralgon HP network augmentation
B81: =IF(ISBLANK(dms_E3_Projects_17),"",dms_E3_Projects_17) -> Berwick HP network augmentation
B82: =IF(ISBLANK(dms_E3_Projects_18),"",dms_E3_Projects_18) -> Echuca HP network augmentation
B83: =IF(ISBLANK(dms_E3_Projects_18),"",dms_E3_Projects_18) -> Echuca HP network augmentation
B84: =IF(ISBLANK(dms_E3_Projects_19),"",dms_E3_Projects_19) -> Howlong HP network augmentation
B85: =IF(ISBLANK(dms_E3_Projects_20),"",dms_E3_Projects_20) -> 20
B86: =IF(ISBLANK(dms_E3_Projects_21),"",dms_E3_Projects_21) -> 21
B87: =IF(ISBLANK(dms_E3_Projects_22),"",dms_E3_Projects_22) -> 22
B88: =IF(ISBLANK(dms_E3_Projects_23),"",dms_E3_Projects_23) -> 23
B89: =IF(ISBLANK(dms_E3_Projects_24),"",dms_E3_Projects_24) -> 24
B90: =IF(ISBLANK(dms_E3_Projects_25),"",dms_E3_Projects_25) -> 25
B91: =IF(ISBLANK(dms_E3_Projects_25),"",dms_E3_Projects_26) -> 26
B92: =IF(ISBLANK(dms_E3_Projects_27),"",dms_E3_Projects_27) -> 27
B93: =IF(ISBLANK(dms_E3_Projects_28),"",dms_E3_Projects_28) -> 28
B94: =IF(ISBLANK(dms_E3_Projects_29),"",dms_E3_Projects_29) -> 29
B95: =IF(ISBLANK(dms_E3_Projects_30),"",dms_E3_Projects_30) -> 30
B96: =IF(ISBLANK(dms_E3_Projects_31),"",dms_E3_Projects_31) -> 31
B97: =IF(ISBLANK(dms_E3_Projects_32),"",dms_E3_Projects_32) -> 32
B98: =IF(ISBLANK(dms_E3_Projects_33),"",dms_E3_Projects_33) -> 33
B99: =IF(ISBLANK(dms_E3_Projects_34),"",dms_E3_Projects_34) -> 34
B100: =IF(ISBLANK(dms_E3_Projects_35),"",dms_E3_Projects_35) -> 35
B101: =IF(ISBLANK(dms_E3_Projects_36),"",dms_E3_Projects_36) -> 36
B102: =IF(ISBLANK(dms_E3_Projects_37),"",dms_E3_Projects_37) -> 37
B103: =IF(ISBLANK(dms_E3_Projects_38),"",dms_E3_Projects_38) -> 38
B104: =IF(ISBLANK(dms_E3_Projects_39),"",dms_E3_Projects_39) -> 39
B105: =IF(ISBLANK(dms_E3_Projects_40),"",dms_E3_Projects_40) -> 40
B106: =IF(ISBLANK(dms_E3_Projects_41),"",dms_E3_Projects_41) -> 41
B107: =IF(ISBLANK(dms_E3_Projects_42),"",dms_E3_Projects_42) -> 42
B108: =IF(ISBLANK(dms_E3_Projects_43),"",dms_E3_Projects_43) -> 43
B109: =IF(ISBLANK(dms_E3_Projects_44),"",dms_E3_Projects_44) -> 44
B110: =IF(ISBLANK(dms_E3_Projects_45),"",dms_E3_Projects_45) -> 45
B111: =IF(ISBLANK(dms_E3_Projects_46),"",dms_E3_Projects_46) -> 46
B112: =IF(ISBLANK(dms_E3_Projects_47),"",dms_E3_Projects_47) -> 47
B113: =IF(ISBLANK(dms_E3_Projects_48),"",dms_E3_Projects_48) -> 48
B114: =IF(ISBLANK(dms_E3_Projects_49),"",dms_E3_Projects_49) -> 49
B115: =IF(ISBLANK(dms_E3_Projects_50),"",dms_E3_Projects_50) -> 50
B116: Aggregate of other projects with total expenditure of less than $500,000
B117: Total | C117: =SUM(C65:C116) -> 0 | D117: =SUM(D65:D116) -> 0 | E117: 0 | F117: 0 | G117: 0 | H117: 0 | I117: 0
B119: B. DIRECT CONTRACTOR EXPENDITURE
C120: EXPENDITURE
C121: =CONCATENATE("$0's, real ",dms_DollarReal) -> $0's, real June 2023
C122: =VLOOKUP(CRCP_y4,'AER lookups'!$B$52:$C$101,2,0) -> 2022 | D122: =CONCATENATE("1 Jan-30 Jun "&(C122+1)) -> 1 Jan-30 Jun 2023 | E122: =FRCP_y1 -> 2023-24 | F122: =FRCP_y2 -> 2024-25 | G122: =FRCP_y3 -> 2025-26 | H122: =FRCP_y4 -> 2026-27 | I122: =FRCP_y5 -> 2027-28
B123: =IF(ISBLANK(dms_E3_Projects_01),"",dms_E3_Projects_01) -> 3093 - MAJOR PROJECTS - DANDENONG TO CRIB POINT DUPLICATION (Asset Class - Mains and Services)
B124: =IF(ISBLANK(dms_E3_Projects_02),"",dms_E3_Projects_02) -> 3106 - MAJOR PROJECTS - H07 CRANBOURNE HP AUGMENTATION (Asset Class - Mains and Services)
B125: =IF(ISBLANK(dms_E3_Projects_03),"",dms_E3_Projects_03) -> 3117 - MAJOR PROJECTS - ERAMOSA RD SOMERVILLE (Asset Class - Mains and Services)
B126: =IF(ISBLANK(dms_E3_Projects_04),"",dms_E3_Projects_04) -> 2160 - NEW MAIN - IMPROVED SUPPLY - ECHUCA AUGMENTATION (Asset Class - Mains and Services)
B127: =IF(ISBLANK(dms_E3_Projects_05),"",dms_E3_Projects_05) -> 2160 - NEW MAIN - IMPROVED SUPPLY - MILL PARK LAKES AUGMENTATION (Asset Class - Mains and Services)
B128: =IF(ISBLANK(dms_E3_Projects_06),"",dms_E3_Projects_06) -> DONNYBROOK (Asset Class - Mains and Services)
B129: =IF(ISBLANK(dms_E3_Projects_07),"",dms_E3_Projects_07) -> BERWICK UPGRADE (Asset Class - Mains and Services)
B130: =IF(ISBLANK(dms_E3_Projects_08),"",dms_E3_Projects_08) -> LAURIMAR PARK (Asset Class - Mains and Services)
B131: =IF(ISBLANK(dms_E3_Projects_09),"",dms_E3_Projects_09) -> ANDREW RD WOLLERT (Asset Class - Mains and Services)
B132: =IF(ISBLANK(dms_E3_Projects_10),"",dms_E3_Projects_10) -> 3111 - MAJOR PROJECTS - LOGIC INDUSTRY PARK WODONGA (Asset Class - Mains and Services)
B133: =IF(ISBLANK(dms_E3_Projects_11),"",dms_E3_Projects_11) -> Cranbourne HP network augmentation
B134: =IF(ISBLANK(dms_E3_Projects_12),"",dms_E3_Projects_12) -> Thomastown HP network augmentation
B135: =IF(ISBLANK(dms_E3_Projects_13),"",dms_E3_Projects_13) -> Eltham HP network augmentation
B136: =IF(ISBLANK(dms_E3_Projects_14),"",dms_E3_Projects_14) -> Wallan HP network augmentation
B137: =IF(ISBLANK(dms_E3_Projects_15),"",dms_E3_Projects_15) -> Wodonga HP network augmentation
B138: =IF(ISBLANK(dms_E3_Projects_16),"",dms_E3_Projects_16) -> Traralgon HP network augmentation
B139: =IF(ISBLANK(dms_E3_Projects_17),"",dms_E3_Projects_17) -> Berwick HP network augmentation
B140: =IF(ISBLANK(dms_E3_Projects_18),"",dms_E3_Projects_18) -> Echuca HP network augmentation
B141: =IF(ISBLANK(dms_E3_Projects_18),"",dms_E3_Projects_18) -> Echuca HP network augmentation
B142: =IF(ISBLANK(dms_E3_Projects_19),"",dms_E3_Projects_19) -> Howlong HP network augmentation
B143: =IF(ISBLANK(dms_E3_Projects_20),"",dms_E3_Projects_20) -> 20
B144: =IF(ISBLANK(dms_E3_Projects_21),"",dms_E3_Projects_21) -> 21
B145: =IF(ISBLANK(dms_E3_Projects_22),"",dms_E3_Projects_22) -> 22
B146: =IF(ISBLANK(dms_E3_Projects_23),"",dms_E3_Projects_23) -> 23
B147: =IF(ISBLANK(dms_E3_Projects_24),"",dms_E3_Projects_24) -> 24
B148: =IF(ISBLANK(dms_E3_Projects_25),"",dms_E3_Projects_25) -> 25
B149: =IF(ISBLANK(dms_E3_Projects_25),"",dms_E3_Projects_26) -> 26
B150: =IF(ISBLANK(dms_E3_Projects_27),"",dms_E3_Projects_27) -> 27
B151: =IF(ISBLANK(dms_E3_Projects_28),"",dms_E3_Projects_28) -> 28
B152: =IF(ISBLANK(dms_E3_Projects_29),"",dms_E3_Projects_29) -> 29
B153: =IF(ISBLANK(dms_E3_Projects_30),"",dms_E3_Projects_30) -> 30
B154: =IF(ISBLANK(dms_E3_Projects_31),"",dms_E3_Projects_31) -> 31
B155: =IF(ISBLANK(dms_E3_Projects_32),"",dms_E3_Projects_32) -> 32
B156: =IF(ISBLANK(dms_E3_Projects_33),"",dms_E3_Projects_33) -> 33
B157: =IF(ISBLANK(dms_E3_Projects_34),"",dms_E3_Projects_34) -> 34
B158: =IF(ISBLANK(dms_E3_Projects_35),"",dms_E3_Projects_35) -> 35
B159: =IF(ISBLANK(dms_E3_Projects_36),"",dms_E3_Projects_36) -> 36
B160: =IF(ISBLANK(dms_E3_Projects_37),"",dms_E3_Projects_37) -> 37
B161: =IF(ISBLANK(dms_E3_Projects_38),"",dms_E3_Projects_38) -> 38
B162: =IF(ISBLANK(dms_E3_Projects_39),"",dms_E3_Projects_39) -> 39
B163: =IF(ISBLANK(dms_E3_Projects_40),"",dms_E3_Projects_40) -> 40
B164: =IF(ISBLANK(dms_E3_Projects_41),"",dms_E3_Projects_41) -> 41
B165: =IF(ISBLANK(dms_E3_Projects_42),"",dms_E3_Projects_42) -> 42
B166: =IF(ISBLANK(dms_E3_Projects_43),"",dms_E3_Projects_43) -> 43
B167: =IF(ISBLANK(dms_E3_Projects_44),"",dms_E3_Projects_44) -> 44
B168: =IF(ISBLANK(dms_E3_Projects_45),"",dms_E3_Projects_45) -> 45
B169: =IF(ISBLANK(dms_E3_Projects_46),"",dms_E3_Projects_46) -> 46
B170: =IF(ISBLANK(dms_E3_Projects_47),"",dms_E3_Projects_47) -> 47
B171: =IF(ISBLANK(dms_E3_Projects_48),"",dms_E3_Projects_48) -> 48
B172: =IF(ISBLANK(dms_E3_Projects_49),"",dms_E3_Projects_49) -> 49
B173: =IF(ISBLANK(dms_E3_Projects_50),"",dms_E3_Projects_50) -> 50
B174: Aggregate of other projects with total expenditure of less than $500,000
B175: Total
B177: C. DIRECT MATERIAL EXPENDITURE
C178: EXPENDITURE
C179: =CONCATENATE("$0's, real ",dms_DollarReal) -> $0's, real June 2023
C180: =VLOOKUP(CRCP_y4,'AER lookups'!$B$52:$C$101,2,0) -> 2022 | D180: =CONCATENATE("1 Jan-30 Jun "&(C180+1)) -> 1 Jan-30 Jun 2023 | E180: =FRCP_y1 -> 2023-24 | F180: =FRCP_y2 -> 2024-25 | G180: =FRCP_y3 -> 2025-26 | H180: =FRCP_y4 -> 2026-27 | I180: =FRCP_y5 -> 2027-28
B181: =IF(ISBLANK(dms_E3_Projects_01),"",dms_E3_Projects_01) -> 3093 - MAJOR PROJECTS - DANDENONG TO CRIB POINT DUPLICATION (Asset Class - Mains and Services)
B182: =IF(ISBLANK(dms_E3_Projects_02),"",dms_E3_Projects_02) -> 3106 - MAJOR PROJECTS - H07 CRANBOURNE HP AUGMENTATION (Asset Class - Mains and Services)
B183: =IF(ISBLANK(dms_E3_Projects_03),"",dms_E3_Projects_03) -> 3117 - MAJOR PROJECTS - ERAMOSA RD SOMERVILLE (Asset Class - Mains and Services)
B184: =IF(ISBLANK(dms_E3_Projects_04),"",dms_E3_Projects_04) -> 2160 - NEW MAIN - IMPROVED SUPPLY - ECHUCA AUGMENTATION (Asset Class - Mains and Services)
B185: =IF(ISBLANK(dms_E3_Projects_05),"",dms_E3_Projects_05) -> 2160 - NEW MAIN - IMPROVED SUPPLY - MILL PARK LAKES AUGMENTATION (Asset Class - Mains and Services)
B186: =IF(ISBLANK(dms_E3_Projects_06),"",dms_E3_Projects_06) -> DONNYBROOK (Asset Class - Mains and Services)
B187: =IF(ISBLANK(dms_E3_Projects_07),"",dms_E3_Projects_07) -> BERWICK UPGRADE (Asset Class - Mains and Services)
B188: =IF(ISBLANK(dms_E3_Projects_08),"",dms_E3_Projects_08) -> LAURIMAR PARK (Asset Class - Mains and Services)
B189: =IF(ISBLANK(dms_E3_Projects_09),"",dms_E3_Projects_09) -> ANDREW RD WOLLERT (Asset Class - Mains and Services)
B190: =IF(ISBLANK(dms_E3_Projects_10),"",dms_E3_Projects_10) -> 3111 - MAJOR PROJECTS - LOGIC INDUSTRY PARK WODONGA (Asset Class - Mains and Services)
B191: =IF(ISBLANK(dms_E3_Projects_11),"",dms_E3_Projects_11) -> Cranbourne HP network augmentation
B192: =IF(ISBLANK(dms_E3_Projects_12),"",dms_E3_Projects_12) -> Thomastown HP network augmentation
B193: =IF(ISBLANK(dms_E3_Projects_13),"",dms_E3_Projects_13) -> Eltham HP network augmentation
B194: =IF(ISBLANK(dms_E3_Projects_14),"",dms_E3_Projects_14) -> Wallan HP network augmentation
B195: =IF(ISBLANK(dms_E3_Projects_15),"",dms_E3_Projects_15) -> Wodonga HP network augmentation
B196: =IF(ISBLANK(dms_E3_Projects_16),"",dms_E3_Projects_16) -> Traralgon HP network augmentation
B197: =IF(ISBLANK(dms_E3_Projects_17),"",dms_E3_Projects_17) -> Berwick HP network augmentation
B198: =IF(ISBLANK(dms_E3_Projects_18),"",dms_E3_Projects_18) -> Echuca HP network augmentation
B199: =IF(ISBLANK(dms_E3_Projects_18),"",dms_E3_Projects_18) -> Echuca HP network augmentation
B200: =IF(ISBLANK(dms_E3_Projects_19),"",dms_E3_Projects_19) -> Howlong HP network augmentation
B201: =IF(ISBLANK(dms_E3_Projects_20),"",dms_E3_Projects_20) -> 20
B202: =IF(ISBLANK(dms_E3_Projects_21),"",dms_E3_Projects_21) -> 21
B203: =IF(ISBLANK(dms_E3_Projects_22),"",dms_E3_Projects_22) -> 22
B204: =IF(ISBLANK(dms_E3_Projects_23),"",dms_E3_Projects_23) -> 23
B205: =IF(ISBLANK(dms_E3_Projects_24),"",dms_E3_Projects_24) -> 24
B206: =IF(ISBLANK(dms_E3_Projects_25),"",dms_E3_Projects_25) -> 25
... 541 more rows

Sheet E4. Meter replacement
B1: =INDEX(dms_Worksheet_List,MATCH(dms_Model,dms_Model_List)) -> REGULATORY REPORTING STATEMENT
B2: =dms_TradingName -> AGN (Albury and Victoria)
B3: =dms_Header_Span -> 2021-22 to 2027-28
B4: E4. METER REPLACEMENT
B6: E4.1 - CAPEX
B7: E4.1.1 - NEW METERS ACQUIRED
C8: EXPENDITURE
C9: =CONCATENATE("$0's, real ",dms_DollarReal) -> $0's, real June 2023
C10: =VLOOKUP(CRCP_y4,'AER lookups'!$B$52:$C$101,2,0) -> 2022 | D10: =CONCATENATE("1 Jan-30 Jun "&(C10+1)) -> 1 Jan-30 Jun 2023 | E10: =FRCP_y1 -> 2023-24 | F10: =FRCP_y2 -> 2024-25 | G10: =FRCP_y3 -> 2025-26 | H10: =FRCP_y4 -> 2026-27 | I10: =FRCP_y5 -> 2027-28
B11: A. DIRECT INTERNAL LABOUR EXPENDITURE
B12: Residential
B13: Industrial and Commercial
B14: Other
B15: Total | C15: =SUM(C12:C14) -> 0 | D15: =SUM(D12:D14) -> 0 | E15: 0 | F15: 0 | G15: 0 | H15: 0 | I15: 0
B16: B. DIRECT CONTRACTOR EXPENDITURE
B17: Residential
B18: Industrial and Commercial
B19: Other
B20: Total
B21: C. DIRECT MATERIAL EXPENDITURE
B22: Residential
B23: Industrial and Commercial
B24: Other
B25: Total | C25: =SUM(C22:C24) -> 0 | D25: =SUM(D22:D24) -> 0 | E25: 0 | F25: 0 | G25: 0 | H25: 0 | I25: 0
B26: D. OTHER DIRECT EXPENDITURE
B27: Residential
B28: Industrial and Commercial
B29: Other
B30: Total
B31: E. RELATED PARTY MARGIN EXPENDITURE
B32: Residential
B33: Industrial and Commercial
B34: Other
B35: Total | C35: =SUM(C32:C34) -> 0 | D35: =SUM(D32:D34) -> 0 | E35: 0 | F35: 0 | G35: 0 | H35: 0 | I35: 0
B36: F. CAPITAL CONTRIBUTIONS included in the above
B37: Residential
B38: Industrial and Commercial
B39: Other
B40: Total | C40: =SUM(C37:C39) -> 0 | D40: =SUM(D37:D39) -> 0 | E40: 0 | F40: 0 | G40: 0 | H40: 0 | I40: 0
B41: TOTAL | C41: =SUM(C15,C20,C25,C30,C35,C40) -> 0 | D41: =SUM(D15,D20,D25,D30,D35,D40) -> 0 | E41: 0 | F41: 0 | G41: 0 | H41: 0 | I41: 0
B43: E4.1.2 - METER REFURBISHMENT
C44: EXPENDITURE
C45: =CONCATENATE("$0's, real ",dms_DollarReal) -> $0's, real June 2023
C46: =VLOOKUP(CRCP_y4,'AER lookups'!$B$52:$C$101,2,0) -> 2022 | D46: =CONCATENATE("1 Jan-30 Jun "&(C46+1)) -> 1 Jan-30 Jun 2023 | E46: =FRCP_y1 -> 2023-24 | F46: =FRCP_y2 -> 2024-25 | G46: =FRCP_y3 -> 2025-26 | H46: =FRCP_y4 -> 2026-27 | I46: =FRCP_y5 -> 2027-28
B47: A. DIRECT INTERNAL LABOUR EXPENDITURE
B48: Residential
B49: Industrial and Commercial
B50: Other
B51: Total | C51: =SUM(C48:C50) -> 0 | D51: =SUM(D48:D50) -> 0 | E51: 0 | F51: 0 | G51: 0 | H51: 0 | I51: 0
B52: B. DIRECT CONTRACTOR EXPENDITURE
B53: Residential
B54: Industrial and Commercial
B55: Other
B56: Total
B57: C. DIRECT MATERIAL EXPENDITURE
B58: Residential
B59: Industrial and Commercial
B60: Other
B61: Total | C61: =SUM(C58:C60) -> 0 | D61: =SUM(D58:D60) -> 0 | E61: 0 | F61: 0 | G61: 0 | H61: 0 | I61: 0
B62: D. OTHER DIRECT EXPENDITURE
B63: Residential
B64: Industrial and Commercial
B65: Other
B66: Total
B67: E. RELATED PARTY MARGIN EXPENDITURE
B68: Residential
B69: Industrial and Commercial
B70: Other
B71: Total | C71: =SUM(C68:C70) -> 0 | D71: =SUM(D68:D70) -> 0 | E71: 0 | F71: 0 | G71: 0 | H71: 0 | I71: 0
B72: F. CAPITAL CONTRIBUTIONS included in the above
B73: Residential
B74: Industrial and Commercial
B75: Other
B76: Total | C76: =SUM(C73:C75) -> 0 | D76: =SUM(D73:D75) -> 0 | E76: 0 | F76: 0 | G76: 0 | H76: 0 | I76: 0
B77: TOTAL | C77: =SUM(C51,C56,C61,C66,C71,C76) -> 0 | D77: =SUM(D51,D56,D61,D66,D71,D76) -> 0 | E77: 0 | F77: 0 | G77: 0 | H77: 0 | I77: 0
B79: E4.1.3 - METER INSTALLATION
C80: EXPENDITURE
C81: =CONCATENATE("$0's, real ",dms_DollarReal) -> $0's, real June 2023
C82: =VLOOKUP(CRCP_y4,'AER lookups'!$B$52:$C$101,2,0) -> 2022 | D82: =CONCATENATE("1 Jan-30 Jun "&(C82+1)) -> 1 Jan-30 Jun 2023 | E82: =FRCP_y1 -> 2023-24 | F82: =FRCP_y2 -> 2024-25 | G82: =FRCP_y3 -> 2025-26 | H82: =FRCP_y4 -> 2026-27 | I82: =FRCP_y5 -> 2027-28
B83: A. DIRECT INTERNAL LABOUR EXPENDITURE
B84: Residential
B85: Industrial and Commercial
B86: Other
B87: Total | C87: =SUM(C84:C86) -> 0 | D87: =SUM(D84:D86) -> 0 | E87: 0 | F87: 0 | G87: 0 | H87: 0 | I87: 0
B88: B. DIRECT CONTRACTOR EXPENDITURE
B89: Residential
B90: Industrial and Commercial
B91: Other
B92: Total | C92: =SUM(C89:C91) -> 0 | D92: =SUM(D89:D91) -> 0 | E92: 0 | F92: 0 | G92: 0 | H92: 0 | I92: 0
B93: C. DIRECT MATERIAL EXPENDITURE
B94: Residential
B95: Industrial and Commercial
B96: Other
B97: Total | C97: =SUM(C94:C96) -> 0 | D97: =SUM(D94:D96) -> 0 | E97: 0 | F97: 0 | G97: 0 | H97: 0 | I97: 0
B98: D. OTHER DIRECT EXPENDITURE
B99: Residential
B100: Industrial and Commercial
B101: Other
B102: Total | C102: =SUM(C99:C101) -> 0 | D102: =SUM(D99:D101) -> 0 | E102: 0 | F102: 0 | G102: 0 | H102: 0 | I102: 0
B103: E. RELATED PARTY MARGIN EXPENDITURE
B104: Residential
B105: Industrial and Commercial
B106: Other
B107: Total | C107: =SUM(C104:C106) -> 0 | D107: =SUM(D104:D106) -> 0 | E107: 0 | F107: 0 | G107: 0 | H107: 0 | I107: 0
B108: F. CAPITAL CONTRIBUTIONS included in the above
B109: Residential
B110: Industrial and Commercial
B111: Other
B112: Total | C112: =SUM(C109:C111) -> 0 | D112: =SUM(D109:D111) -> 0 | E112: 0 | F112: 0 | G112: 0 | H112: 0 | I112: 0
B113: TOTAL | C113: =SUM(C87,C92,C97,C102,C107,C112) -> 0 | D113: =SUM(D87,D92,D97,D102,D107,D112) -> 0 | E113: 0 | F113: 0 | G113: 0 | H113: 0 | I113: 0
B115: E4.1.4 - OTHER METER REPLACEMENT CAPEX
C116: EXPENDITURE
C117: =CONCATENATE("$0's, real ",dms_DollarReal) -> $0's, real June 2023
C118: =VLOOKUP(CRCP_y4,'AER lookups'!$B$52:$C$101,2,0) -> 2022 | D118: =CONCATENATE("1 Jan-30 Jun "&(C118+1)) -> 1 Jan-30 Jun 2023 | E118: =FRCP_y1 -> 2023-24 | F118: =FRCP_y2 -> 2024-25 | G118: =FRCP_y3 -> 2025-26 | H118: =FRCP_y4 -> 2026-27 | I118: =FRCP_y5 -> 2027-28
B119: A. DIRECT INTERNAL LABOUR EXPENDITURE
B120: Residential
B121: Industrial and Commercial
B122: Other
B123: Total | C123: =SUM(C120:C122) -> 0 | D123: =SUM(D120:D122) -> 0 | E123: 0 | F123: 0 | G123: 0 | H123: 0 | I123: 0
B124: B. DIRECT CONTRACTOR EXPENDITURE
B125: Residential
B126: Industrial and Commercial
B127: Other
B128: Total
B129: C. DIRECT MATERIAL EXPENDITURE
B130: Residential
B131: Industrial and Commercial
B132: Other
B133: Total | C133: =SUM(C130:C132) -> 0 | D133: =SUM(D130:D132) -> 0 | E133: 0 | F133: 0 | G133: 0 | H133: 0 | I133: 0
B134: D. OTHER DIRECT EXPENDITURE
B135: Residential
B136: Industrial and Commercial
B137: Other
B138: Total
B139: E. RELATED PARTY MARGIN EXPENDITURE
B140: Residential
B141: Industrial and Commercial
B142: Other
B143: Total | C143: =SUM(C140:C142) -> 0 | D143: =SUM(D140:D142) -> 0 | E143: 0 | F143: 0 | G143: 0 | H143: 0 | I143: 0
B144: F. CAPITAL CONTRIBUTIONS included in the above
B145: Residential | E145: 174553.5123 | F145: 176076.667 | G145: 176318.9441 | H145: 178294.3892 | I145: 179790.8059
B146: Industrial and Commercial
B147: Other
B148: Total | C148: =SUM(C145:C147) -> 0 | D148: =SUM(D145:D147) -> 0 | E148: 174553.5123 | F148: 176076.667 | G148: 176318.9441 | H148: 178294.3892 | I148: 179790.8059
B149: TOTAL | C149: =SUM(C123,C128,C133,C138,C143,C148) -> 0 | D149: =SUM(D123,D128,D133,D138,D143,D148) -> 0 | E149: 174553.5123 | F149: 176076.667 | G149: 176318.9441 | H149: 178294.3892 | I149: 179790.8059
B152: E4.2 - VOLUMES
B153: E4.2.1 - NUMBER OF NEW METERS ACQUIRED
C154: VOLUMES
C155: 0s
C156: =VLOOKUP(CRCP_y4,'AER lookups'!$B$52:$C$101,2,0) -> 2022 | D156: =CONCATENATE("1 Jan-30 Jun "&(C156+1)) -> 1 Jan-30 Jun 2023 | E156: =FRCP_y1 -> 2023-24 | F156: =FRCP_y2 -> 2024-25 | G156: =FRCP_y3 -> 2025-26 | H156: =FRCP_y4 -> 2026-27 | I156: =FRCP_y5 -> 2027-28
B157: Residential | C157: 19872.08576 | D157: 7196.054534 | E157: 22581 | F157: 11504 | G157: 54797 | H157: 31217 | I157: 31529
B158: Industrial and commercial | C158: 144.0237624 | D158: 413.8613861 | E158: 123 | F158: 122.5 | G158: 173.5 | H158: 131 | I158: 128.5
B159: Other meters
B160: Total | C160: =SUM(C157:C159) -> 20016.10952 | D160: =SUM(D157:D159) -> 7609.91592 | E160: 22704 | F160: 11626.5 | G160: 54970.5 | H160: 31348 | I160: 31657.5
B163: E4.2.2 - NUMBER OF METERS REFURBISHED
C164: VOLUMES
C165: 0s
C166: =VLOOKUP(CRCP_y4,'AER lookups'!$B$52:$C$101,2,0) -> 2022 | D166: =CONCATENATE("1 Jan-30 Jun "&(C166+1)) -> 1 Jan-30 Jun 2023 | E166: =FRCP_y1 -> 2023-24 | F166: =FRCP_y2 -> 2024-25 | G166: =FRCP_y3 -> 2025-26 | H166: =FRCP_y4 -> 2026-27 | I166: =FRCP_y5 -> 2027-28
B167: A. REFURBISHABLE METERS REMOVED
B168: Residential
B169: Industrial and commercial
B170: Other meters
B171: Total | C171: =SUM(C168:C170) -> 0 | D171: 0 | E171: 0 | F171: 0 | G171: 0 | H171: 0 | I171: 0
B172: B. METERS DECOMMISSIONED
B173: Residential
B174: Industrial and commercial
B175: Other meters
B176: Total | C176: =SUM(C173:C175) -> 0 | D176: 0 | E176: 0 | F176: 0 | G176: 0 | H176: 0 | I176: 0
B177: TOTAL | C177: =SUM(C171,C176) -> 0 | D177: =SUM(D171,D176) -> 0 | E177: 0 | F177: 0 | G177: 0 | H177: 0 | I177: 0
B180: E4.2.3 - NUMBER OF METERS INSTALLED
C181: VOLUMES
C182: 0s
C183: =VLOOKUP(CRCP_y4,'AER lookups'!$B$52:$C$101,2,0) -> 2022 | D183: =CONCATENATE("1 Jan-30 Jun "&(C183+1)) -> 1 Jan-30 Jun 2023 | E183: =FRCP_y1 -> 2023-24 | F183: =FRCP_y2 -> 2024-25 | G183: =FRCP_y3 -> 2025-26 | H183: =FRCP_y4 -> 2026-27 | I183: =FRCP_y5 -> 2027-28
B184: Residential | C184: 31179 | D184: 11290.5 | E184: 29081 | F184: 17390 | G184: 56297 | H184: 32717 | I184: 33029
B185: Industrial and commercial | C185: 348 | D185: 1000 | E185: 292 | F185: 291 | G185: 393 | H185: 308 | I185: 302
B186: Other meters
B187: Total | C187: =SUM(C184:C186) -> 31527 | D187: =SUM(D184:D186) -> 12290.5 | E187: 29373 | F187: 17681 | G187: 56690 | H187: 33025 | I187: 33331
B190: E4.2.4 - NUMBER OF METERS REMOVED / DECOMMISSIONED
C191: VOLUMES
C192: 0s
C193: =VLOOKUP(CRCP_y4,'AER lookups'!$B$52:$C$101,2,0) -> 2022 | D193: =CONCATENATE("1 Jan-30 Jun "&(C193+1)) -> 1 Jan-30 Jun 2023 | E193: =FRCP_y1 -> 2023-24 | F193: =FRCP_y2 -> 2024-25 | G193: =FRCP_y3 -> 2025-26 | H193: =FRCP_y4 -> 2026-27 | I193: =FRCP_y5 -> 2027-28
B194: Residential | C194: 19872.08576 | D194: 7196.054534 | E194: 25581 | F194: 14197 | G194: 55297 | H194: 31717 | I194: 32029
B195: Industrial and commercial | C195: 144.0237624 | D195: 413.8613861 | E195: 123 | F195: 122.5 | G195: 173.5 | H195: 131 | I195: 128.5
B196: Other meters
B197: Total | C197: =SUM(C194:C196) -> 20016.10952 | D197: =SUM(D194:D196) -> 7609.91592 | E197: 25704 | F197: 14319.5 | G197: 55470.5 | H197: 31848 | I197: 32157.5
B200: E4.2.5 - OTHER METER REPLACEMENT VOLUMES
C201: VOLUMES
C202: 0s
C203: =VLOOKUP(CRCP_y4,'AER lookups'!$B$52:$C$101,2,0) -> 2022 | D203: =CONCATENATE("1 Jan-30 Jun "&(C203+1)) -> 1 Jan-30 Jun 2023 | E203: =FRCP_y1 -> 2023-24 | F203: =FRCP_y2 -> 2024-25 | G203: =FRCP_y3 -> 2025-26 | H203: =FRCP_y4 -> 2026-27 | I203: =FRCP_y5 -> 2027-28
B204: Residential | E204: 3500 | F204: 3193 | G204: 1000 | H204: 1000 | I204: 1000
B205: Industrial and commercial | E205: 46 | F205: 46 | G205: 46 | H205: 46 | I205: 45
B206: Other meters
B207: Total | C207: =SUM(C204:C206) -> 0 | D207: =SUM(D204:D206) -> 0 | E207: 3546 | F207: 3239 | G207: 1046 | H207: 1046 | I207: 1045
B210: E4.2.2 - NUMBER OF METERS Refurbished - replaced 6 May 2022
C211: VOLUMES
C212: 0s
C213: =VLOOKUP(CRCP_y4,'AER lookups'!$B$52:$C$101,2,0) -> 2022 | D213: =CONCATENATE("1 Jan-30 Jun "&(C213+1)) -> 1 Jan-30 Jun 2023 | E213: =FRCP_y1 -> 2023-24 | F213: =FRCP_y2 -> 2024-25 | G213: =FRCP_y3 -> 2025-26 | H213: =FRCP_y4 -> 2026-27 | I213: =FRCP_y5 -> 2027-28
B214: Residential | C214: 11306.91424 | D214: 4094.445466
B215: Industrial and commercial | C215: 203.9762376 | D215: 586.1386139 | E215: 123 | F215: 122.5 | G215: 173.5 | H215: 131 | I215: 128.5
B216: Other meters
... 1 more rows

Sheet E5. New Connections
B1: =INDEX(dms_Worksheet_List,MATCH(dms_Model,dms_Model_List)) -> REGULATORY REPORTING STATEMENT
B2: =dms_TradingName -> AGN (Albury and Victoria)
B3: =dms_Header_Span -> 2021-22 to 2027-28
B4: E5. NEW CONNECTIONS
B6: E5.1 - EXPENDITURE
B7: E5.1.1 - CAPEX - BY CONNECTION TYPE
B8: A. DIRECT INTERNAL LABOUR EXPENDITURE
D9: EXPENDITURE
D10: =CONCATENATE("$0's, real ",dms_DollarReal) -> $0's, real June 2023
D11: =VLOOKUP(CRCP_y4,'AER lookups'!$B$52:$C$101,2,0) -> 2022 | E11: =CONCATENATE("1 Jan-30 Jun "&(D11+1)) -> 1 Jan-30 Jun 2023 | F11: =FRCP_y1 -> 2023-24 | G11: =FRCP_y2 -> 2024-25 | H11: =FRCP_y3 -> 2025-26 | I11: =FRCP_y4 -> 2026-27 | J11: =FRCP_y5 -> 2027-28
B12: (i) ELECTRICITY TO GAS
B13: Distribution Mains
B14: Inlet service pipes
B15: Meters
C16: Total | D16: =SUM(D13:D15) -> 0 | E16: =SUM(E13:E15) -> 0 | F16: 0 | G16: 0 | H16: 0 | I16: 0 | J16: 0
B17: (ii) NEW HOMES
B18: Distribution Mains
B19: Inlet service pipes
B20: Meters
C21: Total | D21: =SUM(D18:D20) -> 0 | E21: =SUM(E18:E20) -> 0 | F21: =SUM(F18:F20) -> 0 | G21: =SUM(G18:G20) -> 0 | H21: =SUM(H18:H20) -> 0 | I21: =SUM(I18:I20) -> 0 | J21: =SUM(J18:J20) -> 0
B22: (iii) NEW MEDIUM DENSITY / HIGH RISE
B23: Distribution Mains
B24: Inlet service pipes
B25: Meters
C26: Total | D26: =SUM(D23:D25) -> 0 | E26: =SUM(E23:E25) -> 0 | F26: =SUM(F23:F25) -> 0 | G26: =SUM(G23:G25) -> 0 | H26: =SUM(H23:H25) -> 0 | I26: =SUM(I23:I25) -> 0 | J26: =SUM(J23:J25) -> 0
B27: (iv) INDUSTRIAL & COMMERCIAL TARIFF
B28: Distribution Mains
B29: Inlet service pipes
B30: Meters
C31: Total | D31: =SUM(D28:D30) -> 0 | E31: =SUM(E28:E30) -> 0 | F31: =SUM(F28:F30) -> 0 | G31: =SUM(G28:G30) -> 0 | H31: =SUM(H28:H30) -> 0 | I31: =SUM(I28:I30) -> 0 | J31: =SUM(J28:J30) -> 0
B32: (v) INDUSTRIAL & COMMERCIAL CONTRACT
B33: Distribution Mains
B34: Inlet service pipes
B35: Meters
C36: Total | D36: =SUM(D33:D35) -> 0 | E36: =SUM(E33:E35) -> 0 | F36: =SUM(F33:F35) -> 0 | G36: =SUM(G33:G35) -> 0 | H36: =SUM(H33:H35) -> 0 | I36: =SUM(I33:I35) -> 0 | J36: =SUM(J33:J35) -> 0
C37: TOTAL | D37: =SUM(D36,D31,D26,D21,D16) -> 0 | E37: =SUM(E36,E31,E26,E21,E16) -> 0 | F37: 0 | G37: 0 | H37: 0 | I37: 0 | J37: 0
B39: B. DIRECT CONTRACTOR EXPENDITURE
D40: EXPENDITURE
D41: =CONCATENATE("$0's, real ",dms_DollarReal) -> $0's, real June 2023
D42: =VLOOKUP(CRCP_y4,'AER lookups'!$B$52:$C$101,2,0) -> 2022 | E42: =CONCATENATE("1 Jan-30 Jun "&(D42+1)) -> 1 Jan-30 Jun 2023 | F42: =FRCP_y1 -> 2023-24 | G42: =FRCP_y2 -> 2024-25 | H42: =FRCP_y3 -> 2025-26 | I42: =FRCP_y4 -> 2026-27 | J42: =FRCP_y5 -> 2027-28
B43: (i) ELECTRICITY TO GAS
B44: Distribution Mains
B45: Inlet service pipes
B46: Meters
C47: Total
B48: (ii) NEW HOMES
B49: Distribution Mains
B50: Inlet service pipes
B51: Meters
C52: Total
B53: (iii) NEW MEDIUM DENSITY / HIGH RISE
B54: Distribution Mains
B55: Inlet service pipes
B56: Meters
C57: Total
B58: (iv) INDUSTRIAL & COMMERCIAL TARIFF
B59: Distribution Mains
B60: Inlet service pipes
B61: Meters
C62: Total
B63: (v) INDUSTRIAL & COMMERCIAL CONTRACT
B64: Distribution Mains
B65: Inlet service pipes
B66: Meters
C67: Total
C68: TOTAL
B70: C. DIRECT MATERIAL EXPENDITURE
D71: EXPENDITURE
D72: =CONCATENATE("$0's, real ",dms_DollarReal) -> $0's, real June 2023
D73: =VLOOKUP(CRCP_y4,'AER lookups'!$B$52:$C$101,2,0) -> 2022 | E73: =CONCATENATE("1 Jan-30 Jun "&(D73+1)) -> 1 Jan-30 Jun 2023 | F73: =FRCP_y1 -> 2023-24 | G73: =FRCP_y2 -> 2024-25 | H73: =FRCP_y3 -> 2025-26 | I73: =FRCP_y4 -> 2026-27 | J73: =FRCP_y5 -> 2027-28
B74: (i) ELECTRICITY TO GAS
B75: Distribution Mains
B76: Inlet service pipes
B77: Meters
C78: Total | D78: =SUM(D75:D77) -> 0 | E78: =SUM(E75:E77) -> 0 | F78: =SUM(F75:F77) -> 0 | G78: =SUM(G75:G77) -> 0 | H78: =SUM(H75:H77) -> 0 | I78: =SUM(I75:I77) -> 0 | J78: =SUM(J75:J77) -> 0
B79: (ii) NEW HOMES
B80: Distribution Mains
B81: Inlet service pipes
B82: Meters
C83: Total | D83: =SUM(D80:D82) -> 0 | E83: =SUM(E80:E82) -> 0 | F83: =SUM(F80:F82) -> 0 | G83: =SUM(G80:G82) -> 0 | H83: =SUM(H80:H82) -> 0 | I83: =SUM(I80:I82) -> 0 | J83: =SUM(J80:J82) -> 0
B84: (iii) NEW MEDIUM DENSITY / HIGH RISE
B85: Distribution Mains
B86: Inlet service pipes
B87: Meters
C88: Total | D88: =SUM(D85:D87) -> 0 | E88: =SUM(E85:E87) -> 0 | F88: =SUM(F85:F87) -> 0 | G88: =SUM(G85:G87) -> 0 | H88: =SUM(H85:H87) -> 0 | I88: =SUM(I85:I87) -> 0 | J88: =SUM(J85:J87) -> 0
B89: (iv) INDUSTRIAL & COMMERCIAL TARIFF
B90: Distribution Mains
B91: Inlet service pipes
B92: Meters
C93: Total | D93: =SUM(D90:D92) -> 0 | E93: =SUM(E90:E92) -> 0 | F93: =SUM(F90:F92) -> 0 | G93: =SUM(G90:G92) -> 0 | H93: =SUM(H90:H92) -> 0 | I93: =SUM(I90:I92) -> 0 | J93: =SUM(J90:J92) -> 0
B94: (v) INDUSTRIAL & COMMERCIAL CONTRACT
B95: Distribution Mains
B96: Inlet service pipes
B97: Meters
C98: Total | D98: =SUM(D95:D97) -> 0 | E98: =SUM(E95:E97) -> 0 | F98: =SUM(F95:F97) -> 0 | G98: =SUM(G95:G97) -> 0 | H98: =SUM(H95:H97) -> 0 | I98: =SUM(I95:I97) -> 0 | J98: =SUM(J95:J97) -> 0
C99: TOTAL | D99: =SUM(D98,D93,D88,D83,D78) -> 0 | E99: =SUM(E98,E93,E88,E83,E78) -> 0 | F99: =SUM(F98,F93,F88,F83,F78) -> 0 | G99: =SUM(G98,G93,G88,G83,G78) -> 0 | H99: =SUM(H98,H93,H88,H83,H78) -> 0 | I99: =SUM(I98,I93,I88,I83,I78) -> 0 | J99: =SUM(J98,J93,J88,J83,J78) -> 0
B101: D. OTHER DIRECT EXPENDITURE
D102: EXPENDITURE
D103: =CONCATENATE("$0's, real ",dms_DollarReal) -> $0's, real June 2023
D104: =VLOOKUP(CRCP_y4,'AER lookups'!$B$52:$C$101,2,0) -> 2022 | E104: =CONCATENATE("1 Jan-30 Jun "&(D104+1)) -> 1 Jan-30 Jun 2023 | F104: =FRCP_y1 -> 2023-24 | G104: =FRCP_y2 -> 2024-25 | H104: =FRCP_y3 -> 2025-26 | I104: =FRCP_y4 -> 2026-27 | J104: =FRCP_y5 -> 2027-28
B105: (i) ELECTRICITY TO GAS
B106: Distribution Mains
B107: Inlet service pipes
B108: Meters
C109: Total
B110: (ii) NEW HOMES
B111: Distribution Mains
B112: Inlet service pipes
B113: Meters
C114: Total
B115: (iii) NEW MEDIUM DENSITY / HIGH RISE
B116: Distribution Mains
B117: Inlet service pipes
B118: Meters
C119: Total
B120: (iv) INDUSTRIAL & COMMERCIAL TARIFF
B121: Distribution Mains
B122: Inlet service pipes
B123: Meters
C124: Total
B125: (v) INDUSTRIAL & COMMERCIAL CONTRACT
B126: Distribution Mains
B127: Inlet service pipes
B128: Meters
C129: Total
C130: TOTAL
B132: E. RELATED PARTY MARGIN EXPENDITURE
D133: EXPENDITURE
D134: =CONCATENATE("$0's, real ",dms_DollarReal) -> $0's, real June 2023
D135: =VLOOKUP(CRCP_y4,'AER lookups'!$B$52:$C$101,2,0) -> 2022 | E135: =CONCATENATE("1 Jan-30 Jun "&(D135+1)) -> 1 Jan-30 Jun 2023 | F135: =FRCP_y1 -> 2023-24 | G135: =FRCP_y2 -> 2024-25 | H135: =FRCP_y3 -> 2025-26 | I135: =FRCP_y4 -> 2026-27 | J135: =FRCP_y5 -> 2027-28
B136: (i) ELECTRICITY TO GAS
B137: Distribution Mains
B138: Inlet service pipes
B139: Meters
C140: Total | D140: =SUM(D137:D139) -> 0 | E140: =SUM(E137:E139) -> 0 | F140: =SUM(F137:F139) -> 0 | G140: =SUM(G137:G139) -> 0 | H140: =SUM(H137:H139) -> 0 | I140: =SUM(I137:I139) -> 0 | J140: =SUM(J137:J139) -> 0
B141: (ii) NEW HOMES
B142: Distribution Mains
B143: Inlet service pipes
B144: Meters
C145: Total | D145: =SUM(D142:D144) -> 0 | E145: =SUM(E142:E144) -> 0 | F145: =SUM(F142:F144) -> 0 | G145: =SUM(G142:G144) -> 0 | H145: =SUM(H142:H144) -> 0 | I145: =SUM(I142:I144) -> 0 | J145: =SUM(J142:J144) -> 0
B146: (iii) NEW MEDIUM DENSITY / HIGH RISE
B147: Distribution Mains
B148: Inlet service pipes
B149: Meters
C150: Total | D150: =SUM(D147:D149) -> 0 | E150: =SUM(E147:E149) -> 0 | F150: =SUM(F147:F149) -> 0 | G150: =SUM(G147:G149) -> 0 | H150: =SUM(H147:H149) -> 0 | I150: =SUM(I147:I149) -> 0 | J150: =SUM(J147:J149) -> 0
B151: (iv) INDUSTRIAL & COMMERCIAL TARIFF
B152: Distribution Mains
B153: Inlet service pipes
B154: Meters
C155: Total | D155: =SUM(D152:D154) -> 0 | E155: =SUM(E152:E154) -> 0 | F155: =SUM(F152:F154) -> 0 | G155: =SUM(G152:G154) -> 0 | H155: =SUM(H152:H154) -> 0 | I155: =SUM(I152:I154) -> 0 | J155: =SUM(J152:J154) -> 0
B156: (v) INDUSTRIAL & COMMERCIAL CONTRACT
B157: Distribution Mains
B158: Inlet service pipes
B159: Meters
C160: Total | D160: =SUM(D157:D159) -> 0 | E160: =SUM(E157:E159) -> 0 | F160: =SUM(F157:F159) -> 0 | G160: =SUM(G157:G159) -> 0 | H160: =SUM(H157:H159) -> 0 | I160: =SUM(I157:I159) -> 0 | J160: =SUM(J157:J159) -> 0
C161: TOTAL | D161: =SUM(D160,D155,D150,D145,D140) -> 0 | E161: =SUM(E160,E155,E150,E145,E140) -> 0 | F161: =SUM(F160,F155,F150,F145,F140) -> 0 | G161: =SUM(G160,G155,G150,G145,G140) -> 0 | H161: =SUM(H160,H155,H150,H145,H140) -> 0 | I161: =SUM(I160,I155,I150,I145,I140) -> 0 | J161: =SUM(J160,J155,J150,J145,J140) -> 0
B163: F. CAPITAL CONTRIBUTIONS included in the above
D164: EXPENDITURE
D165: =CONCATENATE("$0's, real ",dms_DollarReal) -> $0's, real June 2023
D166: =VLOOKUP(CRCP_y4,'AER lookups'!$B$52:$C$101,2,0) -> 2022 | E166: =CONCATENATE("1 Jan-30 Jun "&(D166+1)) -> 1 Jan-30 Jun 2023 | F166: =FRCP_y1 -> 2023-24 | G166: =FRCP_y2 -> 2024-25 | H166: =FRCP_y3 -> 2025-26 | I166: =FRCP_y4 -> 2026-27 | J166: =FRCP_y5 -> 2027-28
B167: (i) ELECTRICITY TO GAS
B168: Distribution Mains
B169: Inlet service pipes
B170: Meters
C171: Total | D171: =SUM(D168:D170) -> 0 | E171: =SUM(E168:E170) -> 0 | F171: =SUM(F168:F170) -> 0 | G171: =SUM(G168:G170) -> 0 | H171: =SUM(H168:H170) -> 0 | I171: =SUM(I168:I170) -> 0 | J171: =SUM(J168:J170) -> 0
B172: (ii) NEW HOMES
B173: Distribution Mains | D173: 1266000 | E173: 640342.8 | F173: 1732262.961 | G173: 1745740.376 | H173: 1746994.69 | I173: 1769041.909 | J173: 1784862.12
B174: Inlet service pipes
B175: Meters
C176: Total | D176: =SUM(D173:D175) -> 1266000 | E176: =SUM(E173:E175) -> 640342.8 | F176: =SUM(F173:F175) -> 1732262.961 | G176: =SUM(G173:G175) -> 1745740.376 | H176: =SUM(H173:H175) -> 1746994.69 | I176: =SUM(I173:I175) -> 1769041.909 | J176: =SUM(J173:J175) -> 1784862.12
B177: (iii) NEW MEDIUM DENSITY / HIGH RISE
B178: Distribution Mains
B179: Inlet service pipes
B180: Meters
C181: Total | D181: =SUM(D178:D180) -> 0 | E181: =SUM(E178:E180) -> 0 | F181: =SUM(F178:F180) -> 0 | G181: =SUM(G178:G180) -> 0 | H181: =SUM(H178:H180) -> 0 | I181: =SUM(I178:I180) -> 0 | J181: =SUM(J178:J180) -> 0
B182: (iv) INDUSTRIAL & COMMERCIAL TARIFF
B183: Distribution Mains
B184: Inlet service pipes
B185: Meters
C186: Total | D186: =SUM(D183:D185) -> 0 | E186: =SUM(E183:E185) -> 0 | F186: =SUM(F183:F185) -> 0 | G186: =SUM(G183:G185) -> 0 | H186: =SUM(H183:H185) -> 0 | I186: =SUM(I183:I185) -> 0 | J186: =SUM(J183:J185) -> 0
B187: (v) INDUSTRIAL & COMMERCIAL CONTRACT
B188: Distribution Mains | D188: 1712265 | E188: 866063.637
B189: Inlet service pipes
B190: Meters
C191: Total | D191: =SUM(D188:D190) -> 1712265 | E191: =SUM(E188:E190) -> 866063.637 | F191: =SUM(F188:F190) -> 0 | G191: =SUM(G188:G190) -> 0 | H191: =SUM(H188:H190) -> 0 | I191: =SUM(I188:I190) -> 0 | J191: =SUM(J188:J190) -> 0
C192: TOTAL | D192: =SUM(D191,D186,D181,D176,D171) -> 2978265 | E192: =SUM(E191,E186,E181,E176,E171) -> 1506406.437 | F192: =SUM(F191,F186,F181,F176,F171) -> 1732262.961 | G192: =SUM(G191,G186,G181,G176,G171) -> 1745740.376 | H192: =SUM(H191,H186,H181,H176,H171) -> 1746994.69 | I192: =SUM(I191,I186,I181,I176,I171) -> 1769041.909 | J192: =SUM(J191,J186,J181,J176,J171) -> 1784862.12
B195: E5.2 - UNIT RATES
B196: E5.2.1 - UNIT RATES - PER CONNECTION - BY CONNECTION TYPE
D197: RATES PER CONNECTION
D198: =CONCATENATE("$0's, real ",dms_DollarReal) -> $0's, real June 2023
C199: Units | D199: =VLOOKUP(CRCP_y4,'AER lookups'!$B$52:$C$101,2,0) -> 2022 | E199: =CONCATENATE("1 Jan-30 Jun "&(D199+1)) -> 1 Jan-30 Jun 2023 | F199: =FRCP_y1 -> 2023-24 | G199: =FRCP_y2 -> 2024-25 | H199: =FRCP_y3 -> 2025-26 | I199: =FRCP_y4 -> 2026-27 | J199: =FRCP_y5 -> 2027-28
B200: A. ELECTRICITY TO GAS
B201: Distribution mains | C201: per metre per connection
B202: Inlet service pipes | C202: per service per connection
B203: Meters | C203: number per connection
B204: B. NEW HOMES
B205: Distribution mains | C205: per metre per connection
B206: Inlet service pipes | C206: per service per connection
B207: Meters | C207: number per connection
B208: C. NEW MEDIUM DENSITY / HIGH RISE
... 67 more rows

Sheet E6. Non-network
B1: =INDEX(dms_Worksheet_List,MATCH(dms_Model,dms_Model_List)) -> REGULATORY REPORTING STATEMENT
B2: =dms_TradingName -> AGN (Albury and Victoria)
B3: =dms_Header_Span -> 2021-22 to 2027-28
B4: E6. NON-NETWORK EXPENDITURE
B6: E6.5 - TELEMETRY
B8: Please list all projects here:
B9: End of Life Replacement
B10: SCADA Fringe Monitoring
B26: E6.5.1 - CAPEX - BY PROJECT
B27: A. DIRECT INTERNAL LABOUR EXPENDITURE
C28: EXPENDITURE
C29: =CONCATENATE("$0's, real ",dms_DollarReal) -> $0's, real June 2023
C30: =VLOOKUP(CRCP_y4,'AER lookups'!$B$52:$C$101,2,0) -> 2022 | D30: =CONCATENATE("1 Jan-30 Jun "&(C30+1)) -> 1 Jan-30 Jun 2023 | E30: =FRCP_y1 -> 2023-24 | F30: =FRCP_y2 -> 2024-25 | G30: =FRCP_y3 -> 2025-26 | H30: =FRCP_y4 -> 2026-27 | I30: =FRCP_y5 -> 2027-28
B31: =IF(ISBLANK(dms_E65_Projects_01),"",dms_E65_Projects_01) -> End of Life Replacement
B32: =IF(ISBLANK(dms_E65_Projects_02),"",dms_E65_Projects_02) -> SCADA Fringe Monitoring
B33: =IF(ISBLANK(dms_E65_Projects_03),"",dms_E65_Projects_03) -> 
B34: =IF(ISBLANK(dms_E65_Projects_04),"",dms_E65_Projects_04) -> 
B35: =IF(ISBLANK(dms_E65_Projects_05),"",dms_E65_Projects_05) -> 
B36: =IF(ISBLANK(dms_E65_Projects_06),"",dms_E65_Projects_06) -> 
B37: =IF(ISBLANK(dms_E65_Projects_07),"",dms_E65_Projects_07) -> 
B38: =IF(ISBLANK(dms_E65_Projects_08),"",dms_E65_Projects_08) -> 
B39: =IF(ISBLANK(dms_E65_Projects_09),"",dms_E65_Projects_09) -> 
B40: =IF(ISBLANK(dms_E65_Projects_10),"",dms_E65_Projects_10) -> 
B41: =IF(ISBLANK(dms_E65_Projects_11),"",dms_E65_Projects_11) -> 
B42: =IF(ISBLANK(dms_E65_Projects_12),"",dms_E65_Projects_12) -> 
B43: =IF(ISBLANK(dms_E65_Projects_13),"",dms_E65_Projects_13) -> 
B44: =IF(ISBLANK(dms_E65_Projects_14),"",dms_E65_Projects_14) -> 
B45: =IF(ISBLANK(dms_E65_Projects_15),"",dms_E65_Projects_15) -> 
B46: Aggregate of other projects with total expenditure of less than $500,000
B47: Total | C47: =SUM(C31:C46) -> 0 | D47: =SUM(D31:D46) -> 0 | E47: 0 | F47: 0 | G47: 0 | H47: 0 | I47: 0
B49: B. DIRECT CONTRACTOR EXPENDITURE
B50: =IF(ISBLANK(dms_E65_Projects_01),"",dms_E65_Projects_01) -> End of Life Replacement | E50: 719644.7291 | F50: 507411.7656 | G50: 486849.1661 | H50: 492489.3722 | I50: 441566.0172
B51: =IF(ISBLANK(dms_E65_Projects_02),"",dms_E65_Projects_02) -> SCADA Fringe Monitoring | E51: 398061.6712 | F51: 400254.3968 | G51: 405131.1383 | H51: 406614.0944 | I51: 410105.5943
B52: =IF(ISBLANK(dms_E65_Projects_03),"",dms_E65_Projects_03) -> 
B53: =IF(ISBLANK(dms_E65_Projects_04),"",dms_E65_Projects_04) -> 
B54: =IF(ISBLANK(dms_E65_Projects_05),"",dms_E65_Projects_05) -> 
B55: =IF(ISBLANK(dms_E65_Projects_06),"",dms_E65_Projects_06) -> 
B56: =IF(ISBLANK(dms_E65_Projects_07),"",dms_E65_Projects_07) -> 
B57: =IF(ISBLANK(dms_E65_Projects_08),"",dms_E65_Projects_08) -> 
B58: =IF(ISBLANK(dms_E65_Projects_09),"",dms_E65_Projects_09) -> 
B59: =IF(ISBLANK(dms_E65_Projects_10),"",dms_E65_Projects_10) -> 
B60: =IF(ISBLANK(dms_E65_Projects_11),"",dms_E65_Projects_11) -> 
B61: =IF(ISBLANK(dms_E65_Projects_12),"",dms_E65_Projects_12) -> 
B62: =IF(ISBLANK(dms_E65_Projects_13),"",dms_E65_Projects_13) -> 
B63: =IF(ISBLANK(dms_E65_Projects_14),"",dms_E65_Projects_14) -> 
B64: =IF(ISBLANK(dms_E65_Projects_15),"",dms_E65_Projects_15) -> 
B65: Aggregate of other projects with total expenditure of less than $500,000 (Asset Class SCADA) | C65: 491978.9967 | D65: 447537.2502
B66: Total | C66: =SUM(C50:C65) -> 491978.9967 | D66: =SUM(D50:D65) -> 447537.2502 | E66: =SUM(E50:E65) -> 1117706.4 | F66: =SUM(F50:F65) -> 907666.1624 | G66: =SUM(G50:G65) -> 891980.3044 | H66: =SUM(H50:H65) -> 899103.4666 | I66: =SUM(I50:I65) -> 851671.6115
B68: C. DIRECT MATERIAL EXPENDITURE
B69: =IF(ISBLANK(dms_E65_Projects_01),"",dms_E65_Projects_01) -> End of Life Replacement
B70: =IF(ISBLANK(dms_E65_Projects_02),"",dms_E65_Projects_02) -> SCADA Fringe Monitoring
B71: =IF(ISBLANK(dms_E65_Projects_03),"",dms_E65_Projects_03) -> 
B72: =IF(ISBLANK(dms_E65_Projects_04),"",dms_E65_Projects_04) -> 
B73: =IF(ISBLANK(dms_E65_Projects_05),"",dms_E65_Projects_05) -> 
B74: =IF(ISBLANK(dms_E65_Projects_06),"",dms_E65_Projects_06) -> 
B75: =IF(ISBLANK(dms_E65_Projects_07),"",dms_E65_Projects_07) -> 
B76: =IF(ISBLANK(dms_E65_Projects_08),"",dms_E65_Projects_08) -> 
B77: =IF(ISBLANK(dms_E65_Projects_09),"",dms_E65_Projects_09) -> 
B78: =IF(ISBLANK(dms_E65_Projects_10),"",dms_E65_Projects_10) -> 
B79: =IF(ISBLANK(dms_E65_Projects_11),"",dms_E65_Projects_11) -> 
B80: =IF(ISBLANK(dms_E65_Projects_12),"",dms_E65_Projects_12) -> 
B81: =IF(ISBLANK(dms_E65_Projects_13),"",dms_E65_Projects_13) -> 
B82: =IF(ISBLANK(dms_E65_Projects_14),"",dms_E65_Projects_14) -> 
B83: =IF(ISBLANK(dms_E65_Projects_15),"",dms_E65_Projects_15) -> 
B84: Aggregate of other projects with total expenditure of less than $500,000
B85: Total | C85: =SUM(C69:C84) -> 0 | D85: =SUM(D69:D84) -> 0 | E85: 0 | F85: 0 | G85: 0 | H85: 0 | I85: 0
B87: D. OTHER DIRECT EXPENDITURE
B88: =IF(ISBLANK(dms_E65_Projects_01),"",dms_E65_Projects_01) -> End of Life Replacement | E88: 32830.64462 | F88: 25905.50837 | G88: 23406.49557 | H88: 28240.40365 | I88: 28317.0969
B89: =IF(ISBLANK(dms_E65_Projects_02),"",dms_E65_Projects_02) -> SCADA Fringe Monitoring | E89: 18159.8235 | F89: 20434.67324 | G89: 19477.69628 | H89: 23316.12986 | I89: 26299.57787
B90: =IF(ISBLANK(dms_E65_Projects_03),"",dms_E65_Projects_03) -> 
B91: =IF(ISBLANK(dms_E65_Projects_04),"",dms_E65_Projects_04) -> 
B92: =IF(ISBLANK(dms_E65_Projects_05),"",dms_E65_Projects_05) -> 
B93: =IF(ISBLANK(dms_E65_Projects_06),"",dms_E65_Projects_06) -> 
B94: =IF(ISBLANK(dms_E65_Projects_07),"",dms_E65_Projects_07) -> 
B95: =IF(ISBLANK(dms_E65_Projects_08),"",dms_E65_Projects_08) -> 
B96: =IF(ISBLANK(dms_E65_Projects_09),"",dms_E65_Projects_09) -> 
B97: =IF(ISBLANK(dms_E65_Projects_10),"",dms_E65_Projects_10) -> 
B98: =IF(ISBLANK(dms_E65_Projects_11),"",dms_E65_Projects_11) -> 
B99: =IF(ISBLANK(dms_E65_Projects_12),"",dms_E65_Projects_12) -> 
B100: =IF(ISBLANK(dms_E65_Projects_13),"",dms_E65_Projects_13) -> 
B101: =IF(ISBLANK(dms_E65_Projects_14),"",dms_E65_Projects_14) -> 
B102: =IF(ISBLANK(dms_E65_Projects_15),"",dms_E65_Projects_15) -> 
B103: Aggregate of other projects with total expenditure of less than $500,000 | C103: 43599.30425 | D103: 63146.0823
B104: Total | C104: =SUM(C88:C103) -> 43599.30425 | D104: =SUM(D88:D103) -> 63146.0823 | E104: =SUM(E88:E103) -> 50990.46812 | F104: =SUM(F88:F103) -> 46340.18161 | G104: =SUM(G88:G103) -> 42884.19185 | H104: =SUM(H88:H103) -> 51556.53351 | I104: =SUM(I88:I103) -> 54616.67477
B106: E. RELATED PARTY MARGIN EXPENDITURE
B107: =IF(ISBLANK(dms_E65_Projects_01),"",dms_E65_Projects_01) -> End of Life Replacement
B108: =IF(ISBLANK(dms_E65_Projects_02),"",dms_E65_Projects_02) -> SCADA Fringe Monitoring
B109: =IF(ISBLANK(dms_E65_Projects_03),"",dms_E65_Projects_03) -> 
B110: =IF(ISBLANK(dms_E65_Projects_04),"",dms_E65_Projects_04) -> 
B111: =IF(ISBLANK(dms_E65_Projects_05),"",dms_E65_Projects_05) -> 
B112: =IF(ISBLANK(dms_E65_Projects_06),"",dms_E65_Projects_06) -> 
B113: =IF(ISBLANK(dms_E65_Projects_07),"",dms_E65_Projects_07) -> 
B114: =IF(ISBLANK(dms_E65_Projects_08),"",dms_E65_Projects_08) -> 
B115: =IF(ISBLANK(dms_E65_Projects_09),"",dms_E65_Projects_09) -> 
B116: =IF(ISBLANK(dms_E65_Projects_10),"",dms_E65_Projects_10) -> 
B117: =IF(ISBLANK(dms_E65_Projects_11),"",dms_E65_Projects_11) -> 
B118: =IF(ISBLANK(dms_E65_Projects_12),"",dms_E65_Projects_12) -> 
B119: =IF(ISBLANK(dms_E65_Projects_13),"",dms_E65_Projects_13) -> 
B120: =IF(ISBLANK(dms_E65_Projects_14),"",dms_E65_Projects_14) -> 
B121: =IF(ISBLANK(dms_E65_Projects_15),"",dms_E65_Projects_15) -> 
B122: Aggregate of other projects with total expenditure of less than $500,000
B123: Total | C123: =SUM(C107:C122) -> 0 | D123: =SUM(D107:D122) -> 0 | E123: =SUM(E107:E122) -> 0 | F123: =SUM(F107:F122) -> 0 | G123: =SUM(G107:G122) -> 0 | H123: =SUM(H107:H122) -> 0 | I123: =SUM(I107:I122) -> 0
B125: F. CAPITAL CONTRIBUTIONS included in the above
B126: =IF(ISBLANK(dms_E65_Projects_01),"",dms_E65_Projects_01) -> End of Life Replacement
B127: =IF(ISBLANK(dms_E65_Projects_02),"",dms_E65_Projects_02) -> SCADA Fringe Monitoring
B128: =IF(ISBLANK(dms_E65_Projects_03),"",dms_E65_Projects_03) -> 
B129: =IF(ISBLANK(dms_E65_Projects_04),"",dms_E65_Projects_04) -> 
B130: =IF(ISBLANK(dms_E65_Projects_05),"",dms_E65_Projects_05) -> 
B131: =IF(ISBLANK(dms_E65_Projects_06),"",dms_E65_Projects_06) -> 
B132: =IF(ISBLANK(dms_E65_Projects_07),"",dms_E65_Projects_07) -> 
B133: =IF(ISBLANK(dms_E65_Projects_08),"",dms_E65_Projects_08) -> 
B134: =IF(ISBLANK(dms_E65_Projects_09),"",dms_E65_Projects_09) -> 
B135: =IF(ISBLANK(dms_E65_Projects_10),"",dms_E65_Projects_10) -> 
B136: =IF(ISBLANK(dms_E65_Projects_11),"",dms_E65_Projects_11) -> 
B137: =IF(ISBLANK(dms_E65_Projects_12),"",dms_E65_Projects_12) -> 
B138: =IF(ISBLANK(dms_E65_Projects_13),"",dms_E65_Projects_13) -> 
B139: =IF(ISBLANK(dms_E65_Projects_14),"",dms_E65_Projects_14) -> 
B140: =IF(ISBLANK(dms_E65_Projects_15),"",dms_E65_Projects_15) -> 
B141: Aggregate of other projects with total expenditure of less than $500,000
B142: Total | C142: =SUM(C126:C141) -> 0 | D142: =SUM(D126:D141) -> 0 | E142: =SUM(E126:E141) -> 0 | F142: =SUM(F126:F141) -> 0 | G142: =SUM(G126:G141) -> 0 | H142: =SUM(H126:H141) -> 0 | I142: =SUM(I126:I141) -> 0

Sheet E10. Overheads
B1: =INDEX(dms_Worksheet_List,MATCH(dms_Model,dms_Model_List)) -> REGULATORY REPORTING STATEMENT
B2: =dms_TradingName -> AGN (Albury and Victoria)
B3: =dms_Header_Span -> 2021-22 to 2027-28
B4: E10. OVERHEADS EXPENDITURE
B6: E10.1 - NETWORK
C7: EXPENDITURE
C8: =CONCATENATE("$0's, real ",dms_DollarReal) -> $0's, real June 2023
C9: =VLOOKUP(CRCP_y4,'AER lookups'!$B$52:$C$101,2,0) -> 2022 | D9: =CONCATENATE("1 Jan-30 Jun "&(C9+1)) -> 1 Jan-30 Jun 2023 | E9: =FRCP_y1 -> 2023-24 | F9: =FRCP_y2 -> 2024-25 | G9: =FRCP_y3 -> 2025-26 | H9: =FRCP_y4 -> 2026-27 | I9: =FRCP_y5 -> 2027-28
B10: E10.1.1 - OPEX
B11: Reference services
B12: Non-reference services
B13: Total | C13: =SUM(C11:C12) -> 0 | D13: =SUM(D11:D12) -> 0 | E13: 0 | F13: 0 | G13: 0 | H13: 0 | I13: 0
B14: E10.1.2 - CAPEX
B15: Reference services | C15: 16492592.21 | D15: 8801706.953 | E15: 4908372.599 | F15: 4600800.322 | G15: 4761538.91 | H15: 4533500.662 | I15: 4485258.416
B16: Non-reference services
B17: Total | C17: =SUM(C15:C16) -> 16492592.21 | D17: =SUM(D15:D16) -> 8801706.953 | E17: 4908372.599 | F17: 4600800.322 | G17: 4761538.91 | H17: 4533500.662 | I17: 4485258.416
B21: E10.2 - CORPORATE
C22: EXPENDITURE
C23: =CONCATENATE("$0's, real ",dms_DollarReal) -> $0's, real June 2023
C24: =VLOOKUP(CRCP_y4,'AER lookups'!$B$52:$C$101,2,0) -> 2022 | D24: =CONCATENATE("1 Jan-30 Jun "&(C24+1)) -> 1 Jan-30 Jun 2023 | E24: =FRCP_y1 -> 2023-24 | F24: =FRCP_y2 -> 2024-25 | G24: =FRCP_y3 -> 2025-26 | H24: =FRCP_y4 -> 2026-27 | I24: =FRCP_y5 -> 2027-28
B25: E10.2.1 - OPEX
B26: Reference services
B27: Non-reference services
B28: Total | C28: =SUM(C26:C27) -> 0 | D28: 0 | E28: 0 | F28: 0 | G28: 0 | H28: 0 | I28: 0
B29: E10.2.2 - CAPEX
B30: Reference services
B31: Non-reference services
B32: Total | C32: =SUM(C30:C31) -> 0 | D32: 0 | E32: 0 | F32: 0 | G32: 0 | H32: 0 | I32: 0

Sheet E12. ICT
B1: =INDEX(dms_Worksheet_List,MATCH(dms_Model,dms_Model_List)) -> REGULATORY REPORTING STATEMENT
B2: =dms_TradingName -> AGN (Albury and Victoria)
B3: =dms_Header_Span -> 2021-22 to 2027-28
B4: E12. INFORMATION AND COMMUNICATION TECHNOLOGY
B6: Please list all projects here:
B7: 3237 MAJOR PROJECTS - BUSINESS INTELLIGENCE (Asset Class - Computer Equipment)
B8: 3244 MAJOR PROJECTS - MAXIMO FUNCTIONAL ENHANCE (EAM) (Asset Class - Computer Equipment)
B9: 3243 MAJOR PROJECTS - WEBMETHODS UPGRADE (FRC GATEWAY) (Asset Class - Computer Equipment)
B10: 3198/3260 MAJOR PROJECTS - GIS CONSOLIDATION/GIS CONFLATION (Asset Class - Computer Equipment)
B11: METERING AND BILLING (Asset Class - Computer Equipment)
B12: 3252 MAJOR PROJECTS - BIZTALK UPGRADE IT (MIDDLEWARE) (Asset Class - Computer Equipment)
B13: 3202 MAJOR PROJECTS - MOBILITY INTEGRATION (Asset Class - Computer Equipment)
B14: 3257 MAJOR PROJECTS - GSA LITE MOBILE MAPS (NEW MOBILITY APPLCIATIONS) (Asset Class - Computer Equipment)
B15: AGIG IT Strategy and Roadmap (Asset Class - Computer Equipment)
B16: Connection Portal Upgrade (Asset Class - Computer Equipment)
B17: Applications Renewal
B18: AGN Digital Customer Experience
B19: Infrastructure Renewal
B20: AGIG One IT Strategy
B21: Remote & Digital Metering IT
B23: E12.1 - CAPEX - BY PROJECT
B24: A. DIRECT INTERNAL LABOUR EXPENDITURE
C25: EXPENDITURE
C26: =CONCATENATE("$0's, real ",dms_DollarReal) -> $0's, real June 2023
C27: =VLOOKUP(CRCP_y4,'AER lookups'!$B$52:$C$101,2,0) -> 2022 | D27: =CONCATENATE("1 Jan-30 Jun "&(C27+1)) -> 1 Jan-30 Jun 2023 | E27: =FRCP_y1 -> 2023-24 | F27: =FRCP_y2 -> 2024-25 | G27: =FRCP_y3 -> 2025-26 | H27: =FRCP_y4 -> 2026-27 | I27: =FRCP_y5 -> 2027-28
B28: =IF(ISBLANK(dms_E12_Projects_01),"",dms_E12_Projects_01) -> 3237 MAJOR PROJECTS - BUSINESS INTELLIGENCE (Asset Class - Computer Equipment)
B29: =IF(ISBLANK(dms_E12_Projects_02),"",dms_E12_Projects_02) -> 3244 MAJOR PROJECTS - MAXIMO FUNCTIONAL ENHANCE (EAM) (Asset Class - Computer Equipment)
B30: =IF(ISBLANK(dms_E12_Projects_03),"",dms_E12_Projects_03) -> 3243 MAJOR PROJECTS - WEBMETHODS UPGRADE (FRC GATEWAY) (Asset Class - Computer Equipment)
B31: =IF(ISBLANK(dms_E12_Projects_04),"",dms_E12_Projects_04) -> 3198/3260 MAJOR PROJECTS - GIS CONSOLIDATION/GIS CONFLATION (Asset Class - Computer Equipment)
B32: =IF(ISBLANK(dms_E12_Projects_05),"",dms_E12_Projects_05) -> METERING AND BILLING (Asset Class - Computer Equipment)
B33: =IF(ISBLANK(dms_E12_Projects_06),"",dms_E12_Projects_06) -> 3252 MAJOR PROJECTS - BIZTALK UPGRADE IT (MIDDLEWARE) (Asset Class - Computer Equipment)
B34: =IF(ISBLANK(dms_E12_Projects_07),"",dms_E12_Projects_07) -> 3202 MAJOR PROJECTS - MOBILITY INTEGRATION (Asset Class - Computer Equipment)
B35: =IF(ISBLANK(dms_E12_Projects_08),"",dms_E12_Projects_08) -> 3257 MAJOR PROJECTS - GSA LITE MOBILE MAPS (NEW MOBILITY APPLCIATIONS) (Asset Class - Computer Equipment)
B36: =IF(ISBLANK(dms_E12_Projects_09),"",dms_E12_Projects_09) -> AGIG IT Strategy and Roadmap (Asset Class - Computer Equipment) | C36: 2625755.631 | D36: 533711.1477
B37: =IF(ISBLANK(dms_E12_Projects_10),"",dms_E12_Projects_10) -> Connection Portal Upgrade (Asset Class - Computer Equipment)
B38: =IF(ISBLANK(dms_E12_Projects_11),"",dms_E12_Projects_11) -> Applications Renewal | E38: 0 | F38: 0 | G38: 0 | H38: 0 | I38: 0
B39: =IF(ISBLANK(dms_E12_Projects_12),"",dms_E12_Projects_12) -> AGN Digital Customer Experience | E39: 526685.9302 | F39: 329928.095 | G39: 342128.6045 | H39: 0 | I39: 0
B40: =IF(ISBLANK(dms_E12_Projects_13),"",dms_E12_Projects_13) -> Infrastructure Renewal | E40: 0 | F40: 0 | G40: 0 | H40: 0 | I40: 0
B41: =IF(ISBLANK(dms_E12_Projects_14),"",dms_E12_Projects_14) -> AGIG One IT Strategy | E41: 296713.2398 | F41: 307956.0798 | G41: 150883.8505 | H41: 1626673.263 | I41: 1806643.958
B42: =IF(ISBLANK(dms_E12_Projects_15),"",dms_E12_Projects_15) -> Remote & Digital Metering IT | E42: 0 | F42: 0 | G42: 0 | H42: 0 | I42: 0
B43: Aggregate of other projects with total expenditure of less than $500,000
B44: Total | C44: =SUM(C28:C43) -> 2625755.631 | D44: =SUM(D28:D43) -> 533711.1477 | E44: 823399.17 | F44: 637884.1748 | G44: 493012.4551 | H44: 1626673.263 | I44: 1806643.958
B46: B. DIRECT CONTRACTOR EXPENDITURE
B47: =IF(ISBLANK(dms_E12_Projects_01),"",dms_E12_Projects_01) -> 3237 MAJOR PROJECTS - BUSINESS INTELLIGENCE (Asset Class - Computer Equipment) | C47: 174705.89 | D47: 151008.8408
B48: =IF(ISBLANK(dms_E12_Projects_02),"",dms_E12_Projects_02) -> 3244 MAJOR PROJECTS - MAXIMO FUNCTIONAL ENHANCE (EAM) (Asset Class - Computer Equipment) | C48: 687817.8 | D48: 0
B49: =IF(ISBLANK(dms_E12_Projects_03),"",dms_E12_Projects_03) -> 3243 MAJOR PROJECTS - WEBMETHODS UPGRADE (FRC GATEWAY) (Asset Class - Computer Equipment) | C49: 678850.3 | D49: 0
B50: =IF(ISBLANK(dms_E12_Projects_04),"",dms_E12_Projects_04) -> 3198/3260 MAJOR PROJECTS - GIS CONSOLIDATION/GIS CONFLATION (Asset Class - Computer Equipment) | C50: 1375740.045 | D50: 843464.8723
B51: =IF(ISBLANK(dms_E12_Projects_05),"",dms_E12_Projects_05) -> METERING AND BILLING (Asset Class - Computer Equipment) | C51: 0 | D51: 584113.7651
B52: =IF(ISBLANK(dms_E12_Projects_06),"",dms_E12_Projects_06) -> 3252 MAJOR PROJECTS - BIZTALK UPGRADE IT (MIDDLEWARE) (Asset Class - Computer Equipment) | C52: 335311.705 | D52: 169600.6604
B53: =IF(ISBLANK(dms_E12_Projects_07),"",dms_E12_Projects_07) -> 3202 MAJOR PROJECTS - MOBILITY INTEGRATION (Asset Class - Computer Equipment) | C53: 4879900.39 | D53: 440949.6572
B54: =IF(ISBLANK(dms_E12_Projects_08),"",dms_E12_Projects_08) -> 3257 MAJOR PROJECTS - GSA LITE MOBILE MAPS (NEW MOBILITY APPLCIATIONS) (Asset Class - Computer Equipment) | C54: 270472.46 | D54: 588967.5635
B55: =IF(ISBLANK(dms_E12_Projects_09),"",dms_E12_Projects_09) -> AGIG IT Strategy and Roadmap (Asset Class - Computer Equipment)
B56: =IF(ISBLANK(dms_E12_Projects_10),"",dms_E12_Projects_10) -> Connection Portal Upgrade (Asset Class - Computer Equipment)
B57: =IF(ISBLANK(dms_E12_Projects_11),"",dms_E12_Projects_11) -> Applications Renewal | E57: 5350713.274 | F57: 7502167.723 | G57: 8362908.852 | H57: 5919448.098 | I57: 5230936.102
B58: =IF(ISBLANK(dms_E12_Projects_12),"",dms_E12_Projects_12) -> AGN Digital Customer Experience | E58: 0 | F58: 0 | G58: 0 | H58: 0 | I58: 0
B59: =IF(ISBLANK(dms_E12_Projects_13),"",dms_E12_Projects_13) -> Infrastructure Renewal | E59: 1588299.369 | F59: 313239.4944 | G59: 447694.8392 | H59: 252589.8566 | I59: 577106.0285
B60: =IF(ISBLANK(dms_E12_Projects_14),"",dms_E12_Projects_14) -> AGIG One IT Strategy | E60: 1727377.078 | F60: 1792829.581 | G60: 878401.3313 | H60: 9470012.562 | I60: 10517748.93
B61: =IF(ISBLANK(dms_E12_Projects_15),"",dms_E12_Projects_15) -> Remote & Digital Metering IT | E61: 1373385.751 | F61: 0 | G61: 0 | H61: 0 | I61: 0
B62: Aggregate of other projects with total expenditure of less than $500,000 | C62: 674718.92 | D62: 99665.62149
B63: Total | C63: =SUM(C47:C62) -> 9077517.51 | D63: =SUM(D47:D62) -> 2877770.981 | E63: =SUM(E47:E62) -> 10039775.47 | F63: =SUM(F47:F62) -> 9608236.799 | G63: =SUM(G47:G62) -> 9689005.022 | H63: =SUM(H47:H62) -> 15642050.52 | I63: =SUM(I47:I62) -> 16325791.06
B65: C. DIRECT MATERIAL EXPENDITURE
B66: =IF(ISBLANK(dms_E12_Projects_01),"",dms_E12_Projects_01) -> 3237 MAJOR PROJECTS - BUSINESS INTELLIGENCE (Asset Class - Computer Equipment)
B67: =IF(ISBLANK(dms_E12_Projects_02),"",dms_E12_Projects_02) -> 3244 MAJOR PROJECTS - MAXIMO FUNCTIONAL ENHANCE (EAM) (Asset Class - Computer Equipment)
B68: =IF(ISBLANK(dms_E12_Projects_03),"",dms_E12_Projects_03) -> 3243 MAJOR PROJECTS - WEBMETHODS UPGRADE (FRC GATEWAY) (Asset Class - Computer Equipment)
B69: =IF(ISBLANK(dms_E12_Projects_04),"",dms_E12_Projects_04) -> 3198/3260 MAJOR PROJECTS - GIS CONSOLIDATION/GIS CONFLATION (Asset Class - Computer Equipment)
B70: =IF(ISBLANK(dms_E12_Projects_05),"",dms_E12_Projects_05) -> METERING AND BILLING (Asset Class - Computer Equipment)
B71: =IF(ISBLANK(dms_E12_Projects_06),"",dms_E12_Projects_06) -> 3252 MAJOR PROJECTS - BIZTALK UPGRADE IT (MIDDLEWARE) (Asset Class - Computer Equipment)
B72: =IF(ISBLANK(dms_E12_Projects_07),"",dms_E12_Projects_07) -> 3202 MAJOR PROJECTS - MOBILITY INTEGRATION (Asset Class - Computer Equipment)
B73: =IF(ISBLANK(dms_E12_Projects_08),"",dms_E12_Projects_08) -> 3257 MAJOR PROJECTS - GSA LITE MOBILE MAPS (NEW MOBILITY APPLCIATIONS) (Asset Class - Computer Equipment)
B74: =IF(ISBLANK(dms_E12_Projects_09),"",dms_E12_Projects_09) -> AGIG IT Strategy and Roadmap (Asset Class - Computer Equipment)
B75: =IF(ISBLANK(dms_E12_Projects_10),"",dms_E12_Projects_10) -> Connection Portal Upgrade (Asset Class - Computer Equipment)
B76: =IF(ISBLANK(dms_E12_Projects_11),"",dms_E12_Projects_11) -> Applications Renewal | E76: 0 | F76: 0 | G76: 0 | H76: 0 | I76: 0
B77: =IF(ISBLANK(dms_E12_Projects_12),"",dms_E12_Projects_12) -> AGN Digital Customer Experience | E77: 0 | F77: 0 | G77: 0 | H77: 0 | I77: 0
B78: =IF(ISBLANK(dms_E12_Projects_13),"",dms_E12_Projects_13) -> Infrastructure Renewal | E78: 3138782.087 | F78: 619020.9056 | G78: 884730.2774 | H78: 499165.669 | I78: 1140471.437
B79: =IF(ISBLANK(dms_E12_Projects_14),"",dms_E12_Projects_14) -> AGIG One IT Strategy | E79: 239210.6739 | F79: 248274.669 | G79: 121642.7942 | H79: 1311426.507 | I79: 1456519.16
B80: =IF(ISBLANK(dms_E12_Projects_15),"",dms_E12_Projects_15) -> Remote & Digital Metering IT | E80: 0 | F80: 0 | G80: 0 | H80: 0 | I80: 0
B81: Aggregate of other projects with total expenditure of less than $500,000 | D81: 533619
B82: Total | C82: =SUM(C66:C81) -> 0 | D82: =SUM(D66:D81) -> 533619 | E82: =SUM(E66:E81) -> 3377992.761 | F82: =SUM(F66:F81) -> 867295.5747 | G82: =SUM(G66:G81) -> 1006373.072 | H82: =SUM(H66:H81) -> 1810592.176 | I82: =SUM(I66:I81) -> 2596990.597
B84: D. OTHER DIRECT EXPENDITURE
B85: =IF(ISBLANK(dms_E12_Projects_01),"",dms_E12_Projects_01) -> 3237 MAJOR PROJECTS - BUSINESS INTELLIGENCE (Asset Class - Computer Equipment)
B86: =IF(ISBLANK(dms_E12_Projects_02),"",dms_E12_Projects_02) -> 3244 MAJOR PROJECTS - MAXIMO FUNCTIONAL ENHANCE (EAM) (Asset Class - Computer Equipment)
B87: =IF(ISBLANK(dms_E12_Projects_03),"",dms_E12_Projects_03) -> 3243 MAJOR PROJECTS - WEBMETHODS UPGRADE (FRC GATEWAY) (Asset Class - Computer Equipment)
B88: =IF(ISBLANK(dms_E12_Projects_04),"",dms_E12_Projects_04) -> 3198/3260 MAJOR PROJECTS - GIS CONSOLIDATION/GIS CONFLATION (Asset Class - Computer Equipment)
B89: =IF(ISBLANK(dms_E12_Projects_05),"",dms_E12_Projects_05) -> METERING AND BILLING (Asset Class - Computer Equipment)
B90: =IF(ISBLANK(dms_E12_Projects_06),"",dms_E12_Projects_06) -> 3252 MAJOR PROJECTS - BIZTALK UPGRADE IT (MIDDLEWARE) (Asset Class - Computer Equipment)
B91: =IF(ISBLANK(dms_E12_Projects_07),"",dms_E12_Projects_07) -> 3202 MAJOR PROJECTS - MOBILITY INTEGRATION (Asset Class - Computer Equipment)
B92: =IF(ISBLANK(dms_E12_Projects_08),"",dms_E12_Projects_08) -> 3257 MAJOR PROJECTS - GSA LITE MOBILE MAPS (NEW MOBILITY APPLCIATIONS) (Asset Class - Computer Equipment)
B93: =IF(ISBLANK(dms_E12_Projects_09),"",dms_E12_Projects_09) -> AGIG IT Strategy and Roadmap (Asset Class - Computer Equipment) | C93: 262076.8794 | D93: 53269.75231
B94: =IF(ISBLANK(dms_E12_Projects_10),"",dms_E12_Projects_10) -> Connection Portal Upgrade (Asset Class - Computer Equipment) | C94: 298976.45 | D94: 302444.5768
B95: =IF(ISBLANK(dms_E12_Projects_11),"",dms_E12_Projects_11) -> Applications Renewal | E95: 0 | F95: 0 | G95: 0 | H95: 0 | I95: 0
B96: =IF(ISBLANK(dms_E12_Projects_12),"",dms_E12_Projects_12) -> AGN Digital Customer Experience | E96: 1050218.052 | F96: 657880.5726 | G96: 682208.5348 | H96: 0 | I96: 0
B97: =IF(ISBLANK(dms_E12_Projects_13),"",dms_E12_Projects_13) -> Infrastructure Renewal | E97: 0 | F97: 0 | G97: 0 | H97: 0 | I97: 0
B98: =IF(ISBLANK(dms_E12_Projects_14),"",dms_E12_Projects_14) -> AGIG One IT Strategy | E98: 36801.64214 | F98: 38196.10293 | G98: 18714.27603 | H98: 201757.9241 | I98: 224079.8707
B99: =IF(ISBLANK(dms_E12_Projects_15),"",dms_E12_Projects_15) -> Remote & Digital Metering IT | E99: 0 | F99: 0 | G99: 0 | H99: 0 | I99: 0
B100: Aggregate of other projects with total expenditure of less than $500,000 | D100: 293490.45
B101: Total | C101: =SUM(C85:C100) -> 561053.3294 | D101: =SUM(D85:D100) -> 649204.7791 | E101: =SUM(E85:E100) -> 1087019.695 | F101: =SUM(F85:F100) -> 696076.6756 | G101: =SUM(G85:G100) -> 700922.8109 | H101: =SUM(H85:H100) -> 201757.9241 | I101: =SUM(I85:I100) -> 224079.8707
B103: E. RELATED PARTY MARGIN EXPENDITURE
B104: =IF(ISBLANK(dms_E12_Projects_01),"",dms_E12_Projects_01) -> 3237 MAJOR PROJECTS - BUSINESS INTELLIGENCE (Asset Class - Computer Equipment)
B105: =IF(ISBLANK(dms_E12_Projects_02),"",dms_E12_Projects_02) -> 3244 MAJOR PROJECTS - MAXIMO FUNCTIONAL ENHANCE (EAM) (Asset Class - Computer Equipment)
B106: =IF(ISBLANK(dms_E12_Projects_03),"",dms_E12_Projects_03) -> 3243 MAJOR PROJECTS - WEBMETHODS UPGRADE (FRC GATEWAY) (Asset Class - Computer Equipment)
B107: =IF(ISBLANK(dms_E12_Projects_04),"",dms_E12_Projects_04) -> 3198/3260 MAJOR PROJECTS - GIS CONSOLIDATION/GIS CONFLATION (Asset Class - Computer Equipment)
B108: =IF(ISBLANK(dms_E12_Projects_05),"",dms_E12_Projects_05) -> METERING AND BILLING (Asset Class - Computer Equipment)
B109: =IF(ISBLANK(dms_E12_Projects_06),"",dms_E12_Projects_06) -> 3252 MAJOR PROJECTS - BIZTALK UPGRADE IT (MIDDLEWARE) (Asset Class - Computer Equipment)
B110: =IF(ISBLANK(dms_E12_Projects_07),"",dms_E12_Projects_07) -> 3202 MAJOR PROJECTS - MOBILITY INTEGRATION (Asset Class - Computer Equipment)
B111: =IF(ISBLANK(dms_E12_Projects_08),"",dms_E12_Projects_08) -> 3257 MAJOR PROJECTS - GSA LITE MOBILE MAPS (NEW MOBILITY APPLCIATIONS) (Asset Class - Computer Equipment)
B112: =IF(ISBLANK(dms_E12_Projects_09),"",dms_E12_Projects_09) -> AGIG IT Strategy and Roadmap (Asset Class - Computer Equipment)
B113: =IF(ISBLANK(dms_E12_Projects_10),"",dms_E12_Projects_10) -> Connection Portal Upgrade (Asset Class - Computer Equipment)
B114: =IF(ISBLANK(dms_E12_Projects_11),"",dms_E12_Projects_11) -> Applications Renewal
B115: =IF(ISBLANK(dms_E12_Projects_12),"",dms_E12_Projects_12) -> AGN Digital Customer Experience
B116: =IF(ISBLANK(dms_E12_Projects_13),"",dms_E12_Projects_13) -> Infrastructure Renewal
B117: =IF(ISBLANK(dms_E12_Projects_14),"",dms_E12_Projects_14) -> AGIG One IT Strategy
B118: =IF(ISBLANK(dms_E12_Projects_15),"",dms_E12_Projects_15) -> Remote & Digital Metering IT
B119: Aggregate of other projects with total expenditure of less than $500,000
B120: Total | C120: =SUM(C104:C119) -> 0 | D120: =SUM(D104:D119) -> 0 | E120: =SUM(E104:E119) -> 0 | F120: =SUM(F104:F119) -> 0 | G120: =SUM(G104:G119) -> 0 | H120: =SUM(H104:H119) -> 0 | I120: =SUM(I104:I119) -> 0
B122: F. CAPITAL CONTRIBUTIONS included in the above
B123: =IF(ISBLANK(dms_E12_Projects_01),"",dms_E12_Projects_01) -> 3237 MAJOR PROJECTS - BUSINESS INTELLIGENCE (Asset Class - Computer Equipment)
B124: =IF(ISBLANK(dms_E12_Projects_02),"",dms_E12_Projects_02) -> 3244 MAJOR PROJECTS - MAXIMO FUNCTIONAL ENHANCE (EAM) (Asset Class - Computer Equipment)
B125: =IF(ISBLANK(dms_E12_Projects_03),"",dms_E12_Projects_03) -> 3243 MAJOR PROJECTS - WEBMETHODS UPGRADE (FRC GATEWAY) (Asset Class - Computer Equipment)
B126: =IF(ISBLANK(dms_E12_Projects_04),"",dms_E12_Projects_04) -> 3198/3260 MAJOR PROJECTS - GIS CONSOLIDATION/GIS CONFLATION (Asset Class - Computer Equipment)
B127: =IF(ISBLANK(dms_E12_Projects_05),"",dms_E12_Projects_05) -> METERING AND BILLING (Asset Class - Computer Equipment)
B128: =IF(ISBLANK(dms_E12_Projects_06),"",dms_E12_Projects_06) -> 3252 MAJOR PROJECTS - BIZTALK UPGRADE IT (MIDDLEWARE) (Asset Class - Computer Equipment)
B129: =IF(ISBLANK(dms_E12_Projects_07),"",dms_E12_Projects_07) -> 3202 MAJOR PROJECTS - MOBILITY INTEGRATION (Asset Class - Computer Equipment)
B130: =IF(ISBLANK(dms_E12_Projects_08),"",dms_E12_Projects_08) -> 3257 MAJOR PROJECTS - GSA LITE MOBILE MAPS (NEW MOBILITY APPLCIATIONS) (Asset Class - Computer Equipment)
B131: =IF(ISBLANK(dms_E12_Projects_09),"",dms_E12_Projects_09) -> AGIG IT Strategy and Roadmap (Asset Class - Computer Equipment)
B132: =IF(ISBLANK(dms_E12_Projects_10),"",dms_E12_Projects_10) -> Connection Portal Upgrade (Asset Class - Computer Equipment)
B133: =IF(ISBLANK(dms_E12_Projects_11),"",dms_E12_Projects_11) -> Applications Renewal
B134: =IF(ISBLANK(dms_E12_Projects_12),"",dms_E12_Projects_12) -> AGN Digital Customer Experience
B135: =IF(ISBLANK(dms_E12_Projects_13),"",dms_E12_Projects_13) -> Infrastructure Renewal
B136: =IF(ISBLANK(dms_E12_Projects_14),"",dms_E12_Projects_14) -> AGIG One IT Strategy
B137: =IF(ISBLANK(dms_E12_Projects_15),"",dms_E12_Projects_15) -> Remote & Digital Metering IT
B138: Aggregate of other projects with total expenditure of less than $500,000
B139: Total | C139: =SUM(C123:C138) -> 0 | D139: =SUM(D123:D138) -> 0 | E139: =SUM(E123:E138) -> 0 | F139: =SUM(F123:F138) -> 0 | G139: =SUM(G123:G138) -> 0 | H139: =SUM(H123:H138) -> 0 | I139: =SUM(I123:I138) -> 0

Sheet E13. Other capex
B1: =INDEX(dms_Worksheet_List,MATCH(dms_Model,dms_Model_List)) -> REGULATORY REPORTING STATEMENT
B2: =dms_TradingName -> AGN (Albury and Victoria)
B3: =dms_Header_Span -> 2021-22 to 2027-28
B4: E13. OTHER CAPITAL EXPENDITURE
B6: Please list all projects here:
B7: 2139 - NETWORK - REGULATOR STAY IN BUSINESS (Asset Class - Other Assets)
B8: 2190 - OTHER - NON RETIC CAPITAL (Asset Class - Other Assets)
B9: 2140 - WATER BATH OVERHAUL (Asset Class - Other Assets)
B10: 2106 - C P - CORROSION PROTECTION - CAPEX (Asset Class - Other Assets)
B11: 2142 - NETWORK - REGULATOR CAPEX (Asset Class - Other Assets)
B12: 2152 NETWORK - STOPPLE EQUIPMENT (Asset Class - Other Assets)
B13: 2139 - NETWORK - REGULATOR STAY IN BUSINESS - CAPITALISED REG REPLACEMENT (Asset Class - Other Assets)
B14: 2139 - NETWORK - REGULATOR STAY IN BUSINESS - CITY GATE REFURBS (Asset Class - Other Assets)
B15: 2142 - NETWORK - REGULATOR CAPEX - NTH MELBOURNE ALFRED ST (Asset Class - Other Assets)
B16: 3101 - MAJOR PROJECTS-V83 - T14-PL49 TP MODIFICATION FOR PIGGABILITY (Asset Class - Other Assets)
B17: 2106 - C P - CORROSION PROTECTION - CAPEX - DCVG DIG UP AND REPAIR (Asset Class - Other Assets)
B18: 2130 MAINS ALTERATION - CHARGEABLE - CAPEX - SOUTHERN (Asset Class - Mains and Services)
B19: 2130 MAINS ALTERATION - CHARGEABLE - CAPEX - THOMASTOWN (Asset Class - Mains and Services)
B20: 2130 MAINS ALTERATION - CHARGEABLE - CAPEX - NORTH EAST LINK (Asset Class - Mains and Services)
B21: 2130 MAINS ALTERATION - CHARGEABLE - CAPEX - SUBURBAN RDS UPGRADE (Asset Class - Mains and Services)
B22: 2190-OTHER - NON RETIC CAPITAL - PLANT AND EQUIP UPGRADE (Asset Class - Other Assets) (Asset Class - Mains and Services)
B23: Cathodic Protection
B24: Mains & Services Integrity Management
B25: New Growth Areas
B26: Contributed projects
B27: Network Reinforcement
B28: Supply Regulator Capacity Upgrades
B29: Transmission
B30: Regs & Valves
B31: Hydrogen Adaptation
B32: Plant & Equipment
B34: PLEASE NOTE: Projects listed above in rows 23-32 have not copied down to tables A - F. Please refer to the "Additional Disclosures" tab
B35: for more information
B44: E13.1 - CAPEX - BY PROJECT
C45: EXPENDITURE
C46: =CONCATENATE("$0's, real ",dms_DollarReal) -> $0's, real June 2023
C47: =VLOOKUP(CRCP_y4,'AER lookups'!$B$52:$C$101,2,0) -> 2022 | D47: =CONCATENATE("1 Jan-30 Jun "&(C47+1)) -> 1 Jan-30 Jun 2023 | E47: =FRCP_y1 -> 2023-24 | F47: =FRCP_y2 -> 2024-25 | G47: =FRCP_y3 -> 2025-26 | H47: =FRCP_y4 -> 2026-27 | I47: =FRCP_y5 -> 2027-28
B48: A. DIRECT INTERNAL LABOUR EXPENDITURE
B49: =IF(ISBLANK(dms_E13_Projects_01),"",dms_E13_Projects_01) -> 2139 - NETWORK - REGULATOR STAY IN BUSINESS (Asset Class - Other Assets)
B50: =IF(ISBLANK(dms_E13_Projects_02),"",dms_E13_Projects_02) -> 2190 - OTHER - NON RETIC CAPITAL (Asset Class - Other Assets)
B51: =IF(ISBLANK(dms_E13_Projects_03),"",dms_E13_Projects_03) -> 2140 - WATER BATH OVERHAUL (Asset Class - Other Assets)
B52: =IF(ISBLANK(dms_E13_Projects_04),"",dms_E13_Projects_04) -> 2106 - C P - CORROSION PROTECTION - CAPEX (Asset Class - Other Assets)
B53: =IF(ISBLANK(dms_E13_Projects_05),"",dms_E13_Projects_05) -> 2142 - NETWORK - REGULATOR CAPEX (Asset Class - Other Assets)
B54: =IF(ISBLANK(dms_E13_Projects_06),"",dms_E13_Projects_06) -> 2152 NETWORK - STOPPLE EQUIPMENT (Asset Class - Other Assets)
B55: =IF(ISBLANK(dms_E13_Projects_07),"",dms_E13_Projects_07) -> 2139 - NETWORK - REGULATOR STAY IN BUSINESS - CAPITALISED REG REPLACEMENT (Asset Class - Other Assets)
B56: =IF(ISBLANK(dms_E13_Projects_08),"",dms_E13_Projects_08) -> 2139 - NETWORK - REGULATOR STAY IN BUSINESS - CITY GATE REFURBS (Asset Class - Other Assets)
B57: =IF(ISBLANK(dms_E13_Projects_09),"",dms_E13_Projects_09) -> 2142 - NETWORK - REGULATOR CAPEX - NTH MELBOURNE ALFRED ST (Asset Class - Other Assets)
B58: =IF(ISBLANK(dms_E13_Projects_10),"",dms_E13_Projects_10) -> 3101 - MAJOR PROJECTS-V83 - T14-PL49 TP MODIFICATION FOR PIGGABILITY (Asset Class - Other Assets)
B59: =IF(ISBLANK(dms_E13_Projects_11),"",dms_E13_Projects_11) -> 2106 - C P - CORROSION PROTECTION - CAPEX - DCVG DIG UP AND REPAIR (Asset Class - Other Assets)
B60: =IF(ISBLANK(dms_E13_Projects_12),"",dms_E13_Projects_12) -> 2130 MAINS ALTERATION - CHARGEABLE - CAPEX - SOUTHERN (Asset Class - Mains and Services)
B61: =IF(ISBLANK(dms_E13_Projects_13),"",dms_E13_Projects_13) -> 2130 MAINS ALTERATION - CHARGEABLE - CAPEX - THOMASTOWN (Asset Class - Mains and Services)
B62: =IF(ISBLANK(dms_E13_Projects_14),"",dms_E13_Projects_14) -> 2130 MAINS ALTERATION - CHARGEABLE - CAPEX - NORTH EAST LINK (Asset Class - Mains and Services)
B63: =IF(ISBLANK(dms_E13_Projects_15),"",dms_E13_Projects_15) -> 2130 MAINS ALTERATION - CHARGEABLE - CAPEX - SUBURBAN RDS UPGRADE (Asset Class - Mains and Services)
B64: 2190-OTHER - NON RETIC CAPITAL - PLANT AND EQUIP UPGRADE
B86: Aggregate of other projects with total expenditure of less than $500,000
B87: Total | C87: =SUM(C49:C86) -> 0 | D87: =SUM(D49:D86) -> 0 | E87: 0 | F87: 0 | G87: 0 | H87: 0 | I87: 0
B89: B. DIRECT CONTRACTOR EXPENDITURE
B90: =IF(ISBLANK(dms_E13_Projects_01),"",dms_E13_Projects_01) -> 2139 - NETWORK - REGULATOR STAY IN BUSINESS (Asset Class - Other Assets)
B91: =IF(ISBLANK(dms_E13_Projects_02),"",dms_E13_Projects_02) -> 2190 - OTHER - NON RETIC CAPITAL (Asset Class - Other Assets)
B92: =IF(ISBLANK(dms_E13_Projects_03),"",dms_E13_Projects_03) -> 2140 - WATER BATH OVERHAUL (Asset Class - Other Assets)
B93: =IF(ISBLANK(dms_E13_Projects_04),"",dms_E13_Projects_04) -> 2106 - C P - CORROSION PROTECTION - CAPEX (Asset Class - Other Assets)
B94: =IF(ISBLANK(dms_E13_Projects_05),"",dms_E13_Projects_05) -> 2142 - NETWORK - REGULATOR CAPEX (Asset Class - Other Assets)
B95: =IF(ISBLANK(dms_E13_Projects_06),"",dms_E13_Projects_06) -> 2152 NETWORK - STOPPLE EQUIPMENT (Asset Class - Other Assets)
B96: =IF(ISBLANK(dms_E13_Projects_07),"",dms_E13_Projects_07) -> 2139 - NETWORK - REGULATOR STAY IN BUSINESS - CAPITALISED REG REPLACEMENT (Asset Class - Other Assets)
B97: =IF(ISBLANK(dms_E13_Projects_08),"",dms_E13_Projects_08) -> 2139 - NETWORK - REGULATOR STAY IN BUSINESS - CITY GATE REFURBS (Asset Class - Other Assets)
B98: =IF(ISBLANK(dms_E13_Projects_09),"",dms_E13_Projects_09) -> 2142 - NETWORK - REGULATOR CAPEX - NTH MELBOURNE ALFRED ST (Asset Class - Other Assets)
B99: =IF(ISBLANK(dms_E13_Projects_10),"",dms_E13_Projects_10) -> 3101 - MAJOR PROJECTS-V83 - T14-PL49 TP MODIFICATION FOR PIGGABILITY (Asset Class - Other Assets)
B100: =IF(ISBLANK(dms_E13_Projects_11),"",dms_E13_Projects_11) -> 2106 - C P - CORROSION PROTECTION - CAPEX - DCVG DIG UP AND REPAIR (Asset Class - Other Assets)
B101: =IF(ISBLANK(dms_E13_Projects_12),"",dms_E13_Projects_12) -> 2130 MAINS ALTERATION - CHARGEABLE - CAPEX - SOUTHERN (Asset Class - Mains and Services)
B102: =IF(ISBLANK(dms_E13_Projects_13),"",dms_E13_Projects_13) -> 2130 MAINS ALTERATION - CHARGEABLE - CAPEX - THOMASTOWN (Asset Class - Mains and Services)
B103: =IF(ISBLANK(dms_E13_Projects_14),"",dms_E13_Projects_14) -> 2130 MAINS ALTERATION - CHARGEABLE - CAPEX - NORTH EAST LINK (Asset Class - Mains and Services)
B104: =IF(ISBLANK(dms_E13_Projects_15),"",dms_E13_Projects_15) -> 2130 MAINS ALTERATION - CHARGEABLE - CAPEX - SUBURBAN RDS UPGRADE (Asset Class - Mains and Services)
B105: 2190-OTHER - NON RETIC CAPITAL - PLANT AND EQUIP UPGRADE
B127: Aggregate of other projects with total expenditure of less than $500,000
B128: Total
B130: C. DIRECT MATERIAL EXPENDITURE
B131: =IF(ISBLANK(dms_E13_Projects_01),"",dms_E13_Projects_01) -> 2139 - NETWORK - REGULATOR STAY IN BUSINESS (Asset Class - Other Assets)
B132: =IF(ISBLANK(dms_E13_Projects_02),"",dms_E13_Projects_02) -> 2190 - OTHER - NON RETIC CAPITAL (Asset Class - Other Assets)
B133: =IF(ISBLANK(dms_E13_Projects_03),"",dms_E13_Projects_03) -> 2140 - WATER BATH OVERHAUL (Asset Class - Other Assets)
B134: =IF(ISBLANK(dms_E13_Projects_04),"",dms_E13_Projects_04) -> 2106 - C P - CORROSION PROTECTION - CAPEX (Asset Class - Other Assets)
B135: =IF(ISBLANK(dms_E13_Projects_05),"",dms_E13_Projects_05) -> 2142 - NETWORK - REGULATOR CAPEX (Asset Class - Other Assets)
B136: =IF(ISBLANK(dms_E13_Projects_06),"",dms_E13_Projects_06) -> 2152 NETWORK - STOPPLE EQUIPMENT (Asset Class - Other Assets)
B137: =IF(ISBLANK(dms_E13_Projects_07),"",dms_E13_Projects_07) -> 2139 - NETWORK - REGULATOR STAY IN BUSINESS - CAPITALISED REG REPLACEMENT (Asset Class - Other Assets)
B138: =IF(ISBLANK(dms_E13_Projects_08),"",dms_E13_Projects_08) -> 2139 - NETWORK - REGULATOR STAY IN BUSINESS - CITY GATE REFURBS (Asset Class - Other Assets)
B139: =IF(ISBLANK(dms_E13_Projects_09),"",dms_E13_Projects_09) -> 2142 - NETWORK - REGULATOR CAPEX - NTH MELBOURNE ALFRED ST (Asset Class - Other Assets)
B140: =IF(ISBLANK(dms_E13_Projects_10),"",dms_E13_Projects_10) -> 3101 - MAJOR PROJECTS-V83 - T14-PL49 TP MODIFICATION FOR PIGGABILITY (Asset Class - Other Assets)
B141: =IF(ISBLANK(dms_E13_Projects_11),"",dms_E13_Projects_11) -> 2106 - C P - CORROSION PROTECTION - CAPEX - DCVG DIG UP AND REPAIR (Asset Class - Other Assets)
B142: =IF(ISBLANK(dms_E13_Projects_12),"",dms_E13_Projects_12) -> 2130 MAINS ALTERATION - CHARGEABLE - CAPEX - SOUTHERN (Asset Class - Mains and Services)
B143: =IF(ISBLANK(dms_E13_Projects_13),"",dms_E13_Projects_13) -> 2130 MAINS ALTERATION - CHARGEABLE - CAPEX - THOMASTOWN (Asset Class - Mains and Services)
B144: =IF(ISBLANK(dms_E13_Projects_14),"",dms_E13_Projects_14) -> 2130 MAINS ALTERATION - CHARGEABLE - CAPEX - NORTH EAST LINK (Asset Class - Mains and Services)
B145: =IF(ISBLANK(dms_E13_Projects_15),"",dms_E13_Projects_15) -> 2130 MAINS ALTERATION - CHARGEABLE - CAPEX - SUBURBAN RDS UPGRADE (Asset Class - Mains and Services)
B146: 2190-OTHER - NON RETIC CAPITAL - PLANT AND EQUIP UPGRADE
B168: Aggregate of other projects with total expenditure of less than $500,000
B169: Total | C169: =SUM(C131:C168) -> 0 | D169: =SUM(D131:D168) -> 0 | E169: 0 | F169: 0 | G169: 0 | H169: 0 | I169: 0
B171: D. OTHER DIRECT EXPENDITURE
B172: =IF(ISBLANK(dms_E13_Projects_01),"",dms_E13_Projects_01) -> 2139 - NETWORK - REGULATOR STAY IN BUSINESS (Asset Class - Other Assets)
B173: =IF(ISBLANK(dms_E13_Projects_02),"",dms_E13_Projects_02) -> 2190 - OTHER - NON RETIC CAPITAL (Asset Class - Other Assets)
B174: =IF(ISBLANK(dms_E13_Projects_03),"",dms_E13_Projects_03) -> 2140 - WATER BATH OVERHAUL (Asset Class - Other Assets)
B175: =IF(ISBLANK(dms_E13_Projects_04),"",dms_E13_Projects_04) -> 2106 - C P - CORROSION PROTECTION - CAPEX (Asset Class - Other Assets)
B176: =IF(ISBLANK(dms_E13_Projects_05),"",dms_E13_Projects_05) -> 2142 - NETWORK - REGULATOR CAPEX (Asset Class - Other Assets)
B177: =IF(ISBLANK(dms_E13_Projects_06),"",dms_E13_Projects_06) -> 2152 NETWORK - STOPPLE EQUIPMENT (Asset Class - Other Assets)
B178: =IF(ISBLANK(dms_E13_Projects_07),"",dms_E13_Projects_07) -> 2139 - NETWORK - REGULATOR STAY IN BUSINESS - CAPITALISED REG REPLACEMENT (Asset Class - Other Assets)
B179: =IF(ISBLANK(dms_E13_Projects_08),"",dms_E13_Projects_08) -> 2139 - NETWORK - REGULATOR STAY IN BUSINESS - CITY GATE REFURBS (Asset Class - Other Assets)
B180: =IF(ISBLANK(dms_E13_Projects_09),"",dms_E13_Projects_09) -> 2142 - NETWORK - REGULATOR CAPEX - NTH MELBOURNE ALFRED ST (Asset Class - Other Assets)
B181: =IF(ISBLANK(dms_E13_Projects_10),"",dms_E13_Projects_10) -> 3101 - MAJOR PROJECTS-V83 - T14-PL49 TP MODIFICATION FOR PIGGABILITY (Asset Class - Other Assets)
B182: =IF(ISBLANK(dms_E13_Projects_11),"",dms_E13_Projects_11) -> 2106 - C P - CORROSION PROTECTION - CAPEX - DCVG DIG UP AND REPAIR (Asset Class - Other Assets)
B183: =IF(ISBLANK(dms_E13_Projects_12),"",dms_E13_Projects_12) -> 2130 MAINS ALTERATION - CHARGEABLE - CAPEX - SOUTHERN (Asset Class - Mains and Services)
B184: =IF(ISBLANK(dms_E13_Projects_13),"",dms_E13_Projects_13) -> 2130 MAINS ALTERATION - CHARGEABLE - CAPEX - THOMASTOWN (Asset Class - Mains and Services)
B185: =IF(ISBLANK(dms_E13_Projects_14),"",dms_E13_Projects_14) -> 2130 MAINS ALTERATION - CHARGEABLE - CAPEX - NORTH EAST LINK (Asset Class - Mains and Services)
B186: =IF(ISBLANK(dms_E13_Projects_15),"",dms_E13_Projects_15) -> 2130 MAINS ALTERATION - CHARGEABLE - CAPEX - SUBURBAN RDS UPGRADE (Asset Class - Mains and Services)
B187: 2190-OTHER - NON RETIC CAPITAL - PLANT AND EQUIP UPGRADE
B209: Aggregate of other projects with total expenditure of less than $500,000
B210: Total
B212: E. RELATED PARTY MARGIN EXPENDITURE
B213: =IF(ISBLANK(dms_E13_Projects_01),"",dms_E13_Projects_01) -> 2139 - NETWORK - REGULATOR STAY IN BUSINESS (Asset Class - Other Assets)
B214: =IF(ISBLANK(dms_E13_Projects_02),"",dms_E13_Projects_02) -> 2190 - OTHER - NON RETIC CAPITAL (Asset Class - Other Assets)
B215: =IF(ISBLANK(dms_E13_Projects_03),"",dms_E13_Projects_03) -> 2140 - WATER BATH OVERHAUL (Asset Class - Other Assets)
B216: =IF(ISBLANK(dms_E13_Projects_04),"",dms_E13_Projects_04) -> 2106 - C P - CORROSION PROTECTION - CAPEX (Asset Class - Other Assets)
B217: =IF(ISBLANK(dms_E13_Projects_05),"",dms_E13_Projects_05) -> 2142 - NETWORK - REGULATOR CAPEX (Asset Class - Other Assets)
B218: =IF(ISBLANK(dms_E13_Projects_06),"",dms_E13_Projects_06) -> 2152 NETWORK - STOPPLE EQUIPMENT (Asset Class - Other Assets)
B219: =IF(ISBLANK(dms_E13_Projects_07),"",dms_E13_Projects_07) -> 2139 - NETWORK - REGULATOR STAY IN BUSINESS - CAPITALISED REG REPLACEMENT (Asset Class - Other Assets)
B220: =IF(ISBLANK(dms_E13_Projects_08),"",dms_E13_Projects_08) -> 2139 - NETWORK - REGULATOR STAY IN BUSINESS - CITY GATE REFURBS (Asset Class - Other Assets)
B221: =IF(ISBLANK(dms_E13_Projects_09),"",dms_E13_Projects_09) -> 2142 - NETWORK - REGULATOR CAPEX - NTH MELBOURNE ALFRED ST (Asset Class - Other Assets)
B222: =IF(ISBLANK(dms_E13_Projects_10),"",dms_E13_Projects_10) -> 3101 - MAJOR PROJECTS-V83 - T14-PL49 TP MODIFICATION FOR PIGGABILITY (Asset Class - Other Assets)
B223: =IF(ISBLANK(dms_E13_Projects_11),"",dms_E13_Projects_11) -> 2106 - C P - CORROSION PROTECTION - CAPEX - DCVG DIG UP AND REPAIR (Asset Class - Other Assets)
B224: =IF(ISBLANK(dms_E13_Projects_12),"",dms_E13_Projects_12) -> 2130 MAINS ALTERATION - CHARGEABLE - CAPEX - SOUTHERN (Asset Class - Mains and Services)
B225: =IF(ISBLANK(dms_E13_Projects_13),"",dms_E13_Projects_13) -> 2130 MAINS ALTERATION - CHARGEABLE - CAPEX - THOMASTOWN (Asset Class - Mains and Services)
B226: =IF(ISBLANK(dms_E13_Projects_14),"",dms_E13_Projects_14) -> 2130 MAINS ALTERATION - CHARGEABLE - CAPEX - NORTH EAST LINK (Asset Class - Mains and Services)
B227: =IF(ISBLANK(dms_E13_Projects_15),"",dms_E13_Projects_15) -> 2130 MAINS ALTERATION - CHARGEABLE - CAPEX - SUBURBAN RDS UPGRADE (Asset Class - Mains and Services)
B228: 2190-OTHER - NON RETIC CAPITAL - PLANT AND EQUIP UPGRADE
B250: Aggregate of other projects with total expenditure of less than $500,000
B251: Total | C251: =SUM(C213:C250) -> 0 | D251: =SUM(D213:D250) -> 0 | E251: 0 | F251: 0 | G251: 0 | H251: 0 | I251: 0
B253: F. CAPITAL CONTRIBUTIONS included in the above
B254: =IF(ISBLANK(dms_E13_Projects_01),"",dms_E13_Projects_01) -> 2139 - NETWORK - REGULATOR STAY IN BUSINESS (Asset Class - Other Assets)
B255: =IF(ISBLANK(dms_E13_Projects_02),"",dms_E13_Projects_02) -> 2190 - OTHER - NON RETIC CAPITAL (Asset Class - Other Assets)
B256: =IF(ISBLANK(dms_E13_Projects_03),"",dms_E13_Projects_03) -> 2140 - WATER BATH OVERHAUL (Asset Class - Other Assets)
B257: =IF(ISBLANK(dms_E13_Projects_04),"",dms_E13_Projects_04) -> 2106 - C P - CORROSION PROTECTION - CAPEX (Asset Class - Other Assets)
B258: =IF(ISBLANK(dms_E13_Projects_05),"",dms_E13_Projects_05) -> 2142 - NETWORK - REGULATOR CAPEX (Asset Class - Other Assets)
B259: =IF(ISBLANK(dms_E13_Projects_06),"",dms_E13_Projects_06) -> 2152 NETWORK - STOPPLE EQUIPMENT (Asset Class - Other Assets)
B260: =IF(ISBLANK(dms_E13_Projects_07),"",dms_E13_Projects_07) -> 2139 - NETWORK - REGULATOR STAY IN BUSINESS - CAPITALISED REG REPLACEMENT (Asset Class - Other Assets)
B261: =IF(ISBLANK(dms_E13_Projects_08),"",dms_E13_Projects_08) -> 2139 - NETWORK - REGULATOR STAY IN BUSINESS - CITY GATE REFURBS (Asset Class - Other Assets)
B262: =IF(ISBLANK(dms_E13_Projects_09),"",dms_E13_Projects_09) -> 2142 - NETWORK - REGULATOR CAPEX - NTH MELBOURNE ALFRED ST (Asset Class - Other Assets)
B263: =IF(ISBLANK(dms_E13_Projects_10),"",dms_E13_Projects_10) -> 3101 - MAJOR PROJECTS-V83 - T14-PL49 TP MODIFICATION FOR PIGGABILITY (Asset Class - Other Assets)
B264: =IF(ISBLANK(dms_E13_Projects_11),"",dms_E13_Projects_11) -> 2106 - C P - CORROSION PROTECTION - CAPEX - DCVG DIG UP AND REPAIR (Asset Class - Other Assets)
B265: =IF(ISBLANK(dms_E13_Projects_12),"",dms_E13_Projects_12) -> 2130 MAINS ALTERATION - CHARGEABLE - CAPEX - SOUTHERN (Asset Class - Mains and Services)
B266: =IF(ISBLANK(dms_E13_Projects_13),"",dms_E13_Projects_13) -> 2130 MAINS ALTERATION - CHARGEABLE - CAPEX - THOMASTOWN (Asset Class - Mains and Services)
B267: =IF(ISBLANK(dms_E13_Projects_14),"",dms_E13_Projects_14) -> 2130 MAINS ALTERATION - CHARGEABLE - CAPEX - NORTH EAST LINK (Asset Class - Mains and Services)
B268: =IF(ISBLANK(dms_E13_Projects_15),"",dms_E13_Projects_15) -> 2130 MAINS ALTERATION - CHARGEABLE - CAPEX - SUBURBAN RDS UPGRADE (Asset Class - Mains and Services)
B269: 2190-OTHER - NON RETIC CAPITAL - PLANT AND EQUIP UPGRADE
B290: Aggregate of other projects with total expenditure of less than $500,000
B291: Total

Sheet E17. Step changes
B1: =INDEX(dms_Worksheet_List,MATCH(dms_Model,dms_Model_List)) -> REGULATORY REPORTING STATEMENT
B2: =dms_TradingName -> AGN (Albury and Victoria)
B3: =dms_Header_Span -> 2021-22 to 2027-28
B4: E17. STEP CHANGES
B6: E17.1 - STEP CHANGES FOR REFERENCE SERVICES
B7: E17.1.1 - FORECAST OPEX
D8: EXPENDITURE
D9: =CONCATENATE("$0's, real ",dms_DollarReal) -> $0's, real June 2023
B10: Step change | C10: Description | D10: =VLOOKUP(CRCP_y4,'AER lookups'!$B$52:$C$101,2,0) -> 2022 | E10: =CONCATENATE("1 Jan-30 Jun "&(D10+1)) -> 1 Jan-30 Jun 2023 | F10: =FRCP_y1 -> 2023-24 | G10: =FRCP_y2 -> 2024-25 | H10: =FRCP_y3 -> 2025-26 | I10: =FRCP_y4 -> 2026-27 | J10: =FRCP_y5 -> 2027-28
B11: Capex to opex | F11: 2703046.492 | G11: 4019500.798 | H11: 2729910.803 | I11: 4077767.056 | J11: 2791214.316
B12: Cyber security | F12: 1307608.391 | G12: 1307608.391 | H12: 1368971.989 | I12: 1440635.13 | J12: 1440635.13
B13: Renewable gas comms | F13: 600000 | G13: 600000 | H13: 600000 | I13: 600000 | J13: 600000
B21: Total | D21: =SUM(D11:D20) -> 0 | E21: 0 | F21: 4610654.883 | G21: 5927109.19 | H21: 4698882.791 | I21: 6118402.186 | J21: 4831849.446
B23: E17.1.2 - FORECAST CAPEX
D24: EXPENDITURE
D25: =CONCATENATE("$0's, real ", dms_DollarReal) -> $0's, real June 2023
B26: Step change | C26: Description | D26: =VLOOKUP(CRCP_y4,'AER lookups'!$B$52:$C$101,2,0) -> 2022 | E26: =CONCATENATE("1 Jan-30 Jun "&(D26+1)) -> 1 Jan-30 Jun 2023 | F26: =FRCP_y1 -> 2023-24 | G26: =FRCP_y2 -> 2024-25 | H26: =FRCP_y3 -> 2025-26 | I26: =FRCP_y4 -> 2026-27 | J26: =FRCP_y5 -> 2027-28
B37: Total | D37: =SUM(D27:D36) -> 0 | E37: 0 | F37: 0 | G37: 0 | H37: 0 | I37: 0 | J37: 0
B41: E17.2 - CATEGORY SPECIFIC FORECASTS
D42: EXPENDITURE
D43: =CONCATENATE("$0's, real ",dms_DollarReal) -> $0's, real June 2023
B44: Category desription | D44: =VLOOKUP(CRCP_y4,'AER lookups'!$B$52:$C$101,2,0) -> 2022 | E44: =CONCATENATE("1 Jan-30 Jun "&(D44+1)) -> 1 Jan-30 Jun 2023 | F44: =FRCP_y1 -> 2023-24 | G44: =FRCP_y2 -> 2024-25 | H44: =FRCP_y3 -> 2025-26 | I44: =FRCP_y4 -> 2026-27 | J44: =FRCP_y5 -> 2027-28
B45: Priority Services Program | F45: 1222339.011 | G45: 937475.3137 | H45: 966476.6606 | I45: 937475.3137 | J45: 966476.6606
B70: Total | D70: =SUM(D45:D69) -> 0 | E70: 0 | F70: 1222339.011 | G70: 937475.3137 | H70: 966476.6606 | I70: 937475.3137 | J70: 966476.6606

Sheet E20. Opex
B1: =INDEX(dms_Worksheet_List,MATCH(dms_Model,dms_Model_List)) -> REGULATORY REPORTING STATEMENT
B2: =dms_TradingName -> AGN (Albury and Victoria)
B3: =dms_Header_Span -> 2021-22 to 2027-28
B4: E20. OPERATING EXPENDITURE
B7: IMPORTANT!
B8: =CONCATENATE("Has ",dms_TradingName," used a base-step-trend model to derive its opex forecast? ") -> Has AGN (Albury and Victoria) used a base-step-trend model to derive its opex forecast? | D8: Yes
B9: Yes / No
B10: Please nominate the base year | D10: 2021
E11: 2015-16 | F11: 2016-17 | G11: 2017-18 | H11: 2018-19 | I11: 2019-20
B12: E20.1 - OPEX - BY DRIVER
B13: E20.1.1 - REFERENCE SERVICES
C14: EXPENDITURE
C15: =CONCATENATE("$0's, real ",dms_DollarReal) -> $0's, real June 2023
C16: =VLOOKUP(CRCP_y1,'AER lookups'!$B$52:$C$101,2,0) -> 2019 | D16: =VLOOKUP(CRCP_y2,'AER lookups'!$B$52:$C$101,2,0) -> 2020 | E16: =VLOOKUP(CRCP_y3,'AER lookups'!$B$52:$C$101,2,0) -> 2021 | F16: =VLOOKUP(CRCP_y4,'AER lookups'!$B$52:$C$101,2,0) -> 2022 | G16: =CONCATENATE("1 Jan-30 Jun "&(F16+1)) -> 1 Jan-30 Jun 2023 | H16: =FRCP_y1 -> 2023-24 | I16: =FRCP_y2 -> 2024-25 | J16: =FRCP_y3 -> 2025-26 | K16: =FRCP_y4 -> 2026-27 | L16: =FRCP_y5 -> 2027-28
B17: Base year total opex, excluding category specific | E17: 75396446.35 | F17: 75396446.35 | G17: 37698223.18 | H17: 83865580.01 | I17: 83865580.01 | J17: 83865580.01 | K17: 83865580.01 | L17: 83865580.01
B18: Increment from base year to final year | G18: 8469133.654
B19: Price growth | H19: 1103468.379 | I19: 2355646.458 | J19: 3547301.901 | K19: 4759138.008 | L19: 5955924.685
B20: Output growth | H20: 301888.0187 | I20: 739902.3157 | J20: 1268322.141 | K20: 1559408.762 | L20: 1801841.658
B21: Productivity growth | H21: -334942.3803 | I21: -671877.0394 | J21: -1011336.65 | K21: -1350643.907 | L21: -1690329.132
B22: Step changes | F22: ='E17. Step changes'!D21 -> 0 | G22: ='E17. Step changes'!E21 -> 0 | H22: 4610654.883 | I22: 5927109.19 | J22: 4698882.791 | K22: 6118402.186 | L22: 4831849.446
B23: Category specific | F23: =IF(ISBLANK('E17. Step changes'!D70),"",'E17. Step changes'!D70) -> 0 | G23: =IF(ISBLANK('E17. Step changes'!E70),"",'E17. Step changes'!E70) -> 0 | H23: =IF(ISBLANK('E17. Step changes'!F70),"",'E17. Step changes'!F70) -> 1222339.011 | I23: =IF(ISBLANK('E17. Step changes'!G70),"",'E17. Step changes'!G70) -> 937475.3137 | J23: =IF(ISBLANK('E17. Step changes'!H70),"",'E17. Step changes'!H70) -> 966476.6606 | K23: =IF(ISBLANK('E17. Step changes'!I70),"",'E17. Step changes'!I70) -> 937475.3137 | L23: =IF(ISBLANK('E17. Step changes'!J70),"",'E17. Step changes'!J70) -> 966476.6606
B25: E20.1.2 - NON-REFERENCE SERVICES
C26: EXPENDITURE
C27: =CONCATENATE("$0's, real ",dms_DollarReal) -> $0's, real June 2023
C28: =VLOOKUP(CRCP_y1,'AER lookups'!$B$52:$C$101,2,0) -> 2019 | D28: =VLOOKUP(CRCP_y2,'AER lookups'!$B$52:$C$101,2,0) -> 2020 | E28: =VLOOKUP(CRCP_y3,'AER lookups'!$B$52:$C$101,2,0) -> 2021 | F28: =VLOOKUP(CRCP_y4,'AER lookups'!$B$52:$C$101,2,0) -> 2022 | G28: =CONCATENATE("1 Jan-30 Jun "&(F28+1)) -> 1 Jan-30 Jun 2023 | H28: =FRCP_y1 -> 2023-24 | I28: =FRCP_y2 -> 2024-25 | J28: =FRCP_y3 -> 2025-26 | K28: =FRCP_y4 -> 2026-27 | L28: =FRCP_y5 -> 2027-28
B29: Base year total opex, excluding category specific
B30: Increment from base year to final year
B31: Price growth
B32: Output growth
B33: Productivity growth
B34: Step changes
B35: Category specific
B39: E20.2 - OPEX - BY CATEGORY
B40: E20.2.1 - REFERENCE SERVICES
C41: EXPENDITURE
C42: =CONCATENATE("$0's, real ",dms_DollarReal) -> $0's, real June 2023
F43: =VLOOKUP(CRCP_y4,'AER lookups'!$B$52:$C$101,2,0) -> 2022 | G43: =CONCATENATE("1 Jan-30 Jun "&(F43+1)) -> 1 Jan-30 Jun 2023 | H43: =FRCP_y1 -> 2023-24 | I43: =FRCP_y2 -> 2024-25 | J43: =FRCP_y3 -> 2025-26 | K43: =FRCP_y4 -> 2026-27 | L43: =FRCP_y5 -> 2027-28
B44: repairs and maintenance
B45: marketing and retail incentives
B46: debt raising
B47: equity raising
B48: unaccounted for gas
B49: jurisdictional charges
B50: GSL payments
B51: other opex
B52: TOTAL | F52: =SUM(F44:F51) -> 0 | G52: 0 | H52: 0 | I52: 0 | J52: 0 | K52: 0 | L52: 0
B54: E20.2.2 - NON-REFERENCE SERVICES
C55: EXPENDITURE
C56: =CONCATENATE("$0's, real ",dms_DollarReal) -> $0's, real June 2023
F57: =VLOOKUP(CRCP_y4,'AER lookups'!$B$52:$C$101,2,0) -> 2022 | G57: =CONCATENATE("1 Jan-30 Jun "&(F57+1)) -> 1 Jan-30 Jun 2023 | H57: =FRCP_y1 -> 2023-24 | I57: =FRCP_y2 -> 2024-25 | J57: =FRCP_y3 -> 2025-26 | K57: =FRCP_y4 -> 2026-27 | L57: =FRCP_y5 -> 2027-28
B83: TOTAL | F83: =SUM(F58:F82) -> 0 | G83: =SUM(G58:G82) -> 0 | H83: 0 | I83: 0 | J83: 0 | K83: 0 | L83: 0
B87: E20.3 - OPEX - BY CATEGORY - RELATED PARTY MARGIN EXPENDITURE
B88: 20.3.1 - REFERENCE SERVICES
C89: EXPENDITURE
C90: =CONCATENATE("$0's, real ",dms_DollarReal) -> $0's, real June 2023
F91: =VLOOKUP(CRCP_y4,'AER lookups'!$B$52:$C$101,2,0) -> 2022 | G91: =CONCATENATE("1 Jan-30 Jun "&(F91+1)) -> 1 Jan-30 Jun 2023 | H91: =FRCP_y1 -> 2023-24 | I91: =FRCP_y2 -> 2024-25 | J91: =FRCP_y3 -> 2025-26 | K91: =FRCP_y4 -> 2026-27 | L91: =FRCP_y5 -> 2027-28
B92: repairs and maintenance
B93: marketing and retail incentives
B94: debt raising
B95: equity raising
B96: unaccounted for gas
B97: jurisdictional charges
B98: GSL payments
B99: other opex
B100: TOTAL | F100: =SUM(F92:F99) -> 0 | G100: 0 | H100: 0 | I100: 0 | J100: 0 | K100: 0 | L100: 0
B102: 20.3.2 - NON-REFERENCE SERVICES
C103: EXPENDITURE
C104: =CONCATENATE("$0's, real ",dms_DollarReal) -> $0's, real June 2023
F105: =VLOOKUP(CRCP_y4,'AER lookups'!$B$52:$C$101,2,0) -> 2022 | G105: =CONCATENATE("1 Jan-30 Jun "&(F105+1)) -> 1 Jan-30 Jun 2023 | H105: =FRCP_y1 -> 2023-24 | I105: =FRCP_y2 -> 2024-25 | J105: =FRCP_y3 -> 2025-26 | K105: =FRCP_y4 -> 2026-27 | L105: =FRCP_y5 -> 2027-28
B106: =IF(ISBLANK(B58),"",B58) -> 
B131: TOTAL | F131: =SUM(F106:F130) -> 0 | G131: =SUM(G106:G130) -> 0 | H131: 0 | I131: 0 | J131: 0 | K131: 0 | L131: 0

Sheet E21. ARS
B1: =INDEX(dms_Worksheet_List,MATCH(dms_Model,dms_Model_List)) -> REGULATORY REPORTING STATEMENT
B2: =dms_TradingName -> AGN (Albury and Victoria)
B3: =dms_Header_Span -> 2021-22 to 2027-28
B4: E21. ANCILLARY REFERENCE SERVICES
B6: E21.1 - VOLUMES
C7: VOLUME
C8: 0's
B9: Description | C9: =VLOOKUP(CRCP_y4,'AER lookups'!$B$52:$C$101,2,0) -> 2022 | D9: =CONCATENATE("1 Jan-30 Jun "&(C9+1)) -> 1 Jan-30 Jun 2023 | E9: =FRCP_y1 -> 2023-24 | F9: =FRCP_y2 -> 2024-25 | G9: =FRCP_y3 -> 2025-26 | H9: =FRCP_y4 -> 2026-27 | I9: =FRCP_y5 -> 2027-28
B10: Disconnection | C10: 4695.043986 | D10: 2398.155734 | E10: 4833.666667 | F10: 4901.950403 | G10: 4976.25379 | H10: 5048.782688 | I10: 5121.434607
B11: Reconnection | C11: 6008.270551 | D11: 3068.931518 | E11: 6185.666667 | F11: 6273.049695 | G11: 6368.1361 | H11: 6460.951682 | I11: 6553.924695
B12: Special Meter Read - Metropolitan | C12: 149433.9157 | D12: 76328.52913 | E12: 153846 | F12: 156019.3356 | G12: 158384.2647 | H12: 160692.7153 | I12: 163005.0814
B13: Special Meter Read - Non Metropolitan | C13: 56526.69778 | D13: 28872.96152 | E13: 58195.66667 | F13: 59017.77912 | G13: 59912.36608 | H13: 60785.58879 | I13: 61660.29265
B14: Meter Removal | C14: 1949.442097 | D14: 995.7448225 | E14: 2007 | F14: 2035.352277 | G14: 2066.203991 | H14: 2096.318913 | I14: 2126.484916
B15: Meter Reinstallation | C15: 64.10721394 | D15: 32.74497174 | E15: 66 | F15: 66.93236189 | G15: 67.94691749 | H15: 68.93724379 | I15: 69.92924986
B16: Meter and Gas Installation Test | C16: 138.5751897 | D16: 70.78206013 | E16: 142.6666667 | F16: 144.6820752 | G16: 146.875155 | H16: 149.0158603 | I16: 151.1601967
B17: Total | C17: =SUM(C10:C16) -> 218816.0525 | D17: =SUM(D10:D16) -> 111767.8498 | E17: =SUM(E10:E16) -> 225276.6667 | F17: 228459.0815 | G17: 231922.0467 | H17: 235302.3105 | I17: 238688.3077
B19: E21.2 - omitted
B21: E21.3 - EXPENDITURE
C22: EXPENDITURE
C23: =CONCATENATE("$0's, real ",dms_DollarReal) -> $0's, real June 2023
C24: =VLOOKUP(CRCP_y4,'AER lookups'!$B$52:$C$101,2,0) -> 2022 | D24: =CONCATENATE("1 Jan-30 Jun "&(C24+1)) -> 1 Jan-30 Jun 2023 | E24: =FRCP_y1 -> 2023-24 | F24: =FRCP_y2 -> 2024-25 | G24: =FRCP_y3 -> 2025-26 | H24: =FRCP_y4 -> 2026-27 | I24: =FRCP_y5 -> 2027-28
B25: =IF(ISBLANK(B10),"",B10) -> Disconnection | C25: 397344.8136 | D25: 202957.5752 | E25: 409076.5468 | F25: 417473.2796 | G25: 426001.7294 | H25: 434002.7026 | I25: 441641.6055
B26: Reconnection | C26: 590309.1094 | D26: 301520.7481 | E26: 607738.1752 | F26: 617346.9812 | G26: 627223.0449 | H26: 636390.5196 | I26: 645094.0618
B27: Special Meter Read - Metropolitan | C27: 1613543.901 | D27: 824173.228 | E27: 1661184.303 | F27: 1683063.636 | G27: 1705783.018 | H27: 1741069.399 | I27: 1774819.982
B28: Special Meter Read - Non Metropolitan | C28: 835806.6724 | D28: 426917.1001 | E28: 860484.1326 | F28: 876798.4563 | G28: 893423.5129 | H28: 908974.3367 | I28: 923798.3499
B29: Meter Removal | C29: 235147.6571 | D29: 120109.7804 | E29: 242090.4671 | F29: 246528.3214 | G29: 251057.3957 | H29: 255288.2251 | I29: 259318.497
B30: Meter Reinstallation | C30: 7732.807856 | D30: 3949.798458 | E30: 7961.121489 | F30: 8107.059896 | G30: 8255.998065 | H30: 8395.128479 | I30: 8527.663578
B31: Meter and Gas Installation Test | C31: 38035.84003 | D31: 19428.11785 | E31: 39158.86042 | F31: 43045.69126 | G31: 47327.6638 | H31: 51965.75306 | I31: 57201.33771
B32: Total | C32: =SUM(C25:C31) -> 3717920.801 | D32: 1899056.348 | E32: 3827693.606 | F32: 3892363.426 | G32: 3959072.363 | H32: 4036086.065 | I32: 4110401.498

Sheet E25. Escalators
B1: =INDEX(dms_Worksheet_List,MATCH(dms_Model,dms_Model_List)) -> REGULATORY REPORTING STATEMENT
B2: =dms_TradingName -> AGN (Albury and Victoria)
B3: =dms_Header_Span -> 2021-22 to 2027-28
B4: E25. ESCALATORS
B6: E25.1 - FORECAST CAPEX AND OPEX PRICE CHANGES
C7: Price changes (% YoY real)
C8: =VLOOKUP(CRCP_y4,'AER lookups'!$B$52:$C$101,2,0) -> 2022 | D8: =CONCATENATE("1 Jan-30 Jun "&(C8+1)) -> 1 Jan-30 Jun 2023 | E8: =FRCP_y1 -> 2023-24 | F8: =FRCP_y2 -> 2024-25 | G8: =FRCP_y3 -> 2025-26 | H8: =FRCP_y4 -> 2026-27 | I8: =FRCP_y5 -> 2027-28
B9: E25.1.1 - OPEX
B10: Forecast output change | E10: 0.01317800844 | F10: 0.01473248627 | G10: 0.01376747489 | H10: 0.01387163121 | I10: 0.01355115893
B11: Forecast price change | E11: 0.00360525316 | F11: 0.005203579489 | G11: 0.006226972778 | H11: 0.003422950825 | I11: 0.002853423392
B12: Forecast productivity change | E12: -0.004 | F12: -0.004 | G12: -0.004 | H12: -0.004 | I12: -0.004
B16: E25.1.2 - CAPEX
B17: Labour EGWWS | D17: 0.004239574905 | E17: 0.006019048725 | F17: 0.008724489636 | G17: 0.01043146875 | H17: 0.00575711879 | I17: 0.004803136491
B18: Labour Construction | D18: -0.001314443199 | E18: 0.001464432266 | F18: 0.00367178307 | G18: 0.005080900941 | H18: 0.005339084391 | I18: 0.003567883909
B19: Materials | D19: 0 | E19: 0 | F19: 0 | G19: 0 | H19: 0 | I19: 0

Sheet N1. Demand
B1: =INDEX(dms_Worksheet_List,MATCH(dms_Model,dms_Model_List)) -> REGULATORY REPORTING STATEMENT
B2: =dms_TradingName -> AGN (Albury and Victoria)
B3: =dms_Header_Span -> 2021-22 to 2027-28
B4: N1. DEMAND
B6: N1.1 - DEMAND - BY CUSTOMER TYPE
C7: VOLUME
C8: GJ
C9: =VLOOKUP(CRCP_y4,'AER lookups'!$B$52:$C$101,2,0) -> 2022 | D9: =CONCATENATE("1 Jan-30 Jun "&(C9+1)) -> 1 Jan-30 Jun 2023 | E9: =FRCP_y1 -> 2023-24 | F9: =FRCP_y2 -> 2024-25 | G9: =FRCP_y3 -> 2025-26 | H9: =FRCP_y4 -> 2026-27 | I9: =FRCP_y5 -> 2027-28
B10: Residential | C10: 31136031.51 | D10: 12569622.77 | E10: 30516905.05 | F10: 29975585.35 | G10: 29520116.68 | H10: 28927488.3 | I10: 28428575.58
B11: Commercial | C11: 7766579.226 | D11: 3782613.308 | E11: 8305074.191 | F11: 8217470.429 | G11: 8316868.335 | H11: 8393948.278 | I11: 8473327.307
B12: Industrial | C12: 17503634.53 | D12: 8731037.542 | E12: 17300686.5 | F12: 16962903.87 | G12: 16631754.07 | H12: 16307106.77 | I12: 15988834.17
B13: Total | C13: =SUM(C10:C12) -> 56406245.27 | D13: 25083273.62 | E13: 56122665.75 | F13: 55155959.65 | G13: 54468739.08 | H13: 53628543.35 | I13: 52890737.05
B17: N1.2 - DEMAND - BY TARIFF
C18: VOLUMES
C19: GJ
B20: Tariff | C20: =VLOOKUP(CRCP_y4,'AER lookups'!$B$52:$C$101,2,0) -> 2022 | D20: =CONCATENATE("1 Jan-30 Jun "&(C20+1)) -> 1 Jan-30 Jun 2023 | E20: =FRCP_y1 -> 2023-24 | F20: =FRCP_y2 -> 2024-25 | G20: =FRCP_y3 -> 2025-26 | H20: =FRCP_y4 -> 2026-27 | I20: =FRCP_y5 -> 2027-28
B21: Central Zone - Residential | C21: 26785137.49 | D21: 10767221.03 | E21: 26069288.8 | F21: 25454802.47 | G21: 24905415.06 | H21: 24219701.67 | I21: 23621911.16
B22: Northern Zone - Residential | C22: 2885713.3 | D22: 1194184.541 | E22: 2948529.92 | F22: 3000056.115 | G22: 3065372.023 | H22: 3132109.96 | I22: 3200300.886
B23: Murray Valley Zone - Residential | C23: 216613.4895 | D23: 89813.83908 | E23: 221865.3851 | F23: 226419.2844 | G23: 232488.1624 | H23: 238719.7089 | I23: 245118.284
B24: Bairnsdale Zone - Residential | C24: 227247.5647 | D24: 95321.99545 | E24: 236996.5644 | F24: 244375.624 | G24: 252804.5537 | H24: 261524.2115 | I24: 270544.6251
B25: Albury Zone - Residential | C25: 1021319.673 | D25: 423081.3648 | E25: 1040224.386 | F25: 1049931.864 | G25: 1064036.882 | H25: 1075432.749 | I25: 1090700.622
B26: Central Zone - Commercial | C26: 6588730.022 | D26: 3204036.84 | E26: 7172186.305 | F26: 7096015.096 | G26: 7185980.36 | H26: 7254291.769 | I26: 7324732.269
B27: Northern Zone - Commercial | C27: 752739.4153 | D27: 331992.7681 | E27: 724600.5763 | F27: 716096.82 | G27: 723517.7977 | H27: 731015.6797 | I27: 738591.2629
B28: Murray Valley Zone - Commercial | C28: 62264.24863 | D28: 54982.29909 | E28: 60166.48556 | F28: 59332.27943 | G28: 59307.21839 | H28: 59282.16794 | I28: 59257.12807
B29: Bairnsdale Zone - Commercial | C29: 71852.72831 | D29: 63122.33325 | E29: 69074.75476 | F29: 67699.691 | G29: 66577.7275 | H29: 65474.35792 | I29: 64389.27409
B30: Albury Zone - Commercial | C30: 290992.8118 | D30: 128479.0672 | E30: 279046.0692 | F30: 278326.5429 | G30: 281485.2314 | H30: 283884.3036 | I30: 286357.3731
B31: Central Zone - Industrial | C31: 11645624.87 | D31: 5855795.259 | E31: 11607109.38 | F31: 11399862.04 | G31: 11194371.99 | H31: 10990677.34 | I31: 10788812.17
B32: Northern Zone - Industrial | C32: 3619083.146 | D32: 1758463.246 | E32: 3462650.271 | F32: 3337161.553 | G32: 3216328.467 | H32: 3099978.288 | I32: 2987944.701
B33: Murray Valley Zone - Industrial | C33: 1835082.212 | D33: 915155.499 | E33: 1827928.496 | F33: 1823175.882 | G33: 1818435.625 | H33: 1813707.692 | I33: 1808992.052
B34: Bairnsdale Zone - Industrial | C34: 105103.9391 | D34: 54449.09567 | E34: 110828.9534 | F34: 114829.8787 | G34: 118975.2373 | H34: 123270.2433 | I34: 127720.2991
B35: Albury Zone - Industrial | C35: 298740.3681 | D35: 147174.4423 | E35: 292169.4012 | F35: 287874.511 | G35: 283642.7557 | H35: 279473.2072 | I35: 275364.951
B96: Total | C96: =SUM(C21:C95) -> 56406245.27 | D96: 25083273.62 | E96: 56122665.75 | F96: 55155959.65 | G96: 54468739.08 | H96: 53628543.35 | I96: 52890737.05

Sheet N2. Network characteristics
B1: =INDEX(dms_Worksheet_List,MATCH(dms_Model,dms_Model_List)) -> REGULATORY REPORTING STATEMENT
B2: =dms_TradingName -> AGN (Albury and Victoria)
B3: =dms_Header_Span -> 2021-22 to 2027-28
B4: N2. NETWORK CHARACTERISTICS
B6: N2.1 - NETWORK LENGTH - BY PRESSURE AND ASSET TYPE
D7: LENGTH
D8: KM
D9: =VLOOKUP(CRCP_y4,'AER lookups'!$B$52:$C$101,2,0) -> 2022 | E9: =CONCATENATE("1 Jan-30 Jun "&(D9+1)) -> 1 Jan-30 Jun 2023 | F9: =FRCP_y1 -> 2023-24 | G9: =FRCP_y2 -> 2024-25 | H9: =FRCP_y3 -> 2025-26 | I9: =FRCP_y4 -> 2026-27 | J9: =FRCP_y5 -> 2027-28
B10: N2.1.1 - LOW PRESSURE
C11: Cast Iron | D11: 54 | E11: 0 | F11: 0 | G11: 0 | H11: 0 | I11: 0 | J11: 0
C12: PVC | D12: 43 | E12: 0 | F12: 0 | G12: 0 | H12: 0 | I12: 0 | J12: 0
C13: Polyamide | D13: 0 | E13: 0 | F13: 0 | G13: 0 | H13: 0 | I13: 0 | J13: 0
C14: High density polyethylene (80) | D14: 0 | E14: 0 | F14: 0 | G14: 0 | H14: 0 | I14: 0 | J14: 0
C15: High density polyethylene (100) | D15: 16 | E15: 16 | F15: 16 | G15: 16 | H15: 16 | I15: 16 | J15: 16
C16: High density polyethylene (250) | D16: 0 | E16: 0 | F16: 0 | G16: 0 | H16: 0 | I16: 0 | J16: 0
C17: High density polyethylene (575) | D17: 0 | E17: 0 | F17: 0 | G17: 0 | H17: 0 | I17: 0 | J17: 0
C18: Medium density polyethylene | D18: 0 | E18: 0 | F18: 0 | G18: 0 | H18: 0 | I18: 0 | J18: 0
C19: Other polyethylene | D19: 0 | E19: 0 | F19: 0 | G19: 0 | H19: 0 | I19: 0 | J19: 0
C20: Unprotected steel | D20: 6 | E20: 0 | F20: 0 | G20: 0 | H20: 0 | I20: 0 | J20: 0
C21: Protected steel | D21: 12 | E21: 12 | F21: 12 | G21: 12 | H21: 12 | I21: 12 | J21: 12
C22: Other | D22: 0 | E22: 0 | F22: 0 | G22: 0 | H22: 0 | I22: 0 | J22: 0
B23: N2.1.2 - MEDIUM PRESSURE
C24: Cast Iron | D24: 15 | E24: 0 | F24: 0 | G24: 0 | H24: 0 | I24: 0 | J24: 0
C25: PVC | D25: 0 | E25: 0 | F25: 0 | G25: 0 | H25: 0 | I25: 0 | J25: 0
C26: Polyamide | D26: 0 | E26: 0 | F26: 0 | G26: 0 | H26: 0 | I26: 0 | J26: 0
C27: High density polyethylene (80) | D27: 1 | E27: 1 | F27: 1 | G27: 1 | H27: 1 | I27: 1 | J27: 1
C28: High density polyethylene (100) | D28: 2 | E28: 2 | F28: 2 | G28: 2 | H28: 2 | I28: 2 | J28: 2
C29: High density polyethylene (250) | D29: 0 | E29: 0 | F29: 0 | G29: 0 | H29: 0 | I29: 0 | J29: 0
C30: High density polyethylene (575) | D30: 5 | E30: 5 | F30: 5 | G30: 5 | H30: 5 | I30: 5 | J30: 5
C31: Medium density polyethylene | D31: 0 | E31: 0 | F31: 0 | G31: 0 | H31: 0 | I31: 0 | J31: 0
C32: Other polyethylene | D32: 0 | E32: 0 | F32: 0 | G32: 0 | H32: 0 | I32: 0 | J32: 0
C33: Unprotected steel | D33: 0 | E33: 0 | F33: 0 | G33: 0 | H33: 0 | I33: 0 | J33: 0
C34: Protected steel | D34: 19 | E34: 19 | F34: 19 | G34: 19 | H34: 19 | I34: 19 | J34: 19
C35: Other | D35: 0 | E35: 0 | F35: 0 | G35: 0 | H35: 0 | I35: 0 | J35: 0
B36: N2.1.3 - HIGH PRESSURE
C37: Cast Iron | D37: 0 | E37: 0 | F37: 0 | G37: 0 | H37: 0 | I37: 0 | J37: 0
C38: PVC | D38: 0 | E38: 0 | F38: 0 | G38: 0 | H38: 0 | I38: 0 | J38: 0
C39: Polyamide | D39: 0 | E39: 0 | F39: 0 | G39: 0 | H39: 0 | I39: 0 | J39: 0
C40: High density polyethylene (80) | D40: 4241 | E40: 4241 | F40: 4241 | G40: 4241 | H40: 4241 | I40: 4241 | J40: 4241
C41: High density polyethylene (100) | D41: 1657 | E41: 1840 | F41: 2043.168037 | G41: 2217.763494 | H41: 2387.233692 | I41: 2563.998998 | J41: 2739.062585
C42: High density polyethylene (250) | D42: 0 | E42: 0 | F42: 0 | G42: 0 | H42: 0 | I42: 0 | J42: 0
C43: High density polyethylene (575) | D43: 3083 | E43: 3083 | F43: 3083 | G43: 3083 | H43: 3083 | I43: 3083 | J43: 3083
C44: Medium density polyethylene | D44: 0 | E44: 0 | F44: 0 | G44: 0 | H44: 0 | I44: 0 | J44: 0
C45: Other polyethylene | D45: 0 | E45: 0 | F45: 0 | G45: 0 | H45: 0 | I45: 0 | J45: 0
C46: Unprotected steel | D46: 0 | E46: 0 | F46: 0 | G46: 0 | H46: 0 | I46: 0 | J46: 0
C47: Protected steel | D47: 3045 | E47: 3045 | F47: 3042.16 | G47: 3039.32 | H47: 3036.48 | I47: 3033.64 | J47: 3030.8
C48: Other | D48: 0 | E48: 0 | F48: 0 | G48: 0 | H48: 0 | I48: 0 | J48: 0
B49: N2.1.4 - TRANSMISSION
C50: Protected steel | D50: 252 | E50: 252 | F50: 253.65 | G50: 255.3 | H50: 255.3 | I50: 255.3 | J50: 255.3
C51: Other | F51: 0 | G51: 0 | H51: 0 | I51: 0 | J51: 0
C52: Total | D52: =SUM(D11:D51) -> 12451 | E52: 12516 | F52: 12717.97804 | G52: 12891.38349 | H52: 13058.01369 | I52: 13231.939 | J52: 13404.16259
B56: N2.2 - CITY GATES / REGULATORS
D57: VOLUMES
D58: 0's
D59: =VLOOKUP(CRCP_y4,'AER lookups'!$B$52:$C$101,2,0) -> 2022 | E59: =CONCATENATE("1 Jan-30 Jun "&(D59+1)) -> 1 Jan-30 Jun 2023 | F59: =FRCP_y1 -> 2023-24 | G59: =FRCP_y2 -> 2024-25 | H59: =FRCP_y3 -> 2025-26 | I59: =FRCP_y4 -> 2026-27 | J59: =FRCP_y5 -> 2027-28
C60: City Gate | D60: 56 | E60: 56 | F60: 57 | G60: 57 | H60: 58 | I60: 58 | J60: 58
C61: Field Regulator | D61: 87 | E61: 87 | F61: 79 | G61: 69 | H61: 59 | I61: 59 | J61: 59
C62: District Regulator
C63: Total | D63: =SUM(D60:D62) -> 87 | E63: =SUM(E60:E62) -> 87 | F63: =SUM(F60:F62) -> 79 | G63: =SUM(G60:G62) -> 69 | H63: 59 | I63: 59 | J63: 59

Sheet S1.1 Customer numbers
B1: =INDEX(dms_Worksheet_List,MATCH(dms_Model,dms_Model_List)) -> REGULATORY REPORTING STATEMENT
B2: =dms_TradingName -> AGN (Albury and Victoria)
B3: =dms_Header_Span -> 2021-22 to 2027-28
B4: S1. CUSTOMER NUMBERS
B6: S1.1 - CUSTOMER NUMBERS - BY CUSTOMER TYPE
B7: A. RESIDENTIAL
C8: VOLUMES
C9: 0's
C10: =VLOOKUP(CRCP_y4,'AER lookups'!$B$52:$C$101,2,0) -> 2022 | D10: =CONCATENATE("1 Jan-30 Jun "&(C10+1)) -> 1 Jan-30 Jun 2023 | E10: =FRCP_y1 -> 2023-24 | F10: =FRCP_y2 -> 2024-25 | G10: =FRCP_y3 -> 2025-26 | H10: =FRCP_y4 -> 2026-27 | I10: =FRCP_y5 -> 2027-28
B11: Customer numbers - Beginning of year | C11: 710026.4031 | D11: 725340.9743 | E11: 730990.1605 | F11: 739887.1785 | G11: 751705.5848 | H11: 762934.0853 | I11: 774211.5092
B12: Customer numbers - End of year | C12: 725340.9743 | D12: 730990.1605 | E12: 739887.1785 | F12: 751705.5848 | G12: 762934.0853 | H12: 774211.5092 | I12: 785477.1281
B13: Total customer connections | C13: 17451.45776 | D13: 8519.007075 | E13: 16773.65957 | F13: 14990.06897 | G13: 14432.42868 | H13: 14513.74603 | I13: 14534.28421
B14: Total customer disconnections | C14: 2136.886625 | D14: 2869.755 | E14: 7876.641625 | F14: 3171.662644 | G14: 3203.928127 | H14: 3236.322153 | I14: 3268.665301
B17: B. COMMERCIAL
C18: VOLUMES
C19: 0's
C20: =VLOOKUP(CRCP_y4,'AER lookups'!$B$52:$C$101,2,0) -> 2022 | D20: =CONCATENATE("1 Jan-30 Jun "&(C20+1)) -> 1 Jan-30 Jun 2023 | E20: =FRCP_y1 -> 2023-24 | F20: =FRCP_y2 -> 2024-25 | G20: =FRCP_y3 -> 2025-26 | H20: =FRCP_y4 -> 2026-27 | I20: =FRCP_y5 -> 2027-28
B21: Customer numbers - Beginning of year | C21: 24512.73384 | D21: 24647.07986 | E21: 24182.8137 | F21: 23252.29569 | G21: 23376.78032 | H21: 23501.93234 | I21: 23627.75534
B22: Customer numbers - End of year | C22: 24647.07986 | D22: 24182.8137 | E22: 23252.29569 | F22: 23376.78032 | G22: 23501.93234 | H22: 23627.75534 | I22: 23754.25291
B23: Total customer connections | C23: 413.4598949 | D23: 206.7907809 | E23: 408.5958655 | F23: 398.8199437 | G23: 400.9606997 | H23: 403.1129574 | I23: 405.2767786
B24: Total customer disconnections | C24: 279.113879 | D24: 671.0569395 | E24: 1339.113879 | F24: 274.3353085 | G24: 275.8086754 | H24: 277.2899618 | I24: 278.7792104
B27: C. INDUSTRIAL
C28: VOLUMES
C29: 0's
C30: =VLOOKUP(CRCP_y4,'AER lookups'!$B$52:$C$101,2,0) -> 2022 | D30: =CONCATENATE("1 Jan-30 Jun "&(C30+1)) -> 1 Jan-30 Jun 2023 | E30: =FRCP_y1 -> 2023-24 | F30: =FRCP_y2 -> 2024-25 | G30: =FRCP_y3 -> 2025-26 | H30: =FRCP_y4 -> 2026-27 | I30: =FRCP_y5 -> 2027-28
B31: Customer numbers - Beginning of year | C31: 278.6112124 | D31: 282.0427576 | E31: 283.7375152 | F31: 287.1690604 | G31: 290.6431567 | H31: 294.1603319 | I31: 297.72112
B32: Customer numbers - End of year | C32: 282.0427576 | D32: 283.7375152 | E32: 287.1690604 | F32: 290.6431567 | G32: 294.1603319 | H32: 297.72112 | I32: 301.3260619
B33: Total customer connections | C33: 3.431545188 | D33: 1.6947576 | E33: 3.431545188 | F33: 3.474096349 | G33: 3.517175144 | H33: 3.560788115 | I33: 3.604941888
B34: Total customer disconnections | C34: 0 | D34: 0 | E34: 0 | F34: 0 | G34: 0 | H34: 0 | I34: 0

Sheet S1.2 Customer numbers
B1: =INDEX(dms_Worksheet_List,MATCH(dms_Model,dms_Model_List)) -> REGULATORY REPORTING STATEMENT
B2: =dms_TradingName -> AGN (Albury and Victoria)
B3: =dms_Header_Span -> 2021-22 to 2027-28
B4: S1. CUSTOMER NUMBERS
B6: S1.2 - CUSTOMER NUMBERS - BY TARIFF
B7: S1.2.1 - CUSTOMER NUMBERS - BEGINNING OF YEAR
C8: VOLUMES
C9: 0's
C10: =VLOOKUP(CRCP_y4,'AER lookups'!$B$52:$C$101,2,0) -> 2022 | D10: =CONCATENATE("1 Jan-30 Jun "&(C10+1)) -> 1 Jan-30 Jun 2023 | E10: =FRCP_y1 -> 2023-24 | F10: =FRCP_y2 -> 2024-25 | G10: =FRCP_y3 -> 2025-26 | H10: =FRCP_y4 -> 2026-27 | I10: =FRCP_y5 -> 2027-28
B11: =IF(ISBLANK('N1. Demand'!B21),"",'N1. Demand'!B21) -> Central Zone - Residential | C11: 589191.3757 | D11: =C92 -> 601999.7669 | E11: 606793.2682 | F11: 613931.6793 | G11: 622791.7118 | H11: 630985.9133 | I11: 639150.8558
B12: =IF(ISBLANK('N1. Demand'!B22),"",'N1. Demand'!B22) -> Northern Zone - Residential | C12: 83742.22347 | D12: =C93 -> 85364.04807 | E12: 85941.59923 | F12: 87122.57426 | G12: 89074.00154 | H12: 91069.13813 | I12: 93108.96307
B13: =IF(ISBLANK('N1. Demand'!B23),"",'N1. Demand'!B23) -> Murray Valley Zone - Residential | C13: 8642.836777 | D13: =C94 -> 8857.470164 | E13: 8923.163393 | F13: 9058.202022 | G13: 9309.994343 | H13: 9568.785775 | I13: 9834.770875
B14: =IF(ISBLANK('N1. Demand'!B24),"",'N1. Demand'!B24) -> Bairnsdale Zone - Residential | C14: 5039.256694 | D14: =C95 -> 5301.08511 | E14: 5423.352644 | F14: 5682.275762 | G14: 5993.374661 | H14: 6321.505913 | I14: 6667.602022
B15: =IF(ISBLANK('N1. Demand'!B25),"",'N1. Demand'!B25) -> Albury Zone - Residential | C15: 23410.71052 | D15: =C96 -> 23818.60406 | E15: 23908.77707 | F15: 24092.4471 | G15: 24536.50242 | H15: 24988.74225 | I15: 25449.31746
B16: =IF(ISBLANK('N1. Demand'!B26),"",'N1. Demand'!B26) -> Central Zone - Commercial | C16: 19853.96664 | D16: =C97 -> 19953.29162 | E16: 19559.25826 | F16: 18767.84341 | G16: 18858.01017 | H16: 18948.30066 | I16: 19038.69982
B17: =IF(ISBLANK('N1. Demand'!B27),"",'N1. Demand'!B27) -> Northern Zone - Commercial | C17: 3235.742424 | D17: =C98 -> 3255.113392 | E17: 3195.855816 | F17: 3076.643926 | G17: 3094.731201 | H17: 3112.924809 | I17: 3131.225376
B18: =IF(ISBLANK('N1. Demand'!B28),"",'N1. Demand'!B28) -> Murray Valley Zone - Commercial | C18: 365.715228 | D18: =C99 -> 371.0678298 | E18: 368.7830577 | F18: 364.1470492 | G18: 369.4436093 | H18: 374.8172086 | I18: 380.2689674
B19: =IF(ISBLANK('N1. Demand'!B29),"",'N1. Demand'!B29) -> Bairnsdale Zone - Commercial | C19: 129.258028 | D19: =C100 -> 135.4702156 | E19: 137.7282436 | F19: 143.4652017 | G19: 150.4827825 | H19: 157.8436272 | I19: 165.5645266
B20: =IF(ISBLANK('N1. Demand'!B30),"",'N1. Demand'!B30) -> Albury Zone - Commercial | C20: 928.0515237 | D20: =C101 -> 932.1367973 | E20: 921.188321 | F20: 900.196102 | G20: 904.1125529 | H20: 908.046043 | I20: 911.9966464
B21: =IF(ISBLANK('N1. Demand'!B31),"",'N1. Demand'!B31) -> Central Zone - Industrial | C21: 211.6112124 | D21: =C102 -> 215.0427576 | E21: 216.7375152 | F21: 220.1690604 | G21: 223.6431567 | H21: 227.1603319 | I21: 230.72112
B22: =IF(ISBLANK('N1. Demand'!B32),"",'N1. Demand'!B32) -> Northern Zone - Industrial | C22: 50 | D22: =C103 -> 50 | E22: 50 | F22: 50 | G22: 50 | H22: 50 | I22: 50
B23: =IF(ISBLANK('N1. Demand'!B33),"",'N1. Demand'!B33) -> Murray Valley Zone - Industrial | C23: 7 | D23: =C104 -> 7 | E23: 7 | F23: 7 | G23: 7 | H23: 7 | I23: 7
B24: =IF(ISBLANK('N1. Demand'!B34),"",'N1. Demand'!B34) -> Bairnsdale Zone - Industrial | C24: 3 | D24: =C105 -> 3 | E24: 3 | F24: 3 | G24: 3 | H24: 3 | I24: 3
B25: =IF(ISBLANK('N1. Demand'!B35),"",'N1. Demand'!B35) -> Albury Zone - Industrial | C25: 7 | D25: =C106 -> 7 | E25: 7 | F25: 7 | G25: 7 | H25: 7 | I25: 7
B26: =IF(ISBLANK('N1. Demand'!B36),"",'N1. Demand'!B36) ->  | D26: =C107 -> 0 | E26: 0 | F26: 0 | G26: 0 | H26: 0 | I26: 0
B27: =IF(ISBLANK('N1. Demand'!B37),"",'N1. Demand'!B37) ->  | D27: =C108 -> 0 | E27: 0 | F27: 0 | G27: 0 | H27: 0 | I27: 0
B28: =IF(ISBLANK('N1. Demand'!B38),"",'N1. Demand'!B38) ->  | D28: =C109 -> 0 | E28: 0 | F28: 0 | G28: 0 | H28: 0 | I28: 0
B29: =IF(ISBLANK('N1. Demand'!B39),"",'N1. Demand'!B39) ->  | D29: =C110 -> 0 | E29: 0 | F29: 0 | G29: 0 | H29: 0 | I29: 0
B30: =IF(ISBLANK('N1. Demand'!B40),"",'N1. Demand'!B40) ->  | D30: =C111 -> 0 | E30: 0 | F30: 0 | G30: 0 | H30: 0 | I30: 0
B31: =IF(ISBLANK('N1. Demand'!B41),"",'N1. Demand'!B41) ->  | D31: =C112 -> 0 | E31: 0 | F31: 0 | G31: 0 | H31: 0 | I31: 0
B32: =IF(ISBLANK('N1. Demand'!B42),"",'N1. Demand'!B42) ->  | D32: =C113 -> 0 | E32: 0 | F32: 0 | G32: 0 | H32: 0 | I32: 0
B33: =IF(ISBLANK('N1. Demand'!B43),"",'N1. Demand'!B43) ->  | D33: =C114 -> 0 | E33: 0 | F33: 0 | G33: 0 | H33: 0 | I33: 0
B34: =IF(ISBLANK('N1. Demand'!B44),"",'N1. Demand'!B44) ->  | D34: =C115 -> 0 | E34: 0 | F34: 0 | G34: 0 | H34: 0 | I34: 0
B35: =IF(ISBLANK('N1. Demand'!B45),"",'N1. Demand'!B45) ->  | D35: =C116 -> 0 | E35: 0 | F35: 0 | G35: 0 | H35: 0 | I35: 0
B36: =IF(ISBLANK('N1. Demand'!B46),"",'N1. Demand'!B46) ->  | D36: =C117 -> 0 | E36: 0 | F36: 0 | G36: 0 | H36: 0 | I36: 0
B37: =IF(ISBLANK('N1. Demand'!B47),"",'N1. Demand'!B47) ->  | D37: =C118 -> 0 | E37: 0 | F37: 0 | G37: 0 | H37: 0 | I37: 0
B38: =IF(ISBLANK('N1. Demand'!B48),"",'N1. Demand'!B48) ->  | D38: =C119 -> 0 | E38: 0 | F38: 0 | G38: 0 | H38: 0 | I38: 0
B39: =IF(ISBLANK('N1. Demand'!B49),"",'N1. Demand'!B49) ->  | D39: =C120 -> 0 | E39: 0 | F39: 0 | G39: 0 | H39: 0 | I39: 0
B40: =IF(ISBLANK('N1. Demand'!B50),"",'N1. Demand'!B50) ->  | D40: =C121 -> 0 | E40: 0 | F40: 0 | G40: 0 | H40: 0 | I40: 0
B41: =IF(ISBLANK('N1. Demand'!B51),"",'N1. Demand'!B51) ->  | D41: =C122 -> 0 | E41: 0 | F41: 0 | G41: 0 | H41: 0 | I41: 0
B42: =IF(ISBLANK('N1. Demand'!B52),"",'N1. Demand'!B52) ->  | D42: =C123 -> 0 | E42: 0 | F42: 0 | G42: 0 | H42: 0 | I42: 0
B43: =IF(ISBLANK('N1. Demand'!B53),"",'N1. Demand'!B53) ->  | D43: =C124 -> 0 | E43: 0 | F43: 0 | G43: 0 | H43: 0 | I43: 0
B44: =IF(ISBLANK('N1. Demand'!B54),"",'N1. Demand'!B54) ->  | D44: =C125 -> 0 | E44: 0 | F44: 0 | G44: 0 | H44: 0 | I44: 0
B45: =IF(ISBLANK('N1. Demand'!B55),"",'N1. Demand'!B55) ->  | D45: =C126 -> 0 | E45: 0 | F45: 0 | G45: 0 | H45: 0 | I45: 0
B46: =IF(ISBLANK('N1. Demand'!B56),"",'N1. Demand'!B56) ->  | D46: =C127 -> 0 | E46: 0 | F46: 0 | G46: 0 | H46: 0 | I46: 0
B47: =IF(ISBLANK('N1. Demand'!B57),"",'N1. Demand'!B57) ->  | D47: =C128 -> 0 | E47: 0 | F47: 0 | G47: 0 | H47: 0 | I47: 0
B48: =IF(ISBLANK('N1. Demand'!B58),"",'N1. Demand'!B58) ->  | D48: =C129 -> 0 | E48: 0 | F48: 0 | G48: 0 | H48: 0 | I48: 0
B49: =IF(ISBLANK('N1. Demand'!B59),"",'N1. Demand'!B59) ->  | D49: =C130 -> 0 | E49: 0 | F49: 0 | G49: 0 | H49: 0 | I49: 0
B50: =IF(ISBLANK('N1. Demand'!B60),"",'N1. Demand'!B60) ->  | D50: =C131 -> 0 | E50: =D131 -> 0 | F50: =E131 -> 0 | G50: =F131 -> 0 | H50: =G131 -> 0 | I50: =H131 -> 0
B51: =IF(ISBLANK('N1. Demand'!B61),"",'N1. Demand'!B61) ->  | D51: 0 | E51: 0 | F51: 0 | G51: 0 | H51: 0 | I51: 0
B52: =IF(ISBLANK('N1. Demand'!B62),"",'N1. Demand'!B62) ->  | D52: 0 | E52: 0 | F52: 0 | G52: 0 | H52: 0 | I52: 0
B53: =IF(ISBLANK('N1. Demand'!B63),"",'N1. Demand'!B63) ->  | D53: =C134 -> 0 | E53: 0 | F53: 0 | G53: 0 | H53: 0 | I53: 0
B54: =IF(ISBLANK('N1. Demand'!B64),"",'N1. Demand'!B64) ->  | D54: =C135 -> 0 | E54: 0 | F54: 0 | G54: 0 | H54: 0 | I54: 0
B55: =IF(ISBLANK('N1. Demand'!B65),"",'N1. Demand'!B65) ->  | D55: =C136 -> 0 | E55: 0 | F55: 0 | G55: 0 | H55: 0 | I55: 0
B56: =IF(ISBLANK('N1. Demand'!B66),"",'N1. Demand'!B66) ->  | D56: =C137 -> 0 | E56: 0 | F56: 0 | G56: 0 | H56: 0 | I56: 0
B57: =IF(ISBLANK('N1. Demand'!B67),"",'N1. Demand'!B67) ->  | D57: =C138 -> 0 | E57: 0 | F57: 0 | G57: 0 | H57: 0 | I57: 0
B58: =IF(ISBLANK('N1. Demand'!B68),"",'N1. Demand'!B68) ->  | D58: =C139 -> 0 | E58: =D139 -> 0 | F58: =E139 -> 0 | G58: =F139 -> 0 | H58: =G139 -> 0 | I58: =H139 -> 0
B59: =IF(ISBLANK('N1. Demand'!B69),"",'N1. Demand'!B69) ->  | D59: 0 | E59: 0 | F59: 0 | G59: 0 | H59: 0 | I59: 0
B60: =IF(ISBLANK('N1. Demand'!B70),"",'N1. Demand'!B70) ->  | D60: 0 | E60: 0 | F60: 0 | G60: 0 | H60: 0 | I60: 0
B61: =IF(ISBLANK('N1. Demand'!B71),"",'N1. Demand'!B71) ->  | D61: 0 | E61: 0 | F61: 0 | G61: 0 | H61: 0 | I61: 0
B62: =IF(ISBLANK('N1. Demand'!B72),"",'N1. Demand'!B72) ->  | D62: 0 | E62: 0 | F62: 0 | G62: 0 | H62: 0 | I62: 0
B63: =IF(ISBLANK('N1. Demand'!B73),"",'N1. Demand'!B73) ->  | D63: 0 | E63: 0 | F63: 0 | G63: 0 | H63: 0 | I63: 0
B64: =IF(ISBLANK('N1. Demand'!B74),"",'N1. Demand'!B74) ->  | D64: 0 | E64: 0 | F64: 0 | G64: 0 | H64: 0 | I64: 0
B65: =IF(ISBLANK('N1. Demand'!B75),"",'N1. Demand'!B75) ->  | D65: 0 | E65: 0 | F65: 0 | G65: 0 | H65: 0 | I65: 0
B66: =IF(ISBLANK('N1. Demand'!B76),"",'N1. Demand'!B76) ->  | D66: 0 | E66: 0 | F66: 0 | G66: 0 | H66: 0 | I66: 0
B67: =IF(ISBLANK('N1. Demand'!B77),"",'N1. Demand'!B77) ->  | D67: 0 | E67: 0 | F67: 0 | G67: 0 | H67: 0 | I67: 0
B68: =IF(ISBLANK('N1. Demand'!B78),"",'N1. Demand'!B78) ->  | D68: 0 | E68: 0 | F68: 0 | G68: 0 | H68: 0 | I68: 0
B69: =IF(ISBLANK('N1. Demand'!B79),"",'N1. Demand'!B79) ->  | D69: 0 | E69: 0 | F69: 0 | G69: 0 | H69: 0 | I69: 0
B70: =IF(ISBLANK('N1. Demand'!B80),"",'N1. Demand'!B80) ->  | D70: 0 | E70: 0 | F70: 0 | G70: 0 | H70: 0 | I70: 0
B71: =IF(ISBLANK('N1. Demand'!B81),"",'N1. Demand'!B81) ->  | D71: 0 | E71: 0 | F71: 0 | G71: 0 | H71: 0 | I71: 0
B72: =IF(ISBLANK('N1. Demand'!B82),"",'N1. Demand'!B82) ->  | D72: 0 | E72: 0 | F72: 0 | G72: 0 | H72: 0 | I72: 0
B73: =IF(ISBLANK('N1. Demand'!B83),"",'N1. Demand'!B83) ->  | D73: 0 | E73: 0 | F73: 0 | G73: 0 | H73: 0 | I73: 0
B74: =IF(ISBLANK('N1. Demand'!B84),"",'N1. Demand'!B84) ->  | D74: 0 | E74: 0 | F74: 0 | G74: 0 | H74: 0 | I74: 0
B75: =IF(ISBLANK('N1. Demand'!B85),"",'N1. Demand'!B85) ->  | D75: 0 | E75: 0 | F75: 0 | G75: 0 | H75: 0 | I75: 0
B76: =IF(ISBLANK('N1. Demand'!B86),"",'N1. Demand'!B86) ->  | D76: 0 | E76: 0 | F76: 0 | G76: 0 | H76: 0 | I76: 0
B77: =IF(ISBLANK('N1. Demand'!B87),"",'N1. Demand'!B87) ->  | D77: 0 | E77: 0 | F77: 0 | G77: 0 | H77: 0 | I77: 0
B78: =IF(ISBLANK('N1. Demand'!B88),"",'N1. Demand'!B88) ->  | D78: 0 | E78: 0 | F78: 0 | G78: 0 | H78: 0 | I78: 0
B79: =IF(ISBLANK('N1. Demand'!B89),"",'N1. Demand'!B89) ->  | D79: 0 | E79: 0 | F79: 0 | G79: 0 | H79: 0 | I79: 0
B80: =IF(ISBLANK('N1. Demand'!B90),"",'N1. Demand'!B90) ->  | D80: 0 | E80: 0 | F80: 0 | G80: 0 | H80: 0 | I80: 0
B81: =IF(ISBLANK('N1. Demand'!B91),"",'N1. Demand'!B91) ->  | D81: 0 | E81: 0 | F81: 0 | G81: 0 | H81: 0 | I81: 0
B82: =IF(ISBLANK('N1. Demand'!B92),"",'N1. Demand'!B92) ->  | D82: 0 | E82: 0 | F82: 0 | G82: 0 | H82: 0 | I82: 0
B83: =IF(ISBLANK('N1. Demand'!B93),"",'N1. Demand'!B93) ->  | D83: 0 | E83: 0 | F83: 0 | G83: 0 | H83: 0 | I83: 0
B84: =IF(ISBLANK('N1. Demand'!B94),"",'N1. Demand'!B94) ->  | D84: 0 | E84: 0 | F84: 0 | G84: 0 | H84: 0 | I84: 0
B85: =IF(ISBLANK('N1. Demand'!B95),"",'N1. Demand'!B95) ->  | D85: 0 | E85: 0 | F85: 0 | G85: 0 | H85: 0 | I85: 0
B86: Total | C86: =SUM(C11:C85) -> 734817.7482 | D86: =SUM(D11:D85) -> 750270.0969 | E86: 755456.7117 | F86: 763426.6432 | G86: 775373.0083 | H86: 786730.178 | I86: 798136.9857
B88: S1.2.2 - CUSTOMER NUMBERS - END OF YEAR
C89: VOLUMES
C90: 0's
C91: =VLOOKUP(CRCP_y4,'AER lookups'!$B$52:$C$101,2,0) -> 2022 | D91: =CONCATENATE("1 Jan-30 Jun "&(C91+1)) -> 1 Jan-30 Jun 2023 | E91: =FRCP_y1 -> 2023-24 | F91: =FRCP_y2 -> 2024-25 | G91: =FRCP_y3 -> 2025-26 | H91: =FRCP_y4 -> 2026-27 | I91: =FRCP_y5 -> 2027-28
B92: =IF(ISBLANK(B11),"",B11) -> Central Zone - Residential | C92: 601999.7669 | D92: 606793.2682 | E92: 613931.6793 | F92: 622791.7118 | G92: 630985.9133 | H92: 639150.8558 | I92: 647223.473
B93: Northern Zone - Residential | C93: 85364.04807 | D93: 85941.59923 | E93: 87122.57426 | F93: 89074.00154 | G93: 91069.13813 | H93: 93108.96307 | I93: 95194.47732
B94: Murray Valley Zone - Residential | C94: 8857.470164 | D94: 8923.163393 | E94: 9058.202022 | F94: 9309.994343 | G94: 9568.785775 | H94: 9834.770875 | I94: 10108.14961
B95: Bairnsdale Zone - Residential | C95: 5301.08511 | D95: 5423.352644 | E95: 5682.275762 | F95: 5993.374661 | G95: 6321.505913 | H95: 6667.602022 | I95: 7032.646546
B96: Albury Zone - Residential | C96: 23818.60406 | D96: 23908.77707 | E96: 24092.4471 | F96: 24536.50242 | G96: 24988.74225 | H96: 25449.31746 | I96: 25918.38167
B97: Central Zone - Commercial | C97: 19953.29162 | D97: 19559.25826 | E97: 18767.84341 | F97: 18858.01017 | G97: 18948.30066 | H97: 19038.69982 | I97: 19129.19183
B98: Northern Zone - Commercial | C98: 3255.113392 | D98: 3195.855816 | E98: 3076.643926 | F98: 3094.731201 | G98: 3112.924809 | H98: 3131.225376 | I98: 3149.63353
B99: Murray Valley Zone - Commercial | C99: 371.0678298 | D99: 368.7830577 | E99: 364.1470492 | F99: 369.4436093 | G99: 374.8172086 | H99: 380.2689674 | I99: 385.8000227
B100: Bairnsdale Zone - Commercial | C100: 135.4702156 | D100: 137.7282436 | E100: 143.4652017 | F100: 150.4827825 | G100: 157.8436272 | H100: 165.5645266 | I100: 173.6630928
B101: Albury Zone - Commercial | C101: 932.1367973 | D101: 921.188321 | E101: 900.196102 | F101: 904.1125529 | G101: 908.046043 | H101: 911.9966464 | I101: 915.9644375
B102: Central Zone - Industrial | C102: 215.0427576 | D102: 216.7375152 | E102: 220.1690604 | F102: 223.6431567 | G102: 227.1603319 | H102: 230.72112 | I102: 234.3260619
B103: Northern Zone - Industrial | C103: 50 | D103: 50 | E103: 50 | F103: 50 | G103: 50 | H103: 50 | I103: 50
B104: Murray Valley Zone - Industrial | C104: 7 | D104: 7 | E104: 7 | F104: 7 | G104: 7 | H104: 7 | I104: 7
B105: Bairnsdale Zone - Industrial | C105: 3 | D105: 3 | E105: 3 | F105: 3 | G105: 3 | H105: 3 | I105: 3
B106: Albury Zone - Industrial | C106: 7 | D106: 7 | E106: 7 | F106: 7 | G106: 7 | H106: 7 | I106: 7
B124: =IF(ISBLANK(B43),"",B43) -> 
B141: =IF(ISBLANK(B60),"",B60) -> 
B167: Total | C167: =SUM(C92:C166) -> 750270.0969 | D167: =SUM(D92:D166) -> 755456.7117 | E167: =SUM(E92:E166) -> 763426.6432 | F167: =SUM(F92:F166) -> 775373.0083 | G167: =SUM(G92:G166) -> 786730.178 | H167: =SUM(H92:H166) -> 798136.9857 | I167: =SUM(I92:I166) -> 809532.7071
B169: S1.2.3 - TOTAL CUSTOMER CONNECTIONS
C170: VOLUMES
C171: 0's
C172: =VLOOKUP(CRCP_y4,'AER lookups'!$B$52:$C$101,2,0) -> 2022 | D172: =CONCATENATE("1 Jan-30 Jun "&(C172+1)) -> 1 Jan-30 Jun 2023 | E172: =FRCP_y1 -> 2023-24 | F172: =FRCP_y2 -> 2024-25 | G172: =FRCP_y3 -> 2025-26 | H172: =FRCP_y4 -> 2026-27 | I172: =FRCP_y5 -> 2027-28
B173: =IF(ISBLANK(B11),"",B11) -> Central Zone - Residential | C173: 14622.5116 | D173: 7088.239029 | E173: 13540.28652 | F173: 11703.73523 | G173: 11065.21567 | H173: 11063.37112 | I173: 10998.40874
B174: Northern Zone - Residential | C174: 1878.299613 | D174: 949.5886651 | E174: 2181.450052 | F174: 2211.97781 | G174: 2259.54835 | H174: 2308.112463 | I174: 2357.670262
B175: Murray Valley Zone - Residential | C175: 241.0816965 | D175: 121.7173844 | E175: 274.4869396 | F175: 278.6609078 | G175: 286.0581983 | H175: 293.6515439 | I175: 301.4441033
B176: Bairnsdale Zone - Residential | C176: 276.1763221 | D176: 141.2414871 | E176: 311.2710239 | F176: 325.6748006 | G176: 342.9231605 | H176: 361.1048381 | I176: 380.2696669
B177: Albury Zone - Residential | C177: 433.3885343 | D177: 218.2205093 | E177: 466.1650317 | F177: 470.0202168 | G177: 478.6833042 | H177: 487.5060637 | I177: 496.4914381
B178: Central Zone - Commercial | C178: 329.8066243 | D178: 164.7074576 | E178: 325.0667858 | F178: 316.6618832 | G178: 318.0073212 | H178: 319.3443209 | I178: 320.6720954
B179: Northern Zone - Commercial | C179: 56.46541315 | D179: 28.28964654 | E179: 55.88255463 | F179: 54.54011619 | G179: 54.84307762 | H179: 55.14772479 | I179: 55.45406711
B180: Murray Valley Zone - Commercial | C180: 9.379556132 | D180: 4.728705166 | E180: 9.390945796 | F180: 9.253862325 | G180: 9.352247252 | H180: 9.451867861 | I180: 9.552741071
B181: Bairnsdale Zone - Commercial | C181: 7.521858866 | D181: 3.912863587 | E181: 8.046629431 | F181: 8.304599233 | G181: 8.654805466 | H181: 9.021839858 | I181: 9.406523925
B182: Albury Zone - Commercial | C182: 10.28644245 | D182: 5.152108051 | E182: 10.20894981 | F182: 10.05948278 | G182: 10.10324821 | H182: 10.14720405 | I182: 10.19135113
B183: Central Zone - Industrial | C183: 3.431545188 | D183: 1.6947576 | E183: 3.431545188 | F183: 3.474096349 | G183: 3.517175144 | H183: 3.560788115 | I183: 3.604941888
B184: Northern Zone - Industrial | C184: 0 | D184: 0 | E184: 0 | F184: 0 | G184: 0 | H184: 0 | I184: 0
B185: Murray Valley Zone - Industrial | C185: 0 | D185: 0 | E185: 0 | F185: 0 | G185: 0 | H185: 0 | I185: 0
B186: Bairnsdale Zone - Industrial | C186: 0 | D186: 0 | E186: 0 | F186: 0 | G186: 0 | H186: 0 | I186: 0
B187: Albury Zone - Industrial | C187: 0 | D187: 0 | E187: 0 | F187: 0 | G187: 0 | H187: 0 | I187: 0
B205: =IF(ISBLANK(B43),"",B43) -> 
B222: =IF(ISBLANK(B60),"",B60) -> 
B248: Total | C248: =SUM(C173:C247) -> 17868.3492 | D248: =SUM(D173:D247) -> 8727.492613 | E248: =SUM(E173:E247) -> 17185.68698 | F248: =SUM(F173:F247) -> 15392.36301 | G248: =SUM(G173:G247) -> 14836.90656 | H248: =SUM(H173:H247) -> 14920.41978 | I248: =SUM(I173:I247) -> 14943.16593
B250: S1.2.4 - TOTAL CUSTOMER DISCONNECTIONS
C251: VOLUMES
C252: 0's
C253: =VLOOKUP(CRCP_y4,'AER lookups'!$B$52:$C$101,2,0) -> 2022 | D253: =CONCATENATE("1 Jan-30 Jun "&(C253+1)) -> 1 Jan-30 Jun 2023 | E253: =FRCP_y1 -> 2023-24 | F253: =FRCP_y2 -> 2024-25 | G253: =FRCP_y3 -> 2025-26 | H253: =FRCP_y4 -> 2026-27 | I253: =FRCP_y5 -> 2027-28
B254: =IF(ISBLANK(B11),"",B11) -> Central Zone - Residential | C254: 1814.120399 | D254: 2294.755 | E254: 6401.875399 | F254: 2843.702717 | G254: 2871.014226 | H254: 2898.428602 | I254: 2925.791545
B255: Northern Zone - Residential | C255: 256.4750141 | D255: 372 | E255: 1000.475014 | F255: 260.5505356 | G255: 264.4117566 | H255: 268.2875206 | I255: 272.156013
B256: Murray Valley Zone - Residential | C256: 26.44831014 | D256: 56 | E256: 139.4483101 | F256: 26.86858756 | G256: 27.2667658 | H256: 27.66644375 | I256: 28.06537184
B257: Bairnsdale Zone - Residential | C257: 14.34790574 | D257: 19 | E257: 52.34790574 | F257: 14.57590144 | G257: 14.79190858 | H257: 15.00872929 | I257: 15.22514322
B258: Albury Zone - Residential | C258: 25.49499635 | D258: 128 | E258: 282.4949963 | F258: 25.96490248 | G258: 26.4434696 | H258: 26.93085733 | I258: 27.42722826
B259: Central Zone - Commercial | C259: 230.4816396 | D259: 558.7408198 | E259: 1116.48164 | F259: 226.4951149 | G259: 227.7168392 | H259: 228.9451536 | I259: 230.1800936
B260: Northern Zone - Commercial | C260: 37.09444499 | D260: 87.54722249 | E260: 175.094445 | F260: 36.45284107 | G260: 36.64946926 | H260: 36.84715807 | I260: 37.04591322
B261: Murray Valley Zone - Commercial | C261: 4.026954362 | D261: 7.013477181 | E261: 14.02695436 | F261: 3.957302162 | G261: 3.97864802 | H261: 4.000109018 | I261: 4.021685778
B262: Bairnsdale Zone - Commercial | C262: 1.309671243 | D262: 1.654835622 | E262: 2.309671243 | F262: 1.28701852 | G262: 1.293960753 | H262: 1.300940433 | I262: 1.307957761
B263: Albury Zone - Commercial | C263: 6.201168793 | D263: 16.1005844 | E263: 31.20116879 | F263: 6.143031852 | G263: 6.16975812 | H263: 6.196600666 | I263: 6.223559994
B264: Central Zone - Industrial | C264: 0 | D264: 0 | E264: 0 | F264: 0 | G264: 0 | H264: 0 | I264: 0
B265: Northern Zone - Industrial | C265: 0 | D265: 0 | E265: 0 | F265: 0 | G265: 0 | H265: 0 | I265: 0
B266: Murray Valley Zone - Industrial | C266: 0 | D266: 0 | E266: 0 | F266: 0 | G266: 0 | H266: 0 | I266: 0
B267: Bairnsdale Zone - Industrial | C267: 0 | D267: 0 | E267: 0 | F267: 0 | G267: 0 | H267: 0 | I267: 0
B268: Albury Zone - Industrial | C268: 0 | D268: 0 | E268: 0 | F268: 0 | G268: 0 | H268: 0 | I268: 0
B286: =IF(ISBLANK(B43),"",B43) -> 
B303: =IF(ISBLANK(B60),"",B60) -> 
B329: Total | C329: =SUM(C254:C328) -> 2416.000504 | D329: =SUM(D254:D328) -> 3540.81194 | E329: =SUM(E254:E328) -> 9215.755504 | F329: =SUM(F254:F328) -> 3445.997952 | G329: =SUM(G254:G328) -> 3479.736802 | H329: =SUM(H254:H328) -> 3513.612115 | I329: =SUM(I254:I328) -> 3547.444511

Sheet S10. Supply Quality
B1: =INDEX(dms_Worksheet_List,MATCH(dms_Model,dms_Model_List)) -> REGULATORY REPORTING STATEMENT
B2: =dms_TradingName -> AGN (Albury and Victoria)
B3: =dms_Header_Span -> 2021-22 to 2027-28
B4: S10. SUPPLY QUALITY
B6: S10.1 - PRESSURE FAULTS
C7: VOLUMES
C8: 0's
C9: =VLOOKUP(CRCP_y4,'AER lookups'!$B$52:$C$101,2,0) -> 2022 | D9: =CONCATENATE("1 Jan-30 Jun "&(C9+1)) -> 1 Jan-30 Jun 2023 | E9: =FRCP_y1 -> 2023-24 | F9: =FRCP_y2 -> 2024-25 | G9: =FRCP_y3 -> 2025-26 | H9: =FRCP_y4 -> 2026-27 | I9: =FRCP_y5 -> 2027-28
B10: Poor Pressure events - mains | C10: NULL | D10: NULL | E10: NULL | F10: NULL | G10: NULL | H10: NULL | I10: NULL
B11: Poor Pressure events - services | C11: NULL | D11: NULL | E11: NULL | F11: NULL | G11: NULL | H11: NULL | I11: NULL
B12: Poor Pressure event - meters | C12: 747 | D12: 374 | E12: 747 | F12: 747 | G12: 747 | H12: 747 | I12: 747
B13: Pressure events impacting 5+ customers | C13: 1 | D13: 1 | E13: 1 | F13: 1 | G13: 1 | H13: 1 | I13: 1
B14: Pressure events with >12 hr resolution | C14: 137 | D14: 69 | E14: 137 | F14: 137 | G14: 137 | H14: 137 | I14: 137

Sheet S11. Network reliability
B1: =INDEX(dms_Worksheet_List,MATCH(dms_Model,dms_Model_List)) -> REGULATORY REPORTING STATEMENT
B2: =dms_TradingName -> AGN (Albury and Victoria)
B3: =dms_Header_Span -> 2021-22 to 2027-28
B4: S11. NETWORK RELIABILITY
B6: S11.1 - NETWORK OUTAGES
B7: S11.1.1 - PLANNED
C8: VOLUMES
C9: 0's
C10: =VLOOKUP(CRCP_y4,'AER lookups'!$B$52:$C$101,2,0) -> 2022 | D10: =CONCATENATE("1 Jan-30 Jun "&(C10+1)) -> 1 Jan-30 Jun 2023 | E10: =FRCP_y1 -> 2023-24 | F10: =FRCP_y2 -> 2024-25 | G10: =FRCP_y3 -> 2025-26 | H10: =FRCP_y4 -> 2026-27 | I10: =FRCP_y5 -> 2027-28
B11: Count of outage events | C11: 2870 | D11: 500 | E11: 100 | F11: 100 | G11: 100 | H11: 100 | I11: 100
B12: Outages affecting 5+ customers | C12: NULL | D12: NULL | E12: NULL | F12: NULL | G12: NULL | H12: NULL | I12: NULL
B13: Outages with >12 hr supply interruption | C13: NULL | D13: NULL | E13: NULL | F13: NULL | G13: NULL | H13: NULL | I13: NULL
B15: S11.1.2 - UNPLANNED
C16: VOLUMES
C17: 0's
C18: =VLOOKUP(CRCP_y4,'AER lookups'!$B$52:$C$101,2,0) -> 2022 | D18: =CONCATENATE("1 Jan-30 Jun "&(C18+1)) -> 1 Jan-30 Jun 2023 | E18: =FRCP_y1 -> 2023-24 | F18: =FRCP_y2 -> 2024-25 | G18: =FRCP_y3 -> 2025-26 | H18: =FRCP_y4 -> 2026-27 | I18: =FRCP_y5 -> 2027-28
B19: Count of outage events | C19: 831 | D19: 415.5 | E19: 831 | F19: 831 | G19: 831 | H19: 831 | I19: 831
B20: Outages affecting 5+ customers | C20: 7 | D20: 3.5 | E20: 7 | F20: 7 | G20: 7 | H20: 7 | I20: 7
B21: Outages with >12 hr supply interruption | C21: 43 | D21: 21.5 | E21: 43 | F21: 43 | G21: 43 | H21: 43 | I21: 43
B25: S11.3 - UNACCOUNTED FOR GAS - TRANSMISSION AND DISTRIBUTION
C26: VOLUMES
C27: GJ
B28: Place of loss | C28: =VLOOKUP(CRCP_y4,'AER lookups'!$B$52:$C$101,2,0) -> 2022 | D28: =CONCATENATE("1 Jan-30 Jun "&(C28+1)) -> 1 Jan-30 Jun 2023 | E28: =FRCP_y1 -> 2023-24 | F28: =FRCP_y2 -> 2024-25 | G28: =FRCP_y3 -> 2025-26 | H28: =FRCP_y4 -> 2026-27 | I28: =FRCP_y5 -> 2027-28
B29: Transmission and Distribution | C29: 2227 | D29: 1113 | E29: 2227 | F29: 2227 | G29: 2227 | H29: 2227 | I29: 2227
B39: Total | C39: =SUM(C29:C38) -> 2227 | D39: 1113 | E39: 2227 | F39: 2227 | G39: 2227 | H39: 2227 | I39: 2227

Sheet F3. Revenue
B1: =INDEX(dms_Worksheet_List,MATCH(dms_Model,dms_Model_List)) -> REGULATORY REPORTING STATEMENT
B2: =dms_TradingName -> AGN (Albury and Victoria)
B3: =dms_Header_Span -> 2021-22 to 2027-28
B4: F3. REVENUE
B6: F3.1 - REFERENCE SERVICES
B7: F3.1.1 - REVENUE - BY TARIFF
C8: REVENUE
C9: =CONCATENATE("$0's, real ",dms_DollarReal) -> $0's, real June 2023
B10: Tariff | C10: =VLOOKUP(CRCP_y4,'AER lookups'!$B$52:$C$101,2,0) -> 2022 | D10: =CONCATENATE("1 Jan-30 Jun "&(C10+1)) -> 1 Jan-30 Jun 2023 | E10: =FRCP_y1 -> 2023-24 | F10: =FRCP_y2 -> 2024-25 | G10: =FRCP_y3 -> 2025-26 | H10: =FRCP_y4 -> 2026-27 | I10: =FRCP_y5 -> 2027-28
B11: =IF(ISBLANK('N1. Demand'!B21),"",'N1. Demand'!B21) -> Central Zone - Residential | C11: 208119802.2 | D11: 82671625.06 | E11: 183174485.2 | F11: 185816123.5 | G11: 188865203.4 | H11: 191082732.3 | I11: 193800424.1
B12: =IF(ISBLANK('N1. Demand'!B22),"",'N1. Demand'!B22) -> Northern Zone - Residential | C12: 24495706.19 | D12: 8765270.083 | E12: 20026176.97 | F12: 21000868.19 | G12: 22115993.52 | H12: 23290332.67 | I12: 24527030.03
B13: =IF(ISBLANK('N1. Demand'!B23),"",'N1. Demand'!B23) -> Murray Valley Zone - Residential | C13: 2217666.74 | D13: 785278.9775 | E13: 1796319.521 | F13: 1889828.887 | G13: 2000437.759 | H13: 2117520.885 | I13: 2241457.249
B14: =IF(ISBLANK('N1. Demand'!B24),"",'N1. Demand'!B24) -> Bairnsdale Zone - Residential | C14: 3839623.432 | D14: 1303581.199 | E14: 3031323.893 | F14: 3233406.568 | G14: 3460394.435 | H14: 3703542.541 | I14: 3964019.834
B15: =IF(ISBLANK('N1. Demand'!B25),"",'N1. Demand'!B25) -> Albury Zone - Residential | C15: 6949911.283 | D15: 2773403.997 | E15: 6288249.023 | F15: 6548269.406 | G15: 6849490.981 | H15: 7151654.829 | I15: 7484510.697
B16: =IF(ISBLANK('N1. Demand'!B26),"",'N1. Demand'!B26) -> Central Zone - Commercial | C16: 17614220.09 | D16: 8516726.863 | E16: 17209272.34 | F16: 17535587.39 | G16: 18288902.06 | H16: 19019139.17 | I16: 19782249.84
B17: =IF(ISBLANK('N1. Demand'!B27),"",'N1. Demand'!B27) -> Northern Zone - Commercial | C17: 1736867.807 | D17: 881544.9954 | E17: 1700198.279 | F17: 1730534.799 | G17: 1800803.86 | H17: 1873930.128 | I17: 1950029.925
B18: =IF(ISBLANK('N1. Demand'!B28),"",'N1. Demand'!B28) -> Murray Valley Zone - Commercial | C18: 193677.8848 | D18: 98381.64661 | E18: 191325.461 | F18: 194887.631 | G18: 201228.2262 | H18: 207781.3838 | I18: 214554.4932
B19: =IF(ISBLANK('N1. Demand'!B29),"",'N1. Demand'!B29) -> Bairnsdale Zone - Commercial | C19: 235590.2816 | D19: 121993.7849 | E19: 237635.7687 | F19: 241021.2853 | G19: 245350.9163 | H19: 249827.4833 | I19: 254460.1467
B20: =IF(ISBLANK('N1. Demand'!B30),"",'N1. Demand'!B30) -> Albury Zone - Commercial | C20: 557663.8054 | D20: 284607.3795 | E20: 545415.1951 | F20: 560048.6217 | G20: 583099.2676 | H20: 605642.3519 | I20: 629159.5397
B21: =IF(ISBLANK('N1. Demand'!B31),"",'N1. Demand'!B31) -> Central Zone - Industrial | C21: 3374197.027 | D21: 1513050.906 | E21: 2713321.795 | F21: 2762111.286 | G21: 2804245.274 | H21: 2881554.199 | I21: 2939508.679
B22: =IF(ISBLANK('N1. Demand'!B32),"",'N1. Demand'!B32) -> Northern Zone - Industrial | C22: 1254433.52 | D22: 562510.6532 | E22: 1008738.311 | F22: 1026876.9 | G22: 1042541.156 | H22: 1071282.485 | I22: 1092828.365
B23: =IF(ISBLANK('N1. Demand'!B33),"",'N1. Demand'!B33) -> Murray Valley Zone - Industrial | C23: 458098.3012 | D23: 190624.2546 | E23: 349422.5988 | F23: 365402.5332 | G23: 382113.2683 | H23: 399588.2255 | I23: 417862.3544
B24: =IF(ISBLANK('N1. Demand'!B34),"",'N1. Demand'!B34) -> Bairnsdale Zone - Industrial | C24: 68006.25212 | D24: 25310.24505 | E24: 48081.78657 | F24: 52108.98046 | G24: 56473.48068 | H24: 61203.53904 | I24: 66329.77366
B25: =IF(ISBLANK('N1. Demand'!B35),"",'N1. Demand'!B35) -> Albury Zone - Industrial | C25: 32119.6597 | D25: 19137.60881 | E25: 33061.27613 | F25: 32583.61654 | G25: 32112.85804 | H25: 31648.90091 | I25: 31191.64691
B26: =IF(ISBLANK('N1. Demand'!B36),"",'N1. Demand'!B36) -> 
B27: =IF(ISBLANK('N1. Demand'!B37),"",'N1. Demand'!B37) -> 
B28: =IF(ISBLANK('N1. Demand'!B38),"",'N1. Demand'!B38) -> 
B29: =IF(ISBLANK('N1. Demand'!B39),"",'N1. Demand'!B39) -> 
B30: =IF(ISBLANK('N1. Demand'!B40),"",'N1. Demand'!B40) -> 
B31: =IF(ISBLANK('N1. Demand'!B41),"",'N1. Demand'!B41) -> 
B32: =IF(ISBLANK('N1. Demand'!B42),"",'N1. Demand'!B42) -> 
B33: =IF(ISBLANK('N1. Demand'!B43),"",'N1. Demand'!B43) -> 
B34: =IF(ISBLANK('N1. Demand'!B44),"",'N1. Demand'!B44) -> 
B35: =IF(ISBLANK('N1. Demand'!B45),"",'N1. Demand'!B45) -> 
B36: =IF(ISBLANK('N1. Demand'!B46),"",'N1. Demand'!B46) -> 
B37: =IF(ISBLANK('N1. Demand'!B47),"",'N1. Demand'!B47) -> 
B38: =IF(ISBLANK('N1. Demand'!B48),"",'N1. Demand'!B48) -> 
B39: =IF(ISBLANK('N1. Demand'!B49),"",'N1. Demand'!B49) -> 
B40: =IF(ISBLANK('N1. Demand'!B50),"",'N1. Demand'!B50) -> 
B41: =IF(ISBLANK('N1. Demand'!B51),"",'N1. Demand'!B51) -> 
B42: =IF(ISBLANK('N1. Demand'!B52),"",'N1. Demand'!B52) -> 
B43: =IF(ISBLANK('N1. Demand'!B53),"",'N1. Demand'!B53) -> 
B44: =IF(ISBLANK('N1. Demand'!B54),"",'N1. Demand'!B54) -> 
B45: =IF(ISBLANK('N1. Demand'!B55),"",'N1. Demand'!B55) -> 
B46: =IF(ISBLANK('N1. Demand'!B56),"",'N1. Demand'!B56) -> 
B47: =IF(ISBLANK('N1. Demand'!B57),"",'N1. Demand'!B57) -> 
B48: =IF(ISBLANK('N1. Demand'!B58),"",'N1. Demand'!B58) -> 
B49: =IF(ISBLANK('N1. Demand'!B59),"",'N1. Demand'!B59) -> 
B50: =IF(ISBLANK('N1. Demand'!B60),"",'N1. Demand'!B60) -> 
B51: =IF(ISBLANK('N1. Demand'!B61),"",'N1. Demand'!B61) -> 
B52: =IF(ISBLANK('N1. Demand'!B62),"",'N1. Demand'!B62) -> 
B53: =IF(ISBLANK('N1. Demand'!B63),"",'N1. Demand'!B63) -> 
B54: =IF(ISBLANK('N1. Demand'!B64),"",'N1. Demand'!B64) -> 
B55: =IF(ISBLANK('N1. Demand'!B65),"",'N1. Demand'!B65) -> 
B56: =IF(ISBLANK('N1. Demand'!B66),"",'N1. Demand'!B66) -> 
B57: =IF(ISBLANK('N1. Demand'!B67),"",'N1. Demand'!B67) -> 
B58: =IF(ISBLANK('N1. Demand'!B68),"",'N1. Demand'!B68) -> 
B59: =IF(ISBLANK('N1. Demand'!B69),"",'N1. Demand'!B69) -> 
B60: =IF(ISBLANK('N1. Demand'!B70),"",'N1. Demand'!B70) -> 
B61: =IF(ISBLANK('N1. Demand'!B71),"",'N1. Demand'!B71) -> 
B62: =IF(ISBLANK('N1. Demand'!B72),"",'N1. Demand'!B72) -> 
B63: =IF(ISBLANK('N1. Demand'!B73),"",'N1. Demand'!B73) -> 
B64: =IF(ISBLANK('N1. Demand'!B74),"",'N1. Demand'!B74) -> 
B65: =IF(ISBLANK('N1. Demand'!B75),"",'N1. Demand'!B75) -> 
B66: =IF(ISBLANK('N1. Demand'!B76),"",'N1. Demand'!B76) -> 
B67: =IF(ISBLANK('N1. Demand'!B77),"",'N1. Demand'!B77) -> 
B68: =IF(ISBLANK('N1. Demand'!B78),"",'N1. Demand'!B78) -> 
B69: =IF(ISBLANK('N1. Demand'!B79),"",'N1. Demand'!B79) -> 
B70: =IF(ISBLANK('N1. Demand'!B80),"",'N1. Demand'!B80) -> 
B71: =IF(ISBLANK('N1. Demand'!B81),"",'N1. Demand'!B81) -> 
B72: =IF(ISBLANK('N1. Demand'!B82),"",'N1. Demand'!B82) -> 
B73: =IF(ISBLANK('N1. Demand'!B83),"",'N1. Demand'!B83) -> 
B74: =IF(ISBLANK('N1. Demand'!B84),"",'N1. Demand'!B84) -> 
B75: =IF(ISBLANK('N1. Demand'!B85),"",'N1. Demand'!B85) -> 
B76: =IF(ISBLANK('N1. Demand'!B86),"",'N1. Demand'!B86) -> 
B77: =IF(ISBLANK('N1. Demand'!B87),"",'N1. Demand'!B87) -> 
B78: =IF(ISBLANK('N1. Demand'!B88),"",'N1. Demand'!B88) -> 
B79: =IF(ISBLANK('N1. Demand'!B89),"",'N1. Demand'!B89) -> 
B80: =IF(ISBLANK('N1. Demand'!B90),"",'N1. Demand'!B90) -> 
B81: =IF(ISBLANK('N1. Demand'!B91),"",'N1. Demand'!B91) -> 
B82: =IF(ISBLANK('N1. Demand'!B92),"",'N1. Demand'!B92) -> 
B83: =IF(ISBLANK('N1. Demand'!B93),"",'N1. Demand'!B93) -> 
B84: =IF(ISBLANK('N1. Demand'!B94),"",'N1. Demand'!B94) -> 
B85: =IF(ISBLANK('N1. Demand'!B95),"",'N1. Demand'!B95) -> 
B86: Total | C86: =SUM(C11:C85) -> 271147584.4 | D86: 108513047.6 | E86: 238353027.4 | F86: 242989659.6 | G86: 248728390.5 | H86: 253747381.1 | I86: 259395616.6
B88: F3.1.2 - STAND ALONE COST PER UNIT - BY TARIFF CLASS
C89: STAND ALONE COST PER UNIT
C90: =CONCATENATE("$0's, real ",dms_DollarReal) -> $0's, real June 2023
B91: Tariff Class | C91: =VLOOKUP(CRCP_y4,'AER lookups'!$B$52:$C$101,2,0) -> 2022 | D91: =CONCATENATE("1 Jan-30 Jun "&(C91+1)) -> 1 Jan-30 Jun 2023 | E91: =FRCP_y1 -> 2023-24 | F91: =FRCP_y2 -> 2024-25 | G91: =FRCP_y3 -> 2025-26 | H91: =FRCP_y4 -> 2026-27 | I91: =FRCP_y5 -> 2027-28
B92: Central Zone - Residential | C92: 196455600.2 | D92: 78038243.11 | E92: 172908358.8 | F92: 180966909.9 | G92: 190074330.9 | H92: 205298221.4 | I92: 216210906.9
B93: Northern Zone - Residential | C93: 32296267.24 | D93: 11556535.78 | E93: 26403434.07 | F93: 27633990.09 | G93: 29024710.54 | H93: 31349427.46 | I93: 33015815.23
B94: Murray Valley Zone - Residential | C94: 6525017.003 | D94: 2310517.892 | E94: 5285291.611 | F94: 5531617.427 | G94: 5810004.06 | H94: 6275352.879 | I94: 6608921.051
B95: Bairnsdale Zone - Residential | C95: 5488554.016 | D95: 1863405.605 | E95: 4333129.334 | F95: 4535078.762 | G95: 4763313.148 | H95: 5144827.881 | I95: 5418302.675
B96: Albury Zone - Residential | C96: 10681390.52 | D96: 4262473.281 | E96: 9664474.946 | F96: 10114896.58 | G96: 10623943.35 | H96: 11474861.77 | I96: 12084811.33
B97: Central Zone - Commercial | C97: 17296995.16 | D97: 8363344.078 | E97: 16899340.35 | F97: 17686949.46 | G97: 18577070.72 | H97: 20064990.15 | I97: 21131550.43
B98: Northern Zone - Commercial | C98: 4937326.182 | D98: 2505933.478 | E98: 4833087.149 | F98: 5058337.565 | G98: 5312905.706 | H98: 5738439.728 | I98: 6043468.129
B99: Murray Valley Zone - Commercial | C99: 3194930.05 | D99: 1622913.63 | E99: 3156124.228 | F99: 3303218.265 | G99: 3469457.492 | H99: 3747341.626 | I99: 3946532.64
B100: Bairnsdale Zone - Commercial | C100: 3084513.995 | D100: 1597228.604 | E100: 3111294.954 | F100: 3256299.681 | G100: 3420177.664 | H100: 3694114.759 | I100: 3890476.483
B101: Albury Zone - Commercial | C101: 3665259.804 | D101: 1870589.373 | E101: 3584755.496 | F101: 3751826.281 | G101: 3940642.355 | H101: 4256265.761 | I101: 4482508.782
B102: Central Zone - Industrial | C102: 6238294.564 | D102: 2797363.985 | E102: 5016452.943 | F102: 5250249.289 | G102: 5514475.664 | H102: 5956154.312 | I102: 6272755.394
B103: Northern Zone - Industrial | C103: 4770224.236 | D103: 2139054.727 | E103: 3835921.046 | F103: 4014697.63 | G103: 4216743.084 | H103: 4554480.613 | I103: 4796575.329
B104: Murray Valley Zone - Industrial | C104: 3955444.419 | D104: 1645942.894 | E104: 3017085.338 | F104: 3157699.341 | G104: 3316615.119 | H104: 3582257.434 | I104: 3772673.35
B105: Bairnsdale Zone - Industrial | C105: 4239747.207 | D105: 1577929.049 | E105: 2997586.457 | F105: 3137291.696 | G105: 3295180.43 | H105: 3559105.946 | I105: 3748291.238
B106: Albury Zone - Industrial | C106: 2945644.441 | D106: 1755080.58 | E106: 3031998.63 | F106: 3173307.68 | G106: 3333008.971 | H106: 3599964.341 | I106: 3791321.473
B113: F3.1.3 - AVOIDABLE COST PER UNIT - BY TARIFF CLASS
C114: AVOIDABLE COST PER UNIT
C115: =CONCATENATE("$0's, real ",dms_DollarReal) -> $0's, real June 2023
B116: Tariff Class | C116: =VLOOKUP(CRCP_y4,'AER lookups'!$B$52:$C$101,2,0) -> 2022 | D116: =CONCATENATE("1 Jan-30 Jun "&(C116+1)) -> 1 Jan-30 Jun 2023 | E116: =FRCP_y1 -> 2023-24 | F116: =FRCP_y2 -> 2024-25 | G116: =FRCP_y3 -> 2025-26 | H116: =FRCP_y4 -> 2026-27 | I116: =FRCP_y5 -> 2027-28
B117: =IF(ISBLANK(B92),"",B92) -> Central Zone - Residential | C117: 8971721.906 | D117: 3563845.544 | E117: 7896367.978 | F117: 8264385.38 | G117: 8680302.506 | H117: 9375546.171 | I117: 9873906.003
B118: =IF(ISBLANK(B93),"",B93) -> Northern Zone - Residential | C118: 1331230.486 | D118: 476352.658 | E118: 1088331.853 | F118: 1139054.547 | G118: 1196379.112 | H118: 1292202.385 | I118: 1360889.771
B119: Murray Valley Zone - Residential | C119: 165147.2801 | D119: 58478.88907 | E119: 133770.0015 | F119: 140004.4739 | G119: 147050.4012 | H119: 158828.3156 | I119: 167270.88
B120: Bairnsdale Zone - Residential | C120: 491754.7439 | D120: 166954.4553 | E120: 388232.8387 | F120: 406326.7828 | G120: 426775.7647 | H120: 460958.1157 | I120: 485460.4759
B121: Albury Zone - Residential | C121: 86696.21625 | D121: 34596.64777 | E121: 78442.35342 | F121: 82098.23055 | G121: 86229.94252 | H121: 93136.47847 | I121: 98087.17456
B122: Central Zone - Commercial | C122: 827659.6029 | D122: 400185.2331 | E122: 808631.8577 | F122: 846318.8799 | G122: 888911.0993 | H122: 960107.905 | I122: 1011142.715
B123: Northern Zone - Commercial | C123: 109811.9881 | D123: 55734.93164 | E123: 107493.5884 | F123: 112503.4247 | G123: 118165.322 | H123: 127629.7031 | I123: 134413.8964
B124: Murray Valley Zone - Commercial | C124: 10173.24419 | D124: 5167.655128 | E124: 10049.67932 | F124: 10518.05376 | G124: 11047.39 | H124: 11932.22412 | I124: 12566.4849
B125: Bairnsdale Zone - Commercial | C125: 7380.685975 | D125: 3821.880133 | E125: 7444.767982 | F125: 7791.738155 | G125: 8183.868627 | H125: 8839.350716 | I125: 9309.208925
B126: Albury Zone - Commercial | C126: 35741.3442 | D126: 18240.82935 | E126: 34956.31603 | F126: 36585.48689 | G126: 38426.70434 | H126: 41504.46836 | I126: 43710.65022
B127: Central Zone - Industrial | C127: 0 | D127: 0 | E127: 0 | F127: 0 | G127: 0 | H127: 0 | I127: 0
B128: Northern Zone - Industrial | C128: 0 | D128: 0 | E128: 0 | F128: 0 | G128: 0 | H128: 0 | I128: 0
B129: Murray Valley Zone - Industrial | C129: 0 | D129: 0 | E129: 0 | F129: 0 | G129: 0 | H129: 0 | I129: 0
B130: Bairnsdale Zone - Industrial | C130: 0 | D130: 0 | E130: 0 | F130: 0 | G130: 0 | H130: 0 | I130: 0
B131: Albury Zone - Industrial | C131: 0 | D131: 0 | E131: 0 | F131: 0 | G131: 0 | H131: 0 | I131: 0
B139: F3.2 - ANCILLARY REFERENCE SERVICES
C140: REVENUE
C141: =CONCATENATE("$0's, real ",dms_DollarReal) -> $0's, real June 2023
B142: Service Name | C142: =VLOOKUP(CRCP_y4,'AER lookups'!$B$52:$C$101,2,0) -> 2022 | D142: =CONCATENATE("1 Jan-30 Jun "&(C142+1)) -> 1 Jan-30 Jun 2023 | E142: =FRCP_y1 -> 2023-24 | F142: =FRCP_y2 -> 2024-25 | G142: =FRCP_y3 -> 2025-26 | H142: =FRCP_y4 -> 2026-27 | I142: =FRCP_y5 -> 2027-28
B143: Disconnection | C143: 397344.8136 | D143: 202957.5752 | E143: 409076.5468 | F143: 417473.2796 | G143: 426001.7294 | H143: 434002.7026 | I143: 441641.6055
B144: Reconnection | C144: 590309.1094 | D144: 301520.7481 | E144: 607738.1752 | F144: 617346.9812 | G144: 627223.0449 | H144: 636390.5196 | I144: 645094.0618
B145: Special Meter Read - Metropolitan | C145: 1613543.901 | D145: 824173.228 | E145: 1661184.303 | F145: 1683063.636 | G145: 1705783.018 | H145: 1741069.399 | I145: 1774819.982
B146: Special Meter Read - Non Metropolitan | C146: 835806.6724 | D146: 426917.1001 | E146: 860484.1326 | F146: 876798.4563 | G146: 893423.5129 | H146: 908974.3367 | I146: 923798.3499
B147: Meter Removal | C147: 235147.6571 | D147: 120109.7804 | E147: 242090.4671 | F147: 246528.3214 | G147: 251057.3957 | H147: 255288.2251 | I147: 259318.497
B148: Meter Reinstallation | C148: 7732.807856 | D148: 3949.798458 | E148: 7961.121489 | F148: 8107.059896 | G148: 8255.998065 | H148: 8395.128479 | I148: 8527.663578
B149: Meter and Gas Installation Test | C149: 38035.84003 | D149: 19428.11785 | E149: 39158.86042 | F149: 43045.69126 | G149: 47327.6638 | H149: 51965.75306 | I149: 57201.33771
B152: Total | C152: =SUM(C143:C151) -> 3717920.801 | D152: 1899056.348 | E152: =SUM(E143:E151) -> 3827693.606 | F152: =SUM(F143:F151) -> 3892363.426 | G152: 3959072.363 | H152: 4036086.065 | I152: 4110401.498
B155: F3.3 - REBATEABLE SERVICES
C156: REVENUE
C157: =CONCATENATE("$0's, real ",dms_DollarReal) -> $0's, real June 2023
B158: Service Name | C158: =VLOOKUP(CRCP_y4,'AER lookups'!$B$52:$C$101,2,0) -> 2022 | D158: =CONCATENATE("1 Jan-30 Jun "&(C158+1)) -> 1 Jan-30 Jun 2023 | E158: =FRCP_y1 -> 2023-24 | F158: =FRCP_y2 -> 2024-25 | G158: =FRCP_y3 -> 2025-26 | H158: =FRCP_y4 -> 2026-27 | I158: =FRCP_y5 -> 2027-28
B165: Total | C165: =SUM(C159:C164) -> 0 | D165: =SUM(D159:D164) -> 0 | E165: 0 | F165: 0 | G165: 0 | H165: 0 | I165: 0
B168: F3.4 - NON-REFERENCE SERVICES
C169: REVENUE
C170: =CONCATENATE("$0's, real ",dms_DollarReal) -> $0's, real June 2023
B171: Service Name | C171: =VLOOKUP(CRCP_y4,'AER lookups'!$B$52:$C$101,2,0) -> 2022 | D171: =CONCATENATE("1 Jan-30 Jun "&(C171+1)) -> 1 Jan-30 Jun 2023 | E171: =FRCP_y1 -> 2023-24 | F171: =FRCP_y2 -> 2024-25 | G171: =FRCP_y3 -> 2025-26 | H171: =FRCP_y4 -> 2026-27 | I171: =FRCP_y5 -> 2027-28
B172: Out of Hours Special Read | C172: 41901.69337 | D172: 16769.02436 | E172: 36833.79843 | F172: 37364.99453 | G172: 37978.12138 | H172: 38424.03508 | I172: 38970.52446
B173: Meter Alter Position | C173: 338918.3895 | D173: 135634.8699 | E173: 297927.1394 | F173: 312427.509 | G173: 329017.1006 | H173: 346487.6096 | I173: 364885.8146
B174: Same Day Premium Service | C174: 253713.6763 | D174: 101536.0115 | E174: 223027.7027 | F174: 234637.6523 | G174: 248370.6448 | H174: 262907.4688 | I174: 278295.1781
B175: Disconnect Serivce in Street | C175: 36524.43134 | D175: 14617.04837 | E175: 32106.9015 | F175: 34247.30245 | G175: 36651.49195 | H175: 39226.84602 | I175: 41985.74578
B176: No Access/Incomplete Meter Fix | C176: 596638.7819 | D176: 238774.366 | E176: 524476.9569 | F176: 546164.1864 | G176: 571287.8375 | H176: 596490.0798 | I176: 624252.2171
B177: Reconnect Service in Street | C177: 18942.77668 | D177: 7580.884161 | E177: 16651.69977 | F177: 16967.44235 | G177: 17696.34998 | H177: 18402.92774 | I177: 19141.31396
B178: Total | C178: =SUM(C172:C177) -> 1286639.749 | D178: =SUM(D172:D177) -> 514912.2044 | E178: 1131024.199 | F178: 1181809.087 | G178: 1241001.546 | H178: 1301938.967 | I178: 1367530.794
B181: F3.5 - TOTAL REVENUE
C182: REVENUE
C183: =CONCATENATE("$0's, real ",dms_DollarReal) -> $0's, real June 2023
C184: =VLOOKUP(CRCP_y4,'AER lookups'!$B$52:$C$101,2,0) -> 2022 | D184: =CONCATENATE("1 Jan-30 Jun "&(C184+1)) -> 1 Jan-30 Jun 2023 | E184: =FRCP_y1 -> 2023-24 | F184: =FRCP_y2 -> 2024-25 | G184: =FRCP_y3 -> 2025-26 | H184: =FRCP_y4 -> 2026-27 | I184: =FRCP_y5 -> 2027-28
B185: Total | C185: =SUM(C178,C165,C152,C86) -> 276152145 | D185: 110927016.2 | E185: 243311745.2 | F185: 248063832.1 | G185: 253928464.4 | H185: 259085406.1 | I185: 264873548.9

Sheet Additional disclosures
A1: E13. OTHER CAPITAL EXPENDITURE
A2: E13.1 - CAPEX - BY PROJECT
A3: B. DIRECT CONTRACTOR EXPENDITURE | B3: =FRCP_y1 -> 2023-24 | C3: =FRCP_y2 -> 2024-25 | D3: =FRCP_y3 -> 2025-26 | E3: =FRCP_y4 -> 2026-27 | F3: =FRCP_y5 -> 2027-28
A4: Cathodic Protection
A5: Mains & Services Integrity Management
A6: New Growth Areas
A7: Contributed projects
A8: Network Reinforcement
A9: Supply Regulator Capacity Upgrades
A10: Transmission
A11: Regs & Valves
A12: Hydrogen Adaptation
A13: Plant & Equipment
A16: D. OTHER DIRECT EXPENDITURE
A17: Cathodic Protection
A18: Mains & Services Integrity Management
A19: New Growth Areas
A20: Contributed projects
A21: Network Reinforcement
A22: Supply Regulator Capacity Upgrades
A23: Transmission
A24: Regs & Valves
A25: Hydrogen Adaptation
A26: Plant & Equipment
A29: F. CAPITAL CONTRIBUTIONS included in the above
A30: Cathodic Protection
A31: Mains & Services Integrity Management
A32: New Growth Areas
A33: Contributed projects
A34: Network Reinforcement
A35: Supply Regulator Capacity Upgrades
A36: Transmission
A37: Regs & Valves
A38: Hydrogen Adaptation
A39: Plant & Equipment
